{"text_format":"1","workbook":"xlsx","n_sheets":9,"sheets":["Instructions","Data Entry","Form 714 Data","Adjustments","Variable Bias Supplemental Info","BA Form 2 Event Data","TimeZone Ref","Event Frequency Graphs","Frequency Response Initiative"],"not_rendered":{"charts":7,"images":0,"macros":1,"external_links":0,"defined_names":10,"comments":1,"pivot_tables":0},"unopened":[],"bounds":{"document_bytes":16777216,"sheet_cells":100000,"rows_first":2000,"rows_last":500,"rows_between":2000,"halvings":0,"cell_chars":16384,"cell_head_chars":4096},"cells_cut":0,"cells_raw":0,"read":"whole","date_system":"1900"}

{"sheet":"Instructions","index":0,"n_rows":31,"n_cols":2,"rows_kept":31,"cut":false,"hidden":false,"merged":[[30,1,30,8],[2,1,2,8],[4,1,4,8],[7,1,7,8]]}
["Instructions"," "]
[null," "]
["Step 1","Enter data in all green cells on the \"Data Entry\" worksheet.  Cell G1 with the BA name.  Cells R11 through R13 with contact information.  Cell R24 with BA Bias Type, Fixed or Variable."]
[]
["Step 2","For identified events in column C of the \"Data Entry\" worksheet, collect data and complete one FRS Form 2 workbook for each event in the list."]
[null,"Detailed Instructions for utilizing the \"Adjustments\" are located on the \"Adjustments\" worksheet below the table."]
[]
["Step 3","PasteSpecial/Values data from FRS Form 2 \"Form 1 Summary Data\" worksheet into \"BA Form 2 Event Data\" worksheet of this workbook.  Do this for each event in the list."]
[]
["Step 4","Enter FERC Form 714 data from the most recent completed Form 714 in the worksheet \"Form 714 Data\" in cells C7 through D18.  Use Copy/PasteSpecial/Values to enter data."]
[null,"Your current year's Frequency Response Obligation will be calculated in cell R20 of the \"Data Entry\" worksheet."]
[]
["Step 5","a) If a Fixed Bias was selected, cell R27 will calculate the minimum Bias (least negative) allowed based on your Peak Demand or Peak Generation for Generation only BAs."]
[null,"b) If a Fixed Bias was selected, cell R28 will calculate the minimum (in absolute terms) Bias allowed based on 100% of your FRM."]
[null,"c) If a Fixed Bias was selected, cell R29 will calculate the maximum Bias (in absolute terms) allowed based on 125% of your FRM."]
[null,"d) If R29 was more negative than the value in R27, you may choose a Bias setting that is between R29 and the lesser of R27 or R28 and enter it here.  Based on your choice, your Bias Setting will appear in cell R33."]
[]
["Step 6","a) If a Variable Bias was selected, cell R27 will indicate \"not applicable\" where there is no maximum or minimum Bias Setting."]
[null,"b) If a Variable Bias was selected, enter \"Variable\" in cell R31."]
[null,"c) If a Variable Bias was selected, cell R30 will calculate the minimum Bias (in absolute terms) allowed based on your FRM and Peak Demand/Peak Generation.  Calculate your monthly one minute average Variable Bias setting when frequency is lower than 59.964 Hz or higher than 60.036 Hz and enter these monthly values on the \"Variable Bias Supplemental Info\" worksheet in cells B2 through D13."]
[null,"d) If the \"average annual Variable Bias Setting\" in cell D14 on the \"Variable Bias Supplemental Info\" worksheet is less negative than cell E14 of this worksheet, R3 of the standard has not been met and cell D14 on the \"Variable Bias Supplementa Info\" worksheet will turn red.  The average minimum Bias Setting will cover two different reporting periods and Cells J3 through K10 require past year's data from those year's Form 1s for this evaluation."]
[null,"e) Depending on when the Implementation date is each year for the annual Bias Setting, the ERO may be required to edit the selection of each months' minimum average FBS value.  This should be completed by the ERO before each year's FRS Form 1 is published."]
[null,"f) The comparison to the FBS minimum will be from two previous year's analysis prior to the current year and the dates in the table starting at J3 will indicate the appropriate year's data to use.  For example, if it is Feb 1, 2013 and you are calculating your 2012 FBS time weigted average, the minimum FBS value will be determined from your FRM that you calculated in Feb of 2012 and based on the Peak Demand/Peak Gen reported in June of 2011 for 2010 data.  Enter each field in green using the appropriate year's data."]
[]
["Step 7","Two FRMs are calculated.  One for the BA Bias Setting and one for meeting R1 of the standard."]
[null,"The FRM for the BA Bias Setting will use all selected events and all SEFRD values will use the delta frequency as measured."]
[null,"The FRM for the BA compliance to R1 will limit the delta frequency to no greater than those listed in Table 2 of Attachment A for each Interconnection.  (Eastern +/-0.500 Hz, Western +/-0.500 Hz, ERCOT +/-0.700 Hz and HQ +/-1.500 Hz.)"]
[]
["Step 7","Save this workbook using the following file name format:NYISO_yyyy_FRS_Form_1.9.xlsx. (where NYISO is replaced with your Balancing Authority abbreviation).  See cell \"G74\" on the Data Entry worksheet for your exact file name."]
[]
["Step 8","Send completed Form 1 and each Form 2 to NERC."]

{"sheet":"Data Entry","index":1,"n_rows":74,"n_cols":59,"rows_kept":74,"cut":false,"hidden":false,"merged":[[32,18,33,18],[32,19,33,19],[0,52,0,58],[73,6,73,14],[65,6,65,14],[67,6,67,14],[69,6,69,14],[71,6,71,14],[11,44,11,48],[0,21,0,22],[0,8,0,16],[12,44,12,48],[23,44,23,48],[14,44,14,48],[15,44,15,48],[16,44,16,48],[13,44,13,48],[4,44,4,48],[5,44,5,48],[6,44,6,48],[7,44,7,48],[8,44,8,48],[9,44,9,48],[24,44,24,48],[25,44,25,48],[26,44,26,48],[27,44,27,48],[28,44,28,48],[49,44,49,48],[50,44,50,48],[47,44,47,48],[32,44,32,48],[35,44,35,48],[36,44,36,48],[33,44,33,48],[43,44,43,48],[44,44,44,48],[45,44,45,48],[40,44,40,48],[41,44,41,48],[42,44,42,48],[34,44,34,48],[37,44,37,48],[38,44,38,48],[1,57,1,58],[2,57,2,58],[46,44,46,48],[30,19,31,19],[48,44,48,48],[31,44,31,48],[39,44,39,48],[10,44,10,48],[29,44,29,48],[30,44,30,48],[17,44,17,48],[18,44,18,48],[19,44,19,48],[20,44,20,48],[21,44,21,48],[22,44,22,48]]}
[null,null,null,null,null,"Balancing Authority","HQT",null,"NERC FRS FORM 1 20 to 52 second Value B",null,null,null,null,null,null,null,null,null,"Enter Addition Data in column W ==>",null,null,"Information",null," Select Reason(s) for adjustment",null,null,null,null,null,null,null,null,null,null,null,null,null,null,null,null,null,null,null,null,null,null,null,null,null,null,null,null,"Columns BA, BB, BC, BD, BE, BF and BG are reserved for calculation of the linear regression."]
["Event","UTC (t-0)","Date/Time (t-0)","Time","Date/Time (t-0)","BA",null,"BA ","BA","Relay Lmt"," Value \"A\" Information",null," Value \"B\" Information",null,"SEFRD (FRM)",null,"Exclude for",null,"Enter Data in Green Highlighted Cells",null,null," Value \"A\""," Value \"B\"",null,null,null,null,null,null,null,null,null,null,null,null,null,null,null,null,null,null,null,null,null,null,null,null,null,null,null,null,null,"BA Delta","10 X BA","10 X BA","SEFRDB","SEFRDR","Regression"]
[null,null,null,null,null,"Time",null,null,"Bias","R1",null,null,null,null,"for Bias","for R1",null,null,null,null,null,null,null,null,null,null,null,null,null,null,null,null,null,null,null,null,null,null,null,null,null,null,null,null,null,null,null,null,null,null,null,null,"NAI","DelFreq","DelFreq","(MW/0.1Hz)","(MW/0.1Hz)","Statistics"]
["Number","Date / Time\n(MM/DD/YY HH:MM:SS)","(Central Prevailing)","Zone","BA Time","Zone","DelFreq","Time","DelFreq","DelFreq","MW/Load Lost","Adjustment","MW/Load Lost","Adjustment","(MW/0.1Hz)","(MW/0.1Hz)","data error *",{"$f":"S25*100","v":0.89999999999999991},"Send copy to:","Chris.Scheetz@nerc.net",null,"Load","Load","Reason(s)",null,null,null,null,null,null,null,null,null,null,null,null,null,null,null,null,null,null,null,null,null,null,null,null,null,null,null,null,null,"For Bias","For R1",null,null,"For Bias"]
[1,{"$f":"IF(C5=\" \",\" \",C5+LOOKUP(D5,TimeZones,'TimeZone Ref'!C$2:C$11))","v":"06:00:00"},null,"CST",{"$f":"IF(C5=\" \",\" \",B5-LOOKUP(F5,TimeZones,'TimeZone Ref'!C$2:C$11))","v":"01:00:00"},"CDT",null,{"$f":"'BA Form 2 Event Data'!E8","v":"00:00:00"},{"$f":"'BA Form 2 Event Data'!$U8-'BA Form 2 Event Data'!$J8","v":0},{"$f":"IF('Data Entry'!G5<0,(IF('Data Entry'!S$9=\"Eastern\",(IF('BA Form 2 Event Data'!U8<'Data Entry'!AQ$65,'Data Entry'!AQ$65-'BA Form 2 Event Data'!J8,'BA Form 2 Event Data'!U8-'BA Form 2 Event Data'!J8)),(IF('BA Form 2 Event Data'!U8<'Data Entry'!AQ$66,'Data Entry'!AQ$66-'BA Form 2 Event Data'!J8,'BA Form 2 Event Data'!U8-'BA Form 2 Event Data'!J8)))),(IF('Data Entry'!S$9=\"Eastern\",(IF('BA Form 2 Event Data'!U8>'Data Entry'!AR$65,'Data Entry'!AR$65-'BA Form 2 Event Data'!J8,'BA Form 2 Event Data'!U8-'BA Form 2 Event Data'!J8)),(IF('BA Form 2 Event Data'!U8>'Data Entry'!AR$66,'Data Entry'!AR$66-'BA Form 2 Event Data'!J8,'BA Form 2 Event Data'!U8-'BA Form 2 Event Data'!J8)))))","v":0},{"$f":"'BA Form 2 Event Data'!V8","v":0},{"$f":"IF(CELL(\"type\",Adjustments!$V4) = \"v\",(Adjustments!$D4+Adjustments!$G4+Adjustments!$J4+Adjustments!$M4+Adjustments!$S4),0)","v":0},{"$f":"'BA Form 2 Event Data'!K8","v":0},{"$f":"IF(CELL(\"type\",Adjustments!$V4) = \"v\",(Adjustments!$E4+Adjustments!$H4+Adjustments!$K4+Adjustments!$N4+Adjustments!$Q4+Adjustments!$T4),0)","v":0},{"$f":"IF($Q5=\"y\", \"\",IF(CELL(\"type\",$I5) = \"v\",(($M5-$N5)-($K5-$L5))/(10*$I5),\"\"))","v":{"$error":"#DIV/0!"}},{"$f":"IF($Q5=\"y\", \"\",IF(CELL(\"type\",$I5) = \"v\",(($M5-$N5)-($K5-$L5))/(10*(IF(S$9=\"Eastern\",(IF('BA Form 2 Event Data'!U8<AQ$65,AQ$65,IF('BA Form 2 Event Data'!U8>AR$65,AR$65,'BA Form 2 Event Data'!U8-'BA Form 2 Event Data'!J8))),(IF(S$9=\"Western\",(IF('BA Form 2 Event Data'!U8<AQ$66,AQ$66,IF('BA Form 2 Event Data'!U8>AR$66,AR$66,'BA Form 2 Event Data'!U8-'BA Form 2 Event Data'!J8))),(IF(S$9=\"ERCOT\",(IF('BA Form 2 Event Data'!U8<AQ$67,AQ$67,IF('BA Form 2 Event Data'!U8>AR$67,AR$67,'BA Form 2 Event Data'!U8-'BA Form 2 Event Data'!J8))),(IF('BA Form 2 Event Data'!U8<AQ$68,AQ$68,IF('BA Form 2 Event Data'!U8>AR$68,AR$68,'BA Form 2 Event Data'!U8-'BA Form 2 Event Data'!J8)))))))))),\"\"))","v":0},"N",{"$f":"IF($Q5=\"y\", \"\",IF(CELL(\"type\",$I5) = \"v\",(($M5-$N5)-($K5-$L5)),\"\"))","v":0},null,null,null,{"$f":"'BA Form 2 Event Data'!S8","v":0},{"$f":"'BA Form 2 Event Data'!AG8","v":0},null,null,null,null,null,null,null,null,null,null,null,null,null,null,null,null,null,-5.7760692778103362E-2,23.246720631917327,null,null,"Dynamic schedules for joint-owned units (DS)",null,null,null,null,null,null,null,0,0,0,{"$error":"#DIV/0!"},0,{"$f":"LINEST(BA5:BA16,BB5:BB16,0,1)","v":0},0]
[2,{"$f":"IF(C6=\" \",\" \",C6+LOOKUP(D6,TimeZones,'TimeZone Ref'!C$2:C$11))","v":"06:00:00"},null,"CST",{"$f":"IF(C6=\" \",\" \",B6-LOOKUP(F6,TimeZones,'TimeZone Ref'!C$2:C$11))","v":"01:00:00"},"CDT",null,{"$f":"'BA Form 2 Event Data'!E9","v":"00:00:00"},{"$f":"'BA Form 2 Event Data'!U9-'BA Form 2 Event Data'!J9","v":0},{"$f":"IF('Data Entry'!G6<0,(IF('Data Entry'!S$9=\"Eastern\",(IF('BA Form 2 Event Data'!U9<'Data Entry'!AQ$65,'Data Entry'!AQ$65-'BA Form 2 Event Data'!J9,'BA Form 2 Event Data'!U9-'BA Form 2 Event Data'!J9)),(IF('BA Form 2 Event Data'!U9<'Data Entry'!AQ$66,'Data Entry'!AQ$66-'BA Form 2 Event Data'!J9,'BA Form 2 Event Data'!U9-'BA Form 2 Event Data'!J9)))),(IF('Data Entry'!S$9=\"Eastern\",(IF('BA Form 2 Event Data'!U9>'Data Entry'!AR$65,'Data Entry'!AR$65-'BA Form 2 Event Data'!J9,'BA Form 2 Event Data'!U9-'BA Form 2 Event Data'!J9)),(IF('BA Form 2 Event Data'!U9>'Data Entry'!AR$66,'Data Entry'!AR$66-'BA Form 2 Event Data'!J9,'BA Form 2 Event Data'!U9-'BA Form 2 Event Data'!J9)))))","v":0},{"$f":"'BA Form 2 Event Data'!V9","v":0},{"$f":"IF(CELL(\"type\",Adjustments!$V5) = \"v\",(Adjustments!$D5+Adjustments!$G5+Adjustments!$J5+Adjustments!$M5+Adjustments!$S5),0)","v":0},{"$f":"'BA Form 2 Event Data'!K9","v":0},{"$f":"IF(CELL(\"type\",Adjustments!$V5) = \"v\",(Adjustments!$E5+Adjustments!$H5+Adjustments!$K5+Adjustments!$N5+Adjustments!$Q5+Adjustments!$T5),0)","v":0},{"$f":"IF($Q6=\"y\", \"\",IF(CELL(\"type\",$I6) = \"v\",(($M6-$N6)-($K6-$L6))/(10*$I6),\"\"))","v":{"$error":"#DIV/0!"}},{"$f":"IF($Q6=\"y\", \"\",IF(CELL(\"type\",$I6) = \"v\",(($M6-$N6)-($K6-$L6))/(10*(IF(S$9=\"Eastern\",(IF('BA Form 2 Event Data'!U9<AQ$65,AQ$65,IF('BA Form 2 Event Data'!U9>AR$65,AR$65,'BA Form 2 Event Data'!U9-'BA Form 2 Event Data'!J9))),(IF(S$9=\"Western\",(IF('BA Form 2 Event Data'!U9<AQ$66,AQ$66,IF('BA Form 2 Event Data'!U9>AR$66,AR$66,'BA Form 2 Event Data'!U9-'BA Form 2 Event Data'!J9))),(IF(S$9=\"ERCOT\",(IF('BA Form 2 Event Data'!U9<AQ$67,AQ$67,IF('BA Form 2 Event Data'!U9>AR$67,AR$67,'BA Form 2 Event Data'!U9-'BA Form 2 Event Data'!J9))),(IF('BA Form 2 Event Data'!U9<AQ$68,AQ$68,IF('BA Form 2 Event Data'!U9>AR$68,AR$68,'BA Form 2 Event Data'!U9-'BA Form 2 Event Data'!J9)))))))))),\"\"))","v":0},"N",0,null,null,null,{"$f":"'BA Form 2 Event Data'!S9","v":0},{"$f":"'BA Form 2 Event Data'!AG9","v":0},null,null,null,null,null,null,null,null,null,null,null,null,null,null,null,null,null,-6.609326317200015E-2,27.701624461582725,null,null,"Nonconforming load (NL)",null,null,null,null,null,null,null,0,0,0,{"$error":"#DIV/0!"},0,0,{"$error":"#N/A"}]
[3,{"$f":"IF(C7=\" \",\" \",C7+LOOKUP(D7,TimeZones,'TimeZone Ref'!C$2:C$11))","v":"06:00:00"},null,"CST",{"$f":"IF(C7=\" \",\" \",B7-LOOKUP(F7,TimeZones,'TimeZone Ref'!C$2:C$11))","v":"01:00:00"},"CDT",null,{"$f":"'BA Form 2 Event Data'!E10","v":"00:00:00"},{"$f":"'BA Form 2 Event Data'!U10-'BA Form 2 Event Data'!J10","v":0},{"$f":"IF('Data Entry'!G7<0,(IF('Data Entry'!S$9=\"Eastern\",(IF('BA Form 2 Event Data'!U10<'Data Entry'!AQ$65,'Data Entry'!AQ$65-'BA Form 2 Event Data'!J10,'BA Form 2 Event Data'!U10-'BA Form 2 Event Data'!J10)),(IF('BA Form 2 Event Data'!U10<'Data Entry'!AQ$66,'Data Entry'!AQ$66-'BA Form 2 Event Data'!J10,'BA Form 2 Event Data'!U10-'BA Form 2 Event Data'!J10)))),(IF('Data Entry'!S$9=\"Eastern\",(IF('BA Form 2 Event Data'!U10>'Data Entry'!AR$65,'Data Entry'!AR$65-'BA Form 2 Event Data'!J10,'BA Form 2 Event Data'!U10-'BA Form 2 Event Data'!J10)),(IF('BA Form 2 Event Data'!U10>'Data Entry'!AR$66,'Data Entry'!AR$66-'BA Form 2 Event Data'!J10,'BA Form 2 Event Data'!U10-'BA Form 2 Event Data'!J10)))))","v":0},{"$f":"'BA Form 2 Event Data'!V10","v":0},{"$f":"IF(CELL(\"type\",Adjustments!$V6) = \"v\",(Adjustments!$D6+Adjustments!$G6+Adjustments!$J6+Adjustments!$M6+Adjustments!$S6),0)","v":0},{"$f":"'BA Form 2 Event Data'!K10","v":0},{"$f":"IF(CELL(\"type\",Adjustments!$V6) = \"v\",(Adjustments!$E6+Adjustments!$H6+Adjustments!$K6+Adjustments!$N6+Adjustments!$Q6+Adjustments!$T6),0)","v":0},{"$error":"#DIV/0!"},{"$f":"IF($Q7=\"y\", \"\",IF(CELL(\"type\",$I7) = \"v\",(($M7-$N7)-($K7-$L7))/(10*(IF(S$9=\"Eastern\",(IF('BA Form 2 Event Data'!U10<AQ$65,AQ$65,IF('BA Form 2 Event Data'!U10>AR$65,AR$65,'BA Form 2 Event Data'!U10-'BA Form 2 Event Data'!J10))),(IF(S$9=\"Western\",(IF('BA Form 2 Event Data'!U10<AQ$66,AQ$66,IF('BA Form 2 Event Data'!U10>AR$66,AR$66,'BA Form 2 Event Data'!U10-'BA Form 2 Event Data'!J10))),(IF(S$9=\"ERCOT\",(IF('BA Form 2 Event Data'!U10<AQ$67,AQ$67,IF('BA Form 2 Event Data'!U10>AR$67,AR$67,'BA Form 2 Event Data'!U10-'BA Form 2 Event Data'!J10))),(IF('BA Form 2 Event Data'!U10<AQ$68,AQ$68,IF('BA Form 2 Event Data'!U10>AR$68,AR$68,'BA Form 2 Event Data'!U10-'BA Form 2 Event Data'!J10)))))))))),\"\"))","v":0},"N",0,null,null,null,{"$f":"'BA Form 2 Event Data'!S10","v":0},{"$f":"'BA Form 2 Event Data'!AG10","v":0},null,null,null,null,null,null,null,null,null,null,null,null,null,null,null,null,null,-4.0239788237002472E-2,10.663229942321777,null,null,"Pumped hydro (PH)",null,null,null,null,null,null,null,0,0,0,{"$error":"#DIV/0!"},0,1,0]
[4,{"$f":"IF(C8=\" \",\" \",C8+LOOKUP(D8,TimeZones,'TimeZone Ref'!C$2:C$11))","v":"06:00:00"},null,"CST",{"$f":"IF(C8=\" \",\" \",B8-LOOKUP(F8,TimeZones,'TimeZone Ref'!C$2:C$11))","v":"01:00:00"},"CDT",null,{"$f":"'BA Form 2 Event Data'!E11","v":"00:00:00"},{"$f":"'BA Form 2 Event Data'!U11-'BA Form 2 Event Data'!J11","v":0},{"$f":"IF('Data Entry'!G8<0,(IF('Data Entry'!S$9=\"Eastern\",(IF('BA Form 2 Event Data'!U11<'Data Entry'!AQ$65,'Data Entry'!AQ$65-'BA Form 2 Event Data'!J11,'BA Form 2 Event Data'!U11-'BA Form 2 Event Data'!J11)),(IF('BA Form 2 Event Data'!U11<'Data Entry'!AQ$66,'Data Entry'!AQ$66-'BA Form 2 Event Data'!J11,'BA Form 2 Event Data'!U11-'BA Form 2 Event Data'!J11)))),(IF('Data Entry'!S$9=\"Eastern\",(IF('BA Form 2 Event Data'!U11>'Data Entry'!AR$65,'Data Entry'!AR$65-'BA Form 2 Event Data'!J11,'BA Form 2 Event Data'!U11-'BA Form 2 Event Data'!J11)),(IF('BA Form 2 Event Data'!U11>'Data Entry'!AR$66,'Data Entry'!AR$66-'BA Form 2 Event Data'!J11,'BA Form 2 Event Data'!U11-'BA Form 2 Event Data'!J11)))))","v":0},{"$f":"'BA Form 2 Event Data'!V11","v":0},{"$f":"IF(CELL(\"type\",Adjustments!$V7) = \"v\",(Adjustments!$D7+Adjustments!$G7+Adjustments!$J7+Adjustments!$M7+Adjustments!$S7),0)","v":0},{"$f":"'BA Form 2 Event Data'!K11","v":0},{"$f":"IF(CELL(\"type\",Adjustments!$V7) = \"v\",(Adjustments!$E7+Adjustments!$H7+Adjustments!$K7+Adjustments!$N7+Adjustments!$Q7+Adjustments!$T7),0)","v":0},{"$error":"#DIV/0!"},{"$f":"IF($Q8=\"y\", \"\",IF(CELL(\"type\",$I8) = \"v\",(($M8-$N8)-($K8-$L8))/(10*(IF(S$9=\"Eastern\",(IF('BA Form 2 Event Data'!U11<AQ$65,AQ$65,IF('BA Form 2 Event Data'!U11>AR$65,AR$65,'BA Form 2 Event Data'!U11-'BA Form 2 Event Data'!J11))),(IF(S$9=\"Western\",(IF('BA Form 2 Event Data'!U11<AQ$66,AQ$66,IF('BA Form 2 Event Data'!U11>AR$66,AR$66,'BA Form 2 Event Data'!U11-'BA Form 2 Event Data'!J11))),(IF(S$9=\"ERCOT\",(IF('BA Form 2 Event Data'!U11<AQ$67,AQ$67,IF('BA Form 2 Event Data'!U11>AR$67,AR$67,'BA Form 2 Event Data'!U11-'BA Form 2 Event Data'!J11))),(IF('BA Form 2 Event Data'!U11<AQ$68,AQ$68,IF('BA Form 2 Event Data'!U11>AR$68,AR$68,'BA Form 2 Event Data'!U11-'BA Form 2 Event Data'!J11)))))))))),\"\"))","v":0},"N",0,{"$f":"S19+1","v":1901},"Bias Calculation Form 1 for Year",null,{"$f":"'BA Form 2 Event Data'!S11","v":0},{"$f":"'BA Form 2 Event Data'!AG11","v":0},null,null,null,null,null,null,null,null,null,null,null,null,null,null,null,null,null,-5.252492995489888E-2,80.660890551975797,null,null,"Invalid Data (ID)",null,null,null,null,null,null,null,0,0,0,{"$error":"#DIV/0!"},0,{"$error":"#NUM!"},12]
[5,{"$f":"IF(C9=\" \",\" \",C9+LOOKUP(D9,TimeZones,'TimeZone Ref'!C$2:C$11))","v":"06:00:00"},null,"CST",{"$f":"IF(C9=\" \",\" \",B9-LOOKUP(F9,TimeZones,'TimeZone Ref'!C$2:C$11))","v":"01:00:00"},"CDT",null,{"$f":"'BA Form 2 Event Data'!E12","v":"00:00:00"},{"$f":"'BA Form 2 Event Data'!U12-'BA Form 2 Event Data'!J12","v":0},{"$f":"IF('Data Entry'!G9<0,(IF('Data Entry'!S$9=\"Eastern\",(IF('BA Form 2 Event Data'!U12<'Data Entry'!AQ$65,'Data Entry'!AQ$65-'BA Form 2 Event Data'!J12,'BA Form 2 Event Data'!U12-'BA Form 2 Event Data'!J12)),(IF('BA Form 2 Event Data'!U12<'Data Entry'!AQ$66,'Data Entry'!AQ$66-'BA Form 2 Event Data'!J12,'BA Form 2 Event Data'!U12-'BA Form 2 Event Data'!J12)))),(IF('Data Entry'!S$9=\"Eastern\",(IF('BA Form 2 Event Data'!U12>'Data Entry'!AR$65,'Data Entry'!AR$65-'BA Form 2 Event Data'!J12,'BA Form 2 Event Data'!U12-'BA Form 2 Event Data'!J12)),(IF('BA Form 2 Event Data'!U12>'Data Entry'!AR$66,'Data Entry'!AR$66-'BA Form 2 Event Data'!J12,'BA Form 2 Event Data'!U12-'BA Form 2 Event Data'!J12)))))","v":0},{"$f":"'BA Form 2 Event Data'!V12","v":0},{"$f":"IF(CELL(\"type\",Adjustments!$V8) = \"v\",(Adjustments!$D8+Adjustments!$G8+Adjustments!$J8+Adjustments!$M8+Adjustments!$S8),0)","v":0},{"$f":"'BA Form 2 Event Data'!K12","v":0},{"$f":"IF(CELL(\"type\",Adjustments!$V8) = \"v\",(Adjustments!$E8+Adjustments!$H8+Adjustments!$K8+Adjustments!$N8+Adjustments!$Q8+Adjustments!$T8),0)","v":0},{"$error":"#DIV/0!"},{"$f":"IF($Q9=\"y\", \"\",IF(CELL(\"type\",$I9) = \"v\",(($M9-$N9)-($K9-$L9))/(10*(IF(S$9=\"Eastern\",(IF('BA Form 2 Event Data'!U12<AQ$65,AQ$65,IF('BA Form 2 Event Data'!U12>AR$65,AR$65,'BA Form 2 Event Data'!U12-'BA Form 2 Event Data'!J12))),(IF(S$9=\"Western\",(IF('BA Form 2 Event Data'!U12<AQ$66,AQ$66,IF('BA Form 2 Event Data'!U12>AR$66,AR$66,'BA Form 2 Event Data'!U12-'BA Form 2 Event Data'!J12))),(IF(S$9=\"ERCOT\",(IF('BA Form 2 Event Data'!U12<AQ$67,AQ$67,IF('BA Form 2 Event Data'!U12>AR$67,AR$67,'BA Form 2 Event Data'!U12-'BA Form 2 Event Data'!J12))),(IF('BA Form 2 Event Data'!U12<AQ$68,AQ$68,IF('BA Form 2 Event Data'!U12>AR$68,AR$68,'BA Form 2 Event Data'!U12-'BA Form 2 Event Data'!J12)))))))))),\"\"))","v":0},"N",0,"HQ","Interconnection",null,{"$f":"'BA Form 2 Event Data'!S12","v":0},{"$f":"'BA Form 2 Event Data'!AG12","v":0},null,null,null,null,null,null,null,null,null,null,null,null,null,null,null,null,null,-7.090523129419779E-2,-26.897608961377827,null,null,"Transfered Frequency Response (TFR)",null,null,null,null,null,null,null,0,0,0,{"$error":"#DIV/0!"},0,0,0]
[6,{"$f":"IF(C10=\" \",\" \",C10+LOOKUP(D10,TimeZones,'TimeZone Ref'!C$2:C$11))","v":"06:00:00"},null,"CST",{"$f":"IF(C10=\" \",\" \",B10-LOOKUP(F10,TimeZones,'TimeZone Ref'!C$2:C$11))","v":"01:00:00"},"CDT",null,{"$f":"'BA Form 2 Event Data'!E13","v":"00:00:00"},{"$f":"'BA Form 2 Event Data'!U13-'BA Form 2 Event Data'!J13","v":0},{"$f":"IF('Data Entry'!G10<0,(IF('Data Entry'!S$9=\"Eastern\",(IF('BA Form 2 Event Data'!U13<'Data Entry'!AQ$65,'Data Entry'!AQ$65-'BA Form 2 Event Data'!J13,'BA Form 2 Event Data'!U13-'BA Form 2 Event Data'!J13)),(IF('BA Form 2 Event Data'!U13<'Data Entry'!AQ$66,'Data Entry'!AQ$66-'BA Form 2 Event Data'!J13,'BA Form 2 Event Data'!U13-'BA Form 2 Event Data'!J13)))),(IF('Data Entry'!S$9=\"Eastern\",(IF('BA Form 2 Event Data'!U13>'Data Entry'!AR$65,'Data Entry'!AR$65-'BA Form 2 Event Data'!J13,'BA Form 2 Event Data'!U13-'BA Form 2 Event Data'!J13)),(IF('BA Form 2 Event Data'!U13>'Data Entry'!AR$66,'Data Entry'!AR$66-'BA Form 2 Event Data'!J13,'BA Form 2 Event Data'!U13-'BA Form 2 Event Data'!J13)))))","v":0},{"$f":"'BA Form 2 Event Data'!V13","v":0},{"$f":"IF(CELL(\"type\",Adjustments!$V9) = \"v\",(Adjustments!$D9+Adjustments!$G9+Adjustments!$J9+Adjustments!$M9+Adjustments!$S9),0)","v":0},{"$f":"'BA Form 2 Event Data'!K13","v":0},{"$f":"IF(CELL(\"type\",Adjustments!$V9) = \"v\",(Adjustments!$E9+Adjustments!$H9+Adjustments!$K9+Adjustments!$N9+Adjustments!$Q9+Adjustments!$T9),0)","v":0},{"$error":"#DIV/0!"},{"$f":"IF($Q10=\"y\", \"\",IF(CELL(\"type\",$I10) = \"v\",(($M10-$N10)-($K10-$L10))/(10*(IF(S$9=\"Eastern\",(IF('BA Form 2 Event Data'!U13<AQ$65,AQ$65,IF('BA Form 2 Event Data'!U13>AR$65,AR$65,'BA Form 2 Event Data'!U13-'BA Form 2 Event Data'!J13))),(IF(S$9=\"Western\",(IF('BA Form 2 Event Data'!U13<AQ$66,AQ$66,IF('BA Form 2 Event Data'!U13>AR$66,AR$66,'BA Form 2 Event Data'!U13-'BA Form 2 Event Data'!J13))),(IF(S$9=\"ERCOT\",(IF('BA Form 2 Event Data'!U13<AQ$67,AQ$67,IF('BA Form 2 Event Data'!U13>AR$67,AR$67,'BA Form 2 Event Data'!U13-'BA Form 2 Event Data'!J13))),(IF('BA Form 2 Event Data'!U13<AQ$68,AQ$68,IF('BA Form 2 Event Data'!U13>AR$68,AR$68,'BA Form 2 Event Data'!U13-'BA Form 2 Event Data'!J13)))))))))),\"\"))","v":0},"N",0,{"$f":"G1","v":"HQT"},"Balancing Authority",null,{"$f":"'BA Form 2 Event Data'!S13","v":0},{"$f":"'BA Form 2 Event Data'!AG13","v":0},null,null,null,null,null,null,null,null,null,null,null,null,null,null,null,null,null,-5.1906767345698768E-2,9.955449178814888,null,null,"Contingent BA adjustment for loss of units (CBA)",null,null,null,null,null,null,null,0,0,0,{"$error":"#DIV/0!"},0]
[7,{"$f":"IF(C11=\" \",\" \",C11+LOOKUP(D11,TimeZones,'TimeZone Ref'!C$2:C$11))","v":"06:00:00"},null,"CST",{"$f":"IF(C11=\" \",\" \",B11-LOOKUP(F11,TimeZones,'TimeZone Ref'!C$2:C$11))","v":"01:00:00"},"CDT",null,{"$f":"'BA Form 2 Event Data'!E14","v":"00:00:00"},{"$f":"'BA Form 2 Event Data'!U14-'BA Form 2 Event Data'!J14","v":0},{"$f":"IF('Data Entry'!G11<0,(IF('Data Entry'!S$9=\"Eastern\",(IF('BA Form 2 Event Data'!U14<'Data Entry'!AQ$65,'Data Entry'!AQ$65-'BA Form 2 Event Data'!J14,'BA Form 2 Event Data'!U14-'BA Form 2 Event Data'!J14)),(IF('BA Form 2 Event Data'!U14<'Data Entry'!AQ$66,'Data Entry'!AQ$66-'BA Form 2 Event Data'!J14,'BA Form 2 Event Data'!U14-'BA Form 2 Event Data'!J14)))),(IF('Data Entry'!S$9=\"Eastern\",(IF('BA Form 2 Event Data'!U14>'Data Entry'!AR$65,'Data Entry'!AR$65-'BA Form 2 Event Data'!J14,'BA Form 2 Event Data'!U14-'BA Form 2 Event Data'!J14)),(IF('BA Form 2 Event Data'!U14>'Data Entry'!AR$66,'Data Entry'!AR$66-'BA Form 2 Event Data'!J14,'BA Form 2 Event Data'!U14-'BA Form 2 Event Data'!J14)))))","v":0},{"$f":"'BA Form 2 Event Data'!V14","v":0},{"$f":"IF(CELL(\"type\",Adjustments!$V10) = \"v\",(Adjustments!$D10+Adjustments!$G10+Adjustments!$J10+Adjustments!$M10+Adjustments!$S10),0)","v":0},{"$f":"'BA Form 2 Event Data'!K14","v":0},{"$f":"IF(CELL(\"type\",Adjustments!$V10) = \"v\",(Adjustments!$E10+Adjustments!$H10+Adjustments!$K10+Adjustments!$N10+Adjustments!$Q10+Adjustments!$T10),0)","v":0},{"$error":"#DIV/0!"},{"$f":"IF($Q11=\"y\", \"\",IF(CELL(\"type\",$I11) = \"v\",(($M11-$N11)-($K11-$L11))/(10*(IF(S$9=\"Eastern\",(IF('BA Form 2 Event Data'!U14<AQ$65,AQ$65,IF('BA Form 2 Event Data'!U14>AR$65,AR$65,'BA Form 2 Event Data'!U14-'BA Form 2 Event Data'!J14))),(IF(S$9=\"Western\",(IF('BA Form 2 Event Data'!U14<AQ$66,AQ$66,IF('BA Form 2 Event Data'!U14>AR$66,AR$66,'BA Form 2 Event Data'!U14-'BA Form 2 Event Data'!J14))),(IF(S$9=\"ERCOT\",(IF('BA Form 2 Event Data'!U14<AQ$67,AQ$67,IF('BA Form 2 Event Data'!U14>AR$67,AR$67,'BA Form 2 Event Data'!U14-'BA Form 2 Event Data'!J14))),(IF('BA Form 2 Event Data'!U14<AQ$68,AQ$68,IF('BA Form 2 Event Data'!U14>AR$68,AR$68,'BA Form 2 Event Data'!U14-'BA Form 2 Event Data'!J14)))))))))),\"\"))","v":0},"N",0,null,"Contact Name",null,{"$f":"'BA Form 2 Event Data'!S14","v":0},{"$f":"'BA Form 2 Event Data'!AG14","v":0},null,null,null,null,null,null,null,null,null,null,null,null,null,null,null,null,null,-5.804770333430298E-2,3.3670240129743263,null,null,"DS & NL",null,null,null,null,null,null,null,0,0,0,{"$error":"#DIV/0!"},0,"For R1"]
[8,{"$f":"IF(C12=\" \",\" \",C12+LOOKUP(D12,TimeZones,'TimeZone Ref'!C$2:C$11))","v":"06:00:00"},null,"CST",{"$f":"IF(C12=\" \",\" \",B12-LOOKUP(F12,TimeZones,'TimeZone Ref'!C$2:C$11))","v":"01:00:00"},"CDT",null,{"$f":"'BA Form 2 Event Data'!E15","v":"00:00:00"},{"$f":"'BA Form 2 Event Data'!U15-'BA Form 2 Event Data'!J15","v":0},{"$f":"IF('Data Entry'!G12<0,(IF('Data Entry'!S$9=\"Eastern\",(IF('BA Form 2 Event Data'!U15<'Data Entry'!AQ$65,'Data Entry'!AQ$65-'BA Form 2 Event Data'!J15,'BA Form 2 Event Data'!U15-'BA Form 2 Event Data'!J15)),(IF('BA Form 2 Event Data'!U15<'Data Entry'!AQ$66,'Data Entry'!AQ$66-'BA Form 2 Event Data'!J15,'BA Form 2 Event Data'!U15-'BA Form 2 Event Data'!J15)))),(IF('Data Entry'!S$9=\"Eastern\",(IF('BA Form 2 Event Data'!U15>'Data Entry'!AR$65,'Data Entry'!AR$65-'BA Form 2 Event Data'!J15,'BA Form 2 Event Data'!U15-'BA Form 2 Event Data'!J15)),(IF('BA Form 2 Event Data'!U15>'Data Entry'!AR$66,'Data Entry'!AR$66-'BA Form 2 Event Data'!J15,'BA Form 2 Event Data'!U15-'BA Form 2 Event Data'!J15)))))","v":0},{"$f":"'BA Form 2 Event Data'!V15","v":0},{"$f":"IF(CELL(\"type\",Adjustments!$V11) = \"v\",(Adjustments!$D11+Adjustments!$G11+Adjustments!$J11+Adjustments!$M11+Adjustments!$S11),0)","v":0},{"$f":"'BA Form 2 Event Data'!K15","v":0},{"$f":"IF(CELL(\"type\",Adjustments!$V11) = \"v\",(Adjustments!$E11+Adjustments!$H11+Adjustments!$K11+Adjustments!$N11+Adjustments!$Q11+Adjustments!$T11),0)","v":0},{"$error":"#DIV/0!"},{"$f":"IF($Q12=\"y\", \"\",IF(CELL(\"type\",$I12) = \"v\",(($M12-$N12)-($K12-$L12))/(10*(IF(S$9=\"Eastern\",(IF('BA Form 2 Event Data'!U15<AQ$65,AQ$65,IF('BA Form 2 Event Data'!U15>AR$65,AR$65,'BA Form 2 Event Data'!U15-'BA Form 2 Event Data'!J15))),(IF(S$9=\"Western\",(IF('BA Form 2 Event Data'!U15<AQ$66,AQ$66,IF('BA Form 2 Event Data'!U15>AR$66,AR$66,'BA Form 2 Event Data'!U15-'BA Form 2 Event Data'!J15))),(IF(S$9=\"ERCOT\",(IF('BA Form 2 Event Data'!U15<AQ$67,AQ$67,IF('BA Form 2 Event Data'!U15>AR$67,AR$67,'BA Form 2 Event Data'!U15-'BA Form 2 Event Data'!J15))),(IF('BA Form 2 Event Data'!U15<AQ$68,AQ$68,IF('BA Form 2 Event Data'!U15>AR$68,AR$68,'BA Form 2 Event Data'!U15-'BA Form 2 Event Data'!J15)))))))))),\"\"))","v":0},"N",0,null,"Contact Phone #",null,{"$f":"'BA Form 2 Event Data'!S15","v":0},{"$f":"'BA Form 2 Event Data'!AG15","v":0},null,null,null,null,null,null,null,null,null,null,null,null,null,null,null,null,null,-7.5572422572498965E-2,36.334426879882812,null,null,"DS & PH",null,null,null,null,null,null,null,0,0,0,{"$error":"#DIV/0!"},0,{"$f":"LINEST(BA5:BA16,BC5:BC16,0,1)","v":0},0]
[9,{"$f":"IF(C13=\" \",\" \",C13+LOOKUP(D13,TimeZones,'TimeZone Ref'!C$2:C$11))","v":"06:00:00"},null,"CST",{"$f":"IF(C13=\" \",\" \",B13-LOOKUP(F13,TimeZones,'TimeZone Ref'!C$2:C$11))","v":"01:00:00"},"CDT",null,{"$f":"'BA Form 2 Event Data'!E16","v":"00:00:00"},{"$f":"'BA Form 2 Event Data'!U16-'BA Form 2 Event Data'!J16","v":0},{"$f":"IF('Data Entry'!G13<0,(IF('Data Entry'!S$9=\"Eastern\",(IF('BA Form 2 Event Data'!U16<'Data Entry'!AQ$65,'Data Entry'!AQ$65-'BA Form 2 Event Data'!J16,'BA Form 2 Event Data'!U16-'BA Form 2 Event Data'!J16)),(IF('BA Form 2 Event Data'!U16<'Data Entry'!AQ$66,'Data Entry'!AQ$66-'BA Form 2 Event Data'!J16,'BA Form 2 Event Data'!U16-'BA Form 2 Event Data'!J16)))),(IF('Data Entry'!S$9=\"Eastern\",(IF('BA Form 2 Event Data'!U16>'Data Entry'!AR$65,'Data Entry'!AR$65-'BA Form 2 Event Data'!J16,'BA Form 2 Event Data'!U16-'BA Form 2 Event Data'!J16)),(IF('BA Form 2 Event Data'!U16>'Data Entry'!AR$66,'Data Entry'!AR$66-'BA Form 2 Event Data'!J16,'BA Form 2 Event Data'!U16-'BA Form 2 Event Data'!J16)))))","v":0},{"$f":"'BA Form 2 Event Data'!V16","v":0},{"$f":"IF(CELL(\"type\",Adjustments!$V12) = \"v\",(Adjustments!$D12+Adjustments!$G12+Adjustments!$J12+Adjustments!$M12+Adjustments!$S12),0)","v":0},{"$f":"'BA Form 2 Event Data'!K16","v":0},{"$f":"IF(CELL(\"type\",Adjustments!$V12) = \"v\",(Adjustments!$E12+Adjustments!$H12+Adjustments!$K12+Adjustments!$N12+Adjustments!$Q12+Adjustments!$T12),0)","v":0},{"$error":"#DIV/0!"},{"$f":"IF($Q13=\"y\", \"\",IF(CELL(\"type\",$I13) = \"v\",(($M13-$N13)-($K13-$L13))/(10*(IF(S$9=\"Eastern\",(IF('BA Form 2 Event Data'!U16<AQ$65,AQ$65,IF('BA Form 2 Event Data'!U16>AR$65,AR$65,'BA Form 2 Event Data'!U16-'BA Form 2 Event Data'!J16))),(IF(S$9=\"Western\",(IF('BA Form 2 Event Data'!U16<AQ$66,AQ$66,IF('BA Form 2 Event Data'!U16>AR$66,AR$66,'BA Form 2 Event Data'!U16-'BA Form 2 Event Data'!J16))),(IF(S$9=\"ERCOT\",(IF('BA Form 2 Event Data'!U16<AQ$67,AQ$67,IF('BA Form 2 Event Data'!U16>AR$67,AR$67,'BA Form 2 Event Data'!U16-'BA Form 2 Event Data'!J16))),(IF('BA Form 2 Event Data'!U16<AQ$68,AQ$68,IF('BA Form 2 Event Data'!U16>AR$68,AR$68,'BA Form 2 Event Data'!U16-'BA Form 2 Event Data'!J16)))))))))),\"\"))","v":0},"N",0,null,"Contact e-mail",null,{"$f":"'BA Form 2 Event Data'!S16","v":0},{"$f":"'BA Form 2 Event Data'!AG16","v":0},null,null,null,null,null,null,null,null,null,null,null,null,null,null,null,null,null,-5.6380498976999149E-2,0.4882530443596238,null,null,"DS & ID",null,null,null,null,null,null,null,0,0,0,{"$error":"#DIV/0!"},0,0,{"$error":"#N/A"}]
[10,{"$f":"IF(C14=\" \",\" \",C14+LOOKUP(D14,TimeZones,'TimeZone Ref'!C$2:C$11))","v":"06:00:00"},null,"CST",{"$f":"IF(C14=\" \",\" \",B14-LOOKUP(F14,TimeZones,'TimeZone Ref'!C$2:C$11))","v":"01:00:00"},"CDT",null,{"$f":"'BA Form 2 Event Data'!E17","v":"00:00:00"},{"$f":"'BA Form 2 Event Data'!U17-'BA Form 2 Event Data'!J17","v":0},{"$f":"IF('Data Entry'!G14<0,(IF('Data Entry'!S$9=\"Eastern\",(IF('BA Form 2 Event Data'!U17<'Data Entry'!AQ$65,'Data Entry'!AQ$65-'BA Form 2 Event Data'!J17,'BA Form 2 Event Data'!U17-'BA Form 2 Event Data'!J17)),(IF('BA Form 2 Event Data'!U17<'Data Entry'!AQ$66,'Data Entry'!AQ$66-'BA Form 2 Event Data'!J17,'BA Form 2 Event Data'!U17-'BA Form 2 Event Data'!J17)))),(IF('Data Entry'!S$9=\"Eastern\",(IF('BA Form 2 Event Data'!U17>'Data Entry'!AR$65,'Data Entry'!AR$65-'BA Form 2 Event Data'!J17,'BA Form 2 Event Data'!U17-'BA Form 2 Event Data'!J17)),(IF('BA Form 2 Event Data'!U17>'Data Entry'!AR$66,'Data Entry'!AR$66-'BA Form 2 Event Data'!J17,'BA Form 2 Event Data'!U17-'BA Form 2 Event Data'!J17)))))","v":0},{"$f":"'BA Form 2 Event Data'!V17","v":0},{"$f":"IF(CELL(\"type\",Adjustments!$V13) = \"v\",(Adjustments!$D13+Adjustments!$G13+Adjustments!$J13+Adjustments!$M13+Adjustments!$S13),0)","v":0},{"$f":"'BA Form 2 Event Data'!K17","v":0},{"$f":"IF(CELL(\"type\",Adjustments!$V13) = \"v\",(Adjustments!$E13+Adjustments!$H13+Adjustments!$K13+Adjustments!$N13+Adjustments!$Q13+Adjustments!$T13),0)","v":0},{"$error":"#DIV/0!"},{"$f":"IF($Q14=\"y\", \"\",IF(CELL(\"type\",$I14) = \"v\",(($M14-$N14)-($K14-$L14))/(10*(IF(S$9=\"Eastern\",(IF('BA Form 2 Event Data'!U17<AQ$65,AQ$65,IF('BA Form 2 Event Data'!U17>AR$65,AR$65,'BA Form 2 Event Data'!U17-'BA Form 2 Event Data'!J17))),(IF(S$9=\"Western\",(IF('BA Form 2 Event Data'!U17<AQ$66,AQ$66,IF('BA Form 2 Event Data'!U17>AR$66,AR$66,'BA Form 2 Event Data'!U17-'BA Form 2 Event Data'!J17))),(IF(S$9=\"ERCOT\",(IF('BA Form 2 Event Data'!U17<AQ$67,AQ$67,IF('BA Form 2 Event Data'!U17>AR$67,AR$67,'BA Form 2 Event Data'!U17-'BA Form 2 Event Data'!J17))),(IF('BA Form 2 Event Data'!U17<AQ$68,AQ$68,IF('BA Form 2 Event Data'!U17>AR$68,AR$68,'BA Form 2 Event Data'!U17-'BA Form 2 Event Data'!J17)))))))))),\"\"))","v":0},"N",0,1,"MWh Annual GenBA is the annual \"Net Generation (MWh)\", FERC Form 714, line 13, column c of Part II - Schedule 3.",null,{"$f":"'BA Form 2 Event Data'!S17","v":0},{"$f":"'BA Form 2 Event Data'!AG17","v":0},null,null,null,null,null,null,null,null,null,null,null,null,null,null,null,null,null,-5.7332901727598085E-2,2.7580369313557895,null,null,"DS & TFR",null,null,null,null,null,null,null,0,0,0,{"$error":"#DIV/0!"},0,1,0]
[11,{"$f":"IF(C15=\" \",\" \",C15+LOOKUP(D15,TimeZones,'TimeZone Ref'!C$2:C$11))","v":"06:00:00"},null,"CST",{"$f":"IF(C15=\" \",\" \",B15-LOOKUP(F15,TimeZones,'TimeZone Ref'!C$2:C$11))","v":"00:00:00"},"CST",null,{"$f":"'BA Form 2 Event Data'!E18","v":"00:00:00"},{"$f":"'BA Form 2 Event Data'!U18-'BA Form 2 Event Data'!J18","v":0},{"$f":"IF('Data Entry'!G15<0,(IF('Data Entry'!S$9=\"Eastern\",(IF('BA Form 2 Event Data'!U18<'Data Entry'!AQ$65,'Data Entry'!AQ$65-'BA Form 2 Event Data'!J18,'BA Form 2 Event Data'!U18-'BA Form 2 Event Data'!J18)),(IF('BA Form 2 Event Data'!U18<'Data Entry'!AQ$66,'Data Entry'!AQ$66-'BA Form 2 Event Data'!J18,'BA Form 2 Event Data'!U18-'BA Form 2 Event Data'!J18)))),(IF('Data Entry'!S$9=\"Eastern\",(IF('BA Form 2 Event Data'!U18>'Data Entry'!AR$65,'Data Entry'!AR$65-'BA Form 2 Event Data'!J18,'BA Form 2 Event Data'!U18-'BA Form 2 Event Data'!J18)),(IF('BA Form 2 Event Data'!U18>'Data Entry'!AR$66,'Data Entry'!AR$66-'BA Form 2 Event Data'!J18,'BA Form 2 Event Data'!U18-'BA Form 2 Event Data'!J18)))))","v":0},{"$f":"'BA Form 2 Event Data'!V18","v":0},{"$f":"IF(CELL(\"type\",Adjustments!$V14) = \"v\",(Adjustments!$D14+Adjustments!$G14+Adjustments!$J14+Adjustments!$M14+Adjustments!$S14),0)","v":0},{"$f":"'BA Form 2 Event Data'!K18","v":0},{"$f":"IF(CELL(\"type\",Adjustments!$V14) = \"v\",(Adjustments!$E14+Adjustments!$H14+Adjustments!$K14+Adjustments!$N14+Adjustments!$Q14+Adjustments!$T14),0)","v":0},{"$error":"#DIV/0!"},{"$f":"IF($Q15=\"y\", \"\",IF(CELL(\"type\",$I15) = \"v\",(($M15-$N15)-($K15-$L15))/(10*(IF(S$9=\"Eastern\",(IF('BA Form 2 Event Data'!U18<AQ$65,AQ$65,IF('BA Form 2 Event Data'!U18>AR$65,AR$65,'BA Form 2 Event Data'!U18-'BA Form 2 Event Data'!J18))),(IF(S$9=\"Western\",(IF('BA Form 2 Event Data'!U18<AQ$66,AQ$66,IF('BA Form 2 Event Data'!U18>AR$66,AR$66,'BA Form 2 Event Data'!U18-'BA Form 2 Event Data'!J18))),(IF(S$9=\"ERCOT\",(IF('BA Form 2 Event Data'!U18<AQ$67,AQ$67,IF('BA Form 2 Event Data'!U18>AR$67,AR$67,'BA Form 2 Event Data'!U18-'BA Form 2 Event Data'!J18))),(IF('BA Form 2 Event Data'!U18<AQ$68,AQ$68,IF('BA Form 2 Event Data'!U18>AR$68,AR$68,'BA Form 2 Event Data'!U18-'BA Form 2 Event Data'!J18)))))))))),\"\"))","v":0},"N",0,1,"MWh Annual LoadBA is the annual \"Net Energy for Load (MWh)\", FERC Form 714, line 13, column e of Part II - Schedule 3.",null,{"$f":"'BA Form 2 Event Data'!S18","v":0},{"$f":"'BA Form 2 Event Data'!AG18","v":0},null,null,null,null,null,null,null,null,null,null,null,null,null,null,null,null,null,-5.1760900588298853E-2,13.643416881561279,null,null,"DS & CBA",null,null,null,null,null,null,null,0,0,0,{"$error":"#DIV/0!"},0,{"$error":"#NUM!"},12]
[12,{"$f":"IF(C16=\" \",\" \",C16+LOOKUP(D16,TimeZones,'TimeZone Ref'!C$2:C$11))","v":"06:00:00"},null,"CST",{"$f":"IF(C16=\" \",\" \",B16-LOOKUP(F16,TimeZones,'TimeZone Ref'!C$2:C$11))","v":"00:00:00"},"CST",null,{"$f":"'BA Form 2 Event Data'!E19","v":"00:00:00"},{"$f":"'BA Form 2 Event Data'!U19-'BA Form 2 Event Data'!J19","v":0},{"$f":"IF('Data Entry'!G16<0,(IF('Data Entry'!S$9=\"Eastern\",(IF('BA Form 2 Event Data'!U19<'Data Entry'!AQ$65,'Data Entry'!AQ$65-'BA Form 2 Event Data'!J19,'BA Form 2 Event Data'!U19-'BA Form 2 Event Data'!J19)),(IF('BA Form 2 Event Data'!U19<'Data Entry'!AQ$66,'Data Entry'!AQ$66-'BA Form 2 Event Data'!J19,'BA Form 2 Event Data'!U19-'BA Form 2 Event Data'!J19)))),(IF('Data Entry'!S$9=\"Eastern\",(IF('BA Form 2 Event Data'!U19>'Data Entry'!AR$65,'Data Entry'!AR$65-'BA Form 2 Event Data'!J19,'BA Form 2 Event Data'!U19-'BA Form 2 Event Data'!J19)),(IF('BA Form 2 Event Data'!U19>'Data Entry'!AR$66,'Data Entry'!AR$66-'BA Form 2 Event Data'!J19,'BA Form 2 Event Data'!U19-'BA Form 2 Event Data'!J19)))))","v":0},{"$f":"'BA Form 2 Event Data'!V19","v":0},{"$f":"IF(CELL(\"type\",Adjustments!$V15) = \"v\",(Adjustments!$D15+Adjustments!$G15+Adjustments!$J15+Adjustments!$M15+Adjustments!$S15),0)","v":0},{"$f":"'BA Form 2 Event Data'!K19","v":0},{"$f":"IF(CELL(\"type\",Adjustments!$V15) = \"v\",(Adjustments!$E15+Adjustments!$H15+Adjustments!$K15+Adjustments!$N15+Adjustments!$Q15+Adjustments!$T15),0)","v":0},{"$error":"#DIV/0!"},{"$f":"IF($Q16=\"y\", \"\",IF(CELL(\"type\",$I16) = \"v\",(($M16-$N16)-($K16-$L16))/(10*(IF(S$9=\"Eastern\",(IF('BA Form 2 Event Data'!U19<AQ$65,AQ$65,IF('BA Form 2 Event Data'!U19>AR$65,AR$65,'BA Form 2 Event Data'!U19-'BA Form 2 Event Data'!J19))),(IF(S$9=\"Western\",(IF('BA Form 2 Event Data'!U19<AQ$66,AQ$66,IF('BA Form 2 Event Data'!U19>AR$66,AR$66,'BA Form 2 Event Data'!U19-'BA Form 2 Event Data'!J19))),(IF(S$9=\"ERCOT\",(IF('BA Form 2 Event Data'!U19<AQ$67,AQ$67,IF('BA Form 2 Event Data'!U19>AR$67,AR$67,'BA Form 2 Event Data'!U19-'BA Form 2 Event Data'!J19))),(IF('BA Form 2 Event Data'!U19<AQ$68,AQ$68,IF('BA Form 2 Event Data'!U19>AR$68,AR$68,'BA Form 2 Event Data'!U19-'BA Form 2 Event Data'!J19)))))))))),\"\"))","v":0},"N",0,1,"MWh Annual GenINT is the Sum of all Annual GenBA values in this interconnection",null,{"$f":"'BA Form 2 Event Data'!S19","v":0},{"$f":"'BA Form 2 Event Data'!AG19","v":0},null,null,null,null,null,null,null,null,null,null,null,null,null,null,null,null,null,-4.9999237060546875E-2,11.100745916366577,null,null,"DS & NL & PH",null,null,null,null,null,null,null,0,0,0,{"$error":"#DIV/0!"},0,0,0]
[13,{"$f":"IF(C17=\" \",\" \",C17+LOOKUP(D17,TimeZones,'TimeZone Ref'!C$2:C$11))","v":"06:00:00"},null,"CST",{"$f":"IF(C17=\" \",\" \",B17-LOOKUP(F17,TimeZones,'TimeZone Ref'!C$2:C$11))","v":"00:00:00"},"CST",null,{"$f":"'BA Form 2 Event Data'!E20","v":"00:00:00"},{"$f":"'BA Form 2 Event Data'!U20-'BA Form 2 Event Data'!J20","v":0},{"$f":"IF('Data Entry'!G17<0,(IF('Data Entry'!S$9=\"Eastern\",(IF('BA Form 2 Event Data'!U20<'Data Entry'!AQ$65,'Data Entry'!AQ$65-'BA Form 2 Event Data'!J20,'BA Form 2 Event Data'!U20-'BA Form 2 Event Data'!J20)),(IF('BA Form 2 Event Data'!U20<'Data Entry'!AQ$66,'Data Entry'!AQ$66-'BA Form 2 Event Data'!J20,'BA Form 2 Event Data'!U20-'BA Form 2 Event Data'!J20)))),(IF('Data Entry'!S$9=\"Eastern\",(IF('BA Form 2 Event Data'!U20>'Data Entry'!AR$65,'Data Entry'!AR$65-'BA Form 2 Event Data'!J20,'BA Form 2 Event Data'!U20-'BA Form 2 Event Data'!J20)),(IF('BA Form 2 Event Data'!U20>'Data Entry'!AR$66,'Data Entry'!AR$66-'BA Form 2 Event Data'!J20,'BA Form 2 Event Data'!U20-'BA Form 2 Event Data'!J20)))))","v":0},{"$f":"'BA Form 2 Event Data'!V20","v":0},{"$f":"IF(CELL(\"type\",Adjustments!$V16) = \"v\",(Adjustments!$D16+Adjustments!$G16+Adjustments!$J16+Adjustments!$M16+Adjustments!$S16),0)","v":0},{"$f":"'BA Form 2 Event Data'!K20","v":0},{"$f":"IF(CELL(\"type\",Adjustments!$V16) = \"v\",(Adjustments!$E16+Adjustments!$H16+Adjustments!$K16+Adjustments!$N16+Adjustments!$Q16+Adjustments!$T16),0)","v":0},"",{"$f":"IF($Q17=\"y\", \"\",IF(CELL(\"type\",$I17) = \"v\",(($M17-$N17)-($K17-$L17))/(10*(IF(S$9=\"Eastern\",(IF('BA Form 2 Event Data'!U20<AQ$65,AQ$65,IF('BA Form 2 Event Data'!U20>AR$65,AR$65,'BA Form 2 Event Data'!U20-'BA Form 2 Event Data'!J20))),(IF(S$9=\"Western\",(IF('BA Form 2 Event Data'!U20<AQ$66,AQ$66,IF('BA Form 2 Event Data'!U20>AR$66,AR$66,'BA Form 2 Event Data'!U20-'BA Form 2 Event Data'!J20))),(IF(S$9=\"ERCOT\",(IF('BA Form 2 Event Data'!U20<AQ$67,AQ$67,IF('BA Form 2 Event Data'!U20>AR$67,AR$67,'BA Form 2 Event Data'!U20-'BA Form 2 Event Data'!J20))),(IF('BA Form 2 Event Data'!U20<AQ$68,AQ$68,IF('BA Form 2 Event Data'!U20>AR$68,AR$68,'BA Form 2 Event Data'!U20-'BA Form 2 Event Data'!J20)))))))))),\"\"))","v":""},"Y","",1,"MWh Annual LoadINT is the Sum of all Annual LoadBA values in this interconnection",null,{"$f":"'BA Form 2 Event Data'!S20","v":0},{"$f":"'BA Form 2 Event Data'!AG20","v":0},null,null,null,null,null,null,null,null,null,null,null,null,null,null,null,null,null,-5.1999999999999998E-2,-19.906846483548481,null,null,"DS & NL & ID"]
[14,{"$f":"IF(C18=\" \",\" \",C18+LOOKUP(D18,TimeZones,'TimeZone Ref'!C$2:C$11))","v":"06:00:00"},null,"CST",{"$f":"IF(C18=\" \",\" \",B18-LOOKUP(F18,TimeZones,'TimeZone Ref'!C$2:C$11))","v":"00:00:00"},"CST",null,{"$f":"'BA Form 2 Event Data'!E21","v":"00:00:00"},{"$f":"'BA Form 2 Event Data'!U21-'BA Form 2 Event Data'!J21","v":0},{"$f":"IF('Data Entry'!G18<0,(IF('Data Entry'!S$9=\"Eastern\",(IF('BA Form 2 Event Data'!U21<'Data Entry'!AQ$65,'Data Entry'!AQ$65-'BA Form 2 Event Data'!J21,'BA Form 2 Event Data'!U21-'BA Form 2 Event Data'!J21)),(IF('BA Form 2 Event Data'!U21<'Data Entry'!AQ$66,'Data Entry'!AQ$66-'BA Form 2 Event Data'!J21,'BA Form 2 Event Data'!U21-'BA Form 2 Event Data'!J21)))),(IF('Data Entry'!S$9=\"Eastern\",(IF('BA Form 2 Event Data'!U21>'Data Entry'!AR$65,'Data Entry'!AR$65-'BA Form 2 Event Data'!J21,'BA Form 2 Event Data'!U21-'BA Form 2 Event Data'!J21)),(IF('BA Form 2 Event Data'!U21>'Data Entry'!AR$66,'Data Entry'!AR$66-'BA Form 2 Event Data'!J21,'BA Form 2 Event Data'!U21-'BA Form 2 Event Data'!J21)))))","v":0},{"$f":"'BA Form 2 Event Data'!V21","v":0},{"$f":"IF(CELL(\"type\",Adjustments!$V17) = \"v\",(Adjustments!$D17+Adjustments!$G17+Adjustments!$J17+Adjustments!$M17+Adjustments!$S17),0)","v":0},{"$f":"'BA Form 2 Event Data'!K21","v":0},{"$f":"IF(CELL(\"type\",Adjustments!$V17) = \"v\",(Adjustments!$E17+Adjustments!$H17+Adjustments!$K17+Adjustments!$N17+Adjustments!$Q17+Adjustments!$T17),0)","v":0},"",{"$f":"IF($Q18=\"y\", \"\",IF(CELL(\"type\",$I18) = \"v\",(($M18-$N18)-($K18-$L18))/(10*(IF(S$9=\"Eastern\",(IF('BA Form 2 Event Data'!U21<AQ$65,AQ$65,IF('BA Form 2 Event Data'!U21>AR$65,AR$65,'BA Form 2 Event Data'!U21-'BA Form 2 Event Data'!J21))),(IF(S$9=\"Western\",(IF('BA Form 2 Event Data'!U21<AQ$66,AQ$66,IF('BA Form 2 Event Data'!U21>AR$66,AR$66,'BA Form 2 Event Data'!U21-'BA Form 2 Event Data'!J21))),(IF(S$9=\"ERCOT\",(IF('BA Form 2 Event Data'!U21<AQ$67,AQ$67,IF('BA Form 2 Event Data'!U21>AR$67,AR$67,'BA Form 2 Event Data'!U21-'BA Form 2 Event Data'!J21))),(IF('BA Form 2 Event Data'!U21<AQ$68,AQ$68,IF('BA Form 2 Event Data'!U21>AR$68,AR$68,'BA Form 2 Event Data'!U21-'BA Form 2 Event Data'!J21)))))))))),\"\"))","v":""},"Y","",-179,"Interconnection Frequency Response Obligation (FRO) MW/0.1 Hz.  Determined by ERO.",null,{"$f":"'BA Form 2 Event Data'!S21","v":0},{"$f":"'BA Form 2 Event Data'!AG21","v":0},null,null,null,null,null,null,null,null,null,null,null,null,null,null,null,null,null,-5.5999755859375E-2,12.32546430163913,null,null,"JOU DS & NL & TFR"]
[15,{"$f":"IF(C19=\" \",\" \",C19+LOOKUP(D19,TimeZones,'TimeZone Ref'!C$2:C$11))","v":"06:00:00"},null,"CST",{"$f":"IF(C19=\" \",\" \",B19-LOOKUP(F19,TimeZones,'TimeZone Ref'!C$2:C$11))","v":"00:00:00"},"CST",null,{"$f":"'BA Form 2 Event Data'!E22","v":"00:00:00"},{"$f":"'BA Form 2 Event Data'!U22-'BA Form 2 Event Data'!J22","v":0},{"$f":"IF('Data Entry'!G19<0,(IF('Data Entry'!S$9=\"Eastern\",(IF('BA Form 2 Event Data'!U22<'Data Entry'!AQ$65,'Data Entry'!AQ$65-'BA Form 2 Event Data'!J22,'BA Form 2 Event Data'!U22-'BA Form 2 Event Data'!J22)),(IF('BA Form 2 Event Data'!U22<'Data Entry'!AQ$66,'Data Entry'!AQ$66-'BA Form 2 Event Data'!J22,'BA Form 2 Event Data'!U22-'BA Form 2 Event Data'!J22)))),(IF('Data Entry'!S$9=\"Eastern\",(IF('BA Form 2 Event Data'!U22>'Data Entry'!AR$65,'Data Entry'!AR$65-'BA Form 2 Event Data'!J22,'BA Form 2 Event Data'!U22-'BA Form 2 Event Data'!J22)),(IF('BA Form 2 Event Data'!U22>'Data Entry'!AR$66,'Data Entry'!AR$66-'BA Form 2 Event Data'!J22,'BA Form 2 Event Data'!U22-'BA Form 2 Event Data'!J22)))))","v":0},{"$f":"'BA Form 2 Event Data'!V22","v":0},{"$f":"IF(CELL(\"type\",Adjustments!$V18) = \"v\",(Adjustments!$D18+Adjustments!$G18+Adjustments!$J18+Adjustments!$M18+Adjustments!$S18),0)","v":0},{"$f":"'BA Form 2 Event Data'!K22","v":0},{"$f":"IF(CELL(\"type\",Adjustments!$V18) = \"v\",(Adjustments!$E18+Adjustments!$H18+Adjustments!$K18+Adjustments!$N18+Adjustments!$Q18+Adjustments!$T18),0)","v":0},"",{"$f":"IF($Q19=\"y\", \"\",IF(CELL(\"type\",$I19) = \"v\",(($M19-$N19)-($K19-$L19))/(10*(IF(S$9=\"Eastern\",(IF('BA Form 2 Event Data'!U22<AQ$65,AQ$65,IF('BA Form 2 Event Data'!U22>AR$65,AR$65,'BA Form 2 Event Data'!U22-'BA Form 2 Event Data'!J22))),(IF(S$9=\"Western\",(IF('BA Form 2 Event Data'!U22<AQ$66,AQ$66,IF('BA Form 2 Event Data'!U22>AR$66,AR$66,'BA Form 2 Event Data'!U22-'BA Form 2 Event Data'!J22))),(IF(S$9=\"ERCOT\",(IF('BA Form 2 Event Data'!U22<AQ$67,AQ$67,IF('BA Form 2 Event Data'!U22>AR$67,AR$67,'BA Form 2 Event Data'!U22-'BA Form 2 Event Data'!J22))),(IF('BA Form 2 Event Data'!U22<AQ$68,AQ$68,IF('BA Form 2 Event Data'!U22>AR$68,AR$68,'BA Form 2 Event Data'!U22-'BA Form 2 Event Data'!J22)))))))))),\"\"))","v":""},"Y","",{"$f":"YEAR(C10)","v":1900},"Current data year (December thru November)",null,{"$f":"'BA Form 2 Event Data'!S22","v":0},{"$f":"'BA Form 2 Event Data'!AG22","v":0},null,null,null,null,null,null,null,null,null,null,null,null,null,null,null,null,null,-5.8498382568359375E-2,0.75019184748331469,null,null,"DS & NL & CBA"]
[16,{"$f":"IF(C20=\" \",\" \",C20+LOOKUP(D20,TimeZones,'TimeZone Ref'!C$2:C$11))","v":"06:00:00"},null,"CST",{"$f":"IF(C20=\" \",\" \",B20-LOOKUP(F20,TimeZones,'TimeZone Ref'!C$2:C$11))","v":"00:00:00"},"CST",null,{"$f":"'BA Form 2 Event Data'!E23","v":"00:00:00"},{"$f":"'BA Form 2 Event Data'!U23-'BA Form 2 Event Data'!J23","v":0},{"$f":"IF('Data Entry'!G20<0,(IF('Data Entry'!S$9=\"Eastern\",(IF('BA Form 2 Event Data'!U23<'Data Entry'!AQ$65,'Data Entry'!AQ$65-'BA Form 2 Event Data'!J23,'BA Form 2 Event Data'!U23-'BA Form 2 Event Data'!J23)),(IF('BA Form 2 Event Data'!U23<'Data Entry'!AQ$66,'Data Entry'!AQ$66-'BA Form 2 Event Data'!J23,'BA Form 2 Event Data'!U23-'BA Form 2 Event Data'!J23)))),(IF('Data Entry'!S$9=\"Eastern\",(IF('BA Form 2 Event Data'!U23>'Data Entry'!AR$65,'Data Entry'!AR$65-'BA Form 2 Event Data'!J23,'BA Form 2 Event Data'!U23-'BA Form 2 Event Data'!J23)),(IF('BA Form 2 Event Data'!U23>'Data Entry'!AR$66,'Data Entry'!AR$66-'BA Form 2 Event Data'!J23,'BA Form 2 Event Data'!U23-'BA Form 2 Event Data'!J23)))))","v":0},{"$f":"'BA Form 2 Event Data'!V23","v":0},{"$f":"IF(CELL(\"type\",Adjustments!$V19) = \"v\",(Adjustments!$D19+Adjustments!$G19+Adjustments!$J19+Adjustments!$M19+Adjustments!$S19),0)","v":0},{"$f":"'BA Form 2 Event Data'!K23","v":0},{"$f":"IF(CELL(\"type\",Adjustments!$V19) = \"v\",(Adjustments!$E19+Adjustments!$H19+Adjustments!$K19+Adjustments!$N19+Adjustments!$Q19+Adjustments!$T19),0)","v":0},"",{"$f":"IF($Q20=\"y\", \"\",IF(CELL(\"type\",$I20) = \"v\",(($M20-$N20)-($K20-$L20))/(10*(IF(S$9=\"Eastern\",(IF('BA Form 2 Event Data'!U23<AQ$65,AQ$65,IF('BA Form 2 Event Data'!U23>AR$65,AR$65,'BA Form 2 Event Data'!U23-'BA Form 2 Event Data'!J23))),(IF(S$9=\"Western\",(IF('BA Form 2 Event Data'!U23<AQ$66,AQ$66,IF('BA Form 2 Event Data'!U23>AR$66,AR$66,'BA Form 2 Event Data'!U23-'BA Form 2 Event Data'!J23))),(IF(S$9=\"ERCOT\",(IF('BA Form 2 Event Data'!U23<AQ$67,AQ$67,IF('BA Form 2 Event Data'!U23>AR$67,AR$67,'BA Form 2 Event Data'!U23-'BA Form 2 Event Data'!J23))),(IF('BA Form 2 Event Data'!U23<AQ$68,AQ$68,IF('BA Form 2 Event Data'!U23>AR$68,AR$68,'BA Form 2 Event Data'!U23-'BA Form 2 Event Data'!J23)))))))))),\"\"))","v":""},"Y","",{"$f":"S18*(S14+S15)/(S16+S17)","v":-179},{"$f":"S8&\" BA Frequency Response Obligation (FRO) for next year's FRM\"","v":"1901 BA Frequency Response Obligation (FRO) for next year's FRM"},null,{"$f":"'BA Form 2 Event Data'!S23","v":0},{"$f":"'BA Form 2 Event Data'!AG23","v":0},null,null,null,null,null,null,null,null,null,null,null,null,null,null,null,null,null,-4.850006103515625E-2,2.2300577799479129,null,null,"DS & NL & PH & ID"]
[17,{"$f":"IF(C21=\" \",\" \",C21+LOOKUP(D21,TimeZones,'TimeZone Ref'!C$2:C$11))","v":"06:00:00"},null,"CST",{"$f":"IF(C21=\" \",\" \",B21-LOOKUP(F21,TimeZones,'TimeZone Ref'!C$2:C$11))","v":"00:00:00"},"CST",null,{"$f":"'BA Form 2 Event Data'!E24","v":"00:00:00"},{"$f":"'BA Form 2 Event Data'!U24-'BA Form 2 Event Data'!J24","v":0},{"$f":"IF('Data Entry'!G21<0,(IF('Data Entry'!S$9=\"Eastern\",(IF('BA Form 2 Event Data'!U24<'Data Entry'!AQ$65,'Data Entry'!AQ$65-'BA Form 2 Event Data'!J24,'BA Form 2 Event Data'!U24-'BA Form 2 Event Data'!J24)),(IF('BA Form 2 Event Data'!U24<'Data Entry'!AQ$66,'Data Entry'!AQ$66-'BA Form 2 Event Data'!J24,'BA Form 2 Event Data'!U24-'BA Form 2 Event Data'!J24)))),(IF('Data Entry'!S$9=\"Eastern\",(IF('BA Form 2 Event Data'!U24>'Data Entry'!AR$65,'Data Entry'!AR$65-'BA Form 2 Event Data'!J24,'BA Form 2 Event Data'!U24-'BA Form 2 Event Data'!J24)),(IF('BA Form 2 Event Data'!U24>'Data Entry'!AR$66,'Data Entry'!AR$66-'BA Form 2 Event Data'!J24,'BA Form 2 Event Data'!U24-'BA Form 2 Event Data'!J24)))))","v":0},{"$f":"'BA Form 2 Event Data'!V24","v":0},{"$f":"IF(CELL(\"type\",Adjustments!$V20) = \"v\",(Adjustments!$D20+Adjustments!$G20+Adjustments!$J20+Adjustments!$M20+Adjustments!$S20),0)","v":0},{"$f":"'BA Form 2 Event Data'!K24","v":0},{"$f":"IF(CELL(\"type\",Adjustments!$V20) = \"v\",(Adjustments!$E20+Adjustments!$H20+Adjustments!$K20+Adjustments!$N20+Adjustments!$Q20+Adjustments!$T20),0)","v":0},"",{"$f":"IF($Q21=\"y\", \"\",IF(CELL(\"type\",$I21) = \"v\",(($M21-$N21)-($K21-$L21))/(10*(IF(S$9=\"Eastern\",(IF('BA Form 2 Event Data'!U24<AQ$65,AQ$65,IF('BA Form 2 Event Data'!U24>AR$65,AR$65,'BA Form 2 Event Data'!U24-'BA Form 2 Event Data'!J24))),(IF(S$9=\"Western\",(IF('BA Form 2 Event Data'!U24<AQ$66,AQ$66,IF('BA Form 2 Event Data'!U24>AR$66,AR$66,'BA Form 2 Event Data'!U24-'BA Form 2 Event Data'!J24))),(IF(S$9=\"ERCOT\",(IF('BA Form 2 Event Data'!U24<AQ$67,AQ$67,IF('BA Form 2 Event Data'!U24>AR$67,AR$67,'BA Form 2 Event Data'!U24-'BA Form 2 Event Data'!J24))),(IF('BA Form 2 Event Data'!U24<AQ$68,AQ$68,IF('BA Form 2 Event Data'!U24>AR$68,AR$68,'BA Form 2 Event Data'!U24-'BA Form 2 Event Data'!J24)))))))))),\"\"))","v":""},"Y","",-179,{"$f":"S19&\" BA Frequency Response Obligation (FRO) for this year's FRM from your last year's Form 1.\"","v":"1900 BA Frequency Response Obligation (FRO) for this year's FRM from your last year's Form 1."},null,{"$f":"'BA Form 2 Event Data'!S24","v":0},{"$f":"'BA Form 2 Event Data'!AG24","v":0},null,null,null,null,null,null,null,null,null,null,null,null,null,null,null,null,null,-4.5000076293945313E-2,9.4778593301773064,null,null,"DS & NL & PH & TFR"]
[18,{"$f":"IF(C22=\" \",\" \",C22+LOOKUP(D22,TimeZones,'TimeZone Ref'!C$2:C$11))","v":"06:00:00"},null,"CST",{"$f":"IF(C22=\" \",\" \",B22-LOOKUP(F22,TimeZones,'TimeZone Ref'!C$2:C$11))","v":"00:00:00"},"CST",null,{"$f":"'BA Form 2 Event Data'!E25","v":"00:00:00"},{"$f":"'BA Form 2 Event Data'!U25-'BA Form 2 Event Data'!J25","v":0},{"$f":"IF('Data Entry'!G22<0,(IF('Data Entry'!S$9=\"Eastern\",(IF('BA Form 2 Event Data'!U25<'Data Entry'!AQ$65,'Data Entry'!AQ$65-'BA Form 2 Event Data'!J25,'BA Form 2 Event Data'!U25-'BA Form 2 Event Data'!J25)),(IF('BA Form 2 Event Data'!U25<'Data Entry'!AQ$66,'Data Entry'!AQ$66-'BA Form 2 Event Data'!J25,'BA Form 2 Event Data'!U25-'BA Form 2 Event Data'!J25)))),(IF('Data Entry'!S$9=\"Eastern\",(IF('BA Form 2 Event Data'!U25>'Data Entry'!AR$65,'Data Entry'!AR$65-'BA Form 2 Event Data'!J25,'BA Form 2 Event Data'!U25-'BA Form 2 Event Data'!J25)),(IF('BA Form 2 Event Data'!U25>'Data Entry'!AR$66,'Data Entry'!AR$66-'BA Form 2 Event Data'!J25,'BA Form 2 Event Data'!U25-'BA Form 2 Event Data'!J25)))))","v":0},{"$f":"'BA Form 2 Event Data'!V25","v":0},{"$f":"IF(CELL(\"type\",Adjustments!$V21) = \"v\",(Adjustments!$D21+Adjustments!$G21+Adjustments!$J21+Adjustments!$M21+Adjustments!$S21),0)","v":0},{"$f":"'BA Form 2 Event Data'!K25","v":0},{"$f":"IF(CELL(\"type\",Adjustments!$V21) = \"v\",(Adjustments!$E21+Adjustments!$H21+Adjustments!$K21+Adjustments!$N21+Adjustments!$Q21+Adjustments!$T21),0)","v":0},"",{"$f":"IF($Q22=\"y\", \"\",IF(CELL(\"type\",$I22) = \"v\",(($M22-$N22)-($K22-$L22))/(10*(IF(S$9=\"Eastern\",(IF('BA Form 2 Event Data'!U25<AQ$65,AQ$65,IF('BA Form 2 Event Data'!U25>AR$65,AR$65,'BA Form 2 Event Data'!U25-'BA Form 2 Event Data'!J25))),(IF(S$9=\"Western\",(IF('BA Form 2 Event Data'!U25<AQ$66,AQ$66,IF('BA Form 2 Event Data'!U25>AR$66,AR$66,'BA Form 2 Event Data'!U25-'BA Form 2 Event Data'!J25))),(IF(S$9=\"ERCOT\",(IF('BA Form 2 Event Data'!U25<AQ$67,AQ$67,IF('BA Form 2 Event Data'!U25>AR$67,AR$67,'BA Form 2 Event Data'!U25-'BA Form 2 Event Data'!J25))),(IF('BA Form 2 Event Data'!U25<AQ$68,AQ$68,IF('BA Form 2 Event Data'!U25>AR$68,AR$68,'BA Form 2 Event Data'!U25-'BA Form 2 Event Data'!J25)))))))))),\"\"))","v":""},"Y","",null,null,null,{"$f":"'BA Form 2 Event Data'!S25","v":0},{"$f":"'BA Form 2 Event Data'!AG25","v":0},null,null,null,null,null,null,null,null,null,null,null,null,null,null,null,null,null,-3.7502288818359375E-2,0.35530900955200195,null,null,"DS & NL & PH & CBA"]
[19,{"$f":"IF(C23=\" \",\" \",C23+LOOKUP(D23,TimeZones,'TimeZone Ref'!C$2:C$11))","v":"06:00:00"},null,"CST",{"$f":"IF(C23=\" \",\" \",B23-LOOKUP(F23,TimeZones,'TimeZone Ref'!C$2:C$11))","v":"00:00:00"},"CST",null,{"$f":"'BA Form 2 Event Data'!E26","v":"00:00:00"},{"$f":"'BA Form 2 Event Data'!U26-'BA Form 2 Event Data'!J26","v":0},{"$f":"IF('Data Entry'!G23<0,(IF('Data Entry'!S$9=\"Eastern\",(IF('BA Form 2 Event Data'!U26<'Data Entry'!AQ$65,'Data Entry'!AQ$65-'BA Form 2 Event Data'!J26,'BA Form 2 Event Data'!U26-'BA Form 2 Event Data'!J26)),(IF('BA Form 2 Event Data'!U26<'Data Entry'!AQ$66,'Data Entry'!AQ$66-'BA Form 2 Event Data'!J26,'BA Form 2 Event Data'!U26-'BA Form 2 Event Data'!J26)))),(IF('Data Entry'!S$9=\"Eastern\",(IF('BA Form 2 Event Data'!U26>'Data Entry'!AR$65,'Data Entry'!AR$65-'BA Form 2 Event Data'!J26,'BA Form 2 Event Data'!U26-'BA Form 2 Event Data'!J26)),(IF('BA Form 2 Event Data'!U26>'Data Entry'!AR$66,'Data Entry'!AR$66-'BA Form 2 Event Data'!J26,'BA Form 2 Event Data'!U26-'BA Form 2 Event Data'!J26)))))","v":0},{"$f":"'BA Form 2 Event Data'!V26","v":0},{"$f":"IF(CELL(\"type\",Adjustments!$V22) = \"v\",(Adjustments!$D22+Adjustments!$G22+Adjustments!$J22+Adjustments!$M22+Adjustments!$S22),0)","v":0},{"$f":"'BA Form 2 Event Data'!K26","v":0},{"$f":"IF(CELL(\"type\",Adjustments!$V22) = \"v\",(Adjustments!$E22+Adjustments!$H22+Adjustments!$K22+Adjustments!$N22+Adjustments!$Q22+Adjustments!$T22),0)","v":0},"",{"$f":"IF($Q23=\"y\", \"\",IF(CELL(\"type\",$I23) = \"v\",(($M23-$N23)-($K23-$L23))/(10*(IF(S$9=\"Eastern\",(IF('BA Form 2 Event Data'!U26<AQ$65,AQ$65,IF('BA Form 2 Event Data'!U26>AR$65,AR$65,'BA Form 2 Event Data'!U26-'BA Form 2 Event Data'!J26))),(IF(S$9=\"Western\",(IF('BA Form 2 Event Data'!U26<AQ$66,AQ$66,IF('BA Form 2 Event Data'!U26>AR$66,AR$66,'BA Form 2 Event Data'!U26-'BA Form 2 Event Data'!J26))),(IF(S$9=\"ERCOT\",(IF('BA Form 2 Event Data'!U26<AQ$67,AQ$67,IF('BA Form 2 Event Data'!U26>AR$67,AR$67,'BA Form 2 Event Data'!U26-'BA Form 2 Event Data'!J26))),(IF('BA Form 2 Event Data'!U26<AQ$68,AQ$68,IF('BA Form 2 Event Data'!U26>AR$68,AR$68,'BA Form 2 Event Data'!U26-'BA Form 2 Event Data'!J26)))))))))),\"\"))","v":""},"Y","",null,"BA Bias Type and Bias Setting",null,{"$f":"'BA Form 2 Event Data'!S26","v":0},{"$f":"'BA Form 2 Event Data'!AG26","v":0},null,null,null,null,null,null,null,null,null,null,null,null,null,null,null,null,null,-4.75006103515625E-2,2.1707018534342453,null,null,"DS & NL & PH & ID & TFR"]
[20,{"$f":"IF(C24=\" \",\" \",C24+LOOKUP(D24,TimeZones,'TimeZone Ref'!C$2:C$11))","v":"06:00:00"},null,"CST",{"$f":"IF(C24=\" \",\" \",B24-LOOKUP(F24,TimeZones,'TimeZone Ref'!C$2:C$11))","v":"00:00:00"},"CST",null,{"$f":"'BA Form 2 Event Data'!E27","v":"00:00:00"},{"$f":"'BA Form 2 Event Data'!U27-'BA Form 2 Event Data'!J27","v":0},{"$f":"IF('Data Entry'!G24<0,(IF('Data Entry'!S$9=\"Eastern\",(IF('BA Form 2 Event Data'!U27<'Data Entry'!AQ$65,'Data Entry'!AQ$65-'BA Form 2 Event Data'!J27,'BA Form 2 Event Data'!U27-'BA Form 2 Event Data'!J27)),(IF('BA Form 2 Event Data'!U27<'Data Entry'!AQ$66,'Data Entry'!AQ$66-'BA Form 2 Event Data'!J27,'BA Form 2 Event Data'!U27-'BA Form 2 Event Data'!J27)))),(IF('Data Entry'!S$9=\"Eastern\",(IF('BA Form 2 Event Data'!U27>'Data Entry'!AR$65,'Data Entry'!AR$65-'BA Form 2 Event Data'!J27,'BA Form 2 Event Data'!U27-'BA Form 2 Event Data'!J27)),(IF('BA Form 2 Event Data'!U27>'Data Entry'!AR$66,'Data Entry'!AR$66-'BA Form 2 Event Data'!J27,'BA Form 2 Event Data'!U27-'BA Form 2 Event Data'!J27)))))","v":0},{"$f":"'BA Form 2 Event Data'!V27","v":0},{"$f":"IF(CELL(\"type\",Adjustments!$V23) = \"v\",(Adjustments!$D23+Adjustments!$G23+Adjustments!$J23+Adjustments!$M23+Adjustments!$S23),0)","v":0},{"$f":"'BA Form 2 Event Data'!K27","v":0},{"$f":"IF(CELL(\"type\",Adjustments!$V23) = \"v\",(Adjustments!$E23+Adjustments!$H23+Adjustments!$K23+Adjustments!$N23+Adjustments!$Q23+Adjustments!$T23),0)","v":0},"",{"$f":"IF($Q24=\"y\", \"\",IF(CELL(\"type\",$I24) = \"v\",(($M24-$N24)-($K24-$L24))/(10*(IF(S$9=\"Eastern\",(IF('BA Form 2 Event Data'!U27<AQ$65,AQ$65,IF('BA Form 2 Event Data'!U27>AR$65,AR$65,'BA Form 2 Event Data'!U27-'BA Form 2 Event Data'!J27))),(IF(S$9=\"Western\",(IF('BA Form 2 Event Data'!U27<AQ$66,AQ$66,IF('BA Form 2 Event Data'!U27>AR$66,AR$66,'BA Form 2 Event Data'!U27-'BA Form 2 Event Data'!J27))),(IF(S$9=\"ERCOT\",(IF('BA Form 2 Event Data'!U27<AQ$67,AQ$67,IF('BA Form 2 Event Data'!U27>AR$67,AR$67,'BA Form 2 Event Data'!U27-'BA Form 2 Event Data'!J27))),(IF('BA Form 2 Event Data'!U27<AQ$68,AQ$68,IF('BA Form 2 Event Data'!U27>AR$68,AR$68,'BA Form 2 Event Data'!U27-'BA Form 2 Event Data'!J27)))))))))),\"\"))","v":""},"Y","","Fixed","Bias Type utilized.",null,{"$f":"'BA Form 2 Event Data'!S27","v":0},{"$f":"'BA Form 2 Event Data'!AG27","v":0},null,null,null,null,null,null,null,null,null,null,null,null,null,null,null,null,null,-5.5500030517578125E-2,29.382074276606243,null,null,"DS & NL & PH & ID & CBA"]
[21,{"$f":"IF(C25=\" \",\" \",C25+LOOKUP(D25,TimeZones,'TimeZone Ref'!C$2:C$11))","v":"06:00:00"},null,"CST",{"$f":"IF(C25=\" \",\" \",B25-LOOKUP(F25,TimeZones,'TimeZone Ref'!C$2:C$11))","v":"00:00:00"},"CST",null,{"$f":"'BA Form 2 Event Data'!E28","v":"00:00:00"},{"$f":"'BA Form 2 Event Data'!U28-'BA Form 2 Event Data'!J28","v":0},{"$f":"IF('Data Entry'!G25<0,(IF('Data Entry'!S$9=\"Eastern\",(IF('BA Form 2 Event Data'!U28<'Data Entry'!AQ$65,'Data Entry'!AQ$65-'BA Form 2 Event Data'!J28,'BA Form 2 Event Data'!U28-'BA Form 2 Event Data'!J28)),(IF('BA Form 2 Event Data'!U28<'Data Entry'!AQ$66,'Data Entry'!AQ$66-'BA Form 2 Event Data'!J28,'BA Form 2 Event Data'!U28-'BA Form 2 Event Data'!J28)))),(IF('Data Entry'!S$9=\"Eastern\",(IF('BA Form 2 Event Data'!U28>'Data Entry'!AR$65,'Data Entry'!AR$65-'BA Form 2 Event Data'!J28,'BA Form 2 Event Data'!U28-'BA Form 2 Event Data'!J28)),(IF('BA Form 2 Event Data'!U28>'Data Entry'!AR$66,'Data Entry'!AR$66-'BA Form 2 Event Data'!J28,'BA Form 2 Event Data'!U28-'BA Form 2 Event Data'!J28)))))","v":0},{"$f":"'BA Form 2 Event Data'!V28","v":0},{"$f":"IF(CELL(\"type\",Adjustments!$V24) = \"v\",(Adjustments!$D24+Adjustments!$G24+Adjustments!$J24+Adjustments!$M24+Adjustments!$S24),0)","v":0},{"$f":"'BA Form 2 Event Data'!K28","v":0},{"$f":"IF(CELL(\"type\",Adjustments!$V24) = \"v\",(Adjustments!$E24+Adjustments!$H24+Adjustments!$K24+Adjustments!$N24+Adjustments!$Q24+Adjustments!$T24),0)","v":0},"",{"$f":"IF($Q25=\"y\", \"\",IF(CELL(\"type\",$I25) = \"v\",(($M25-$N25)-($K25-$L25))/(10*(IF(S$9=\"Eastern\",(IF('BA Form 2 Event Data'!U28<AQ$65,AQ$65,IF('BA Form 2 Event Data'!U28>AR$65,AR$65,'BA Form 2 Event Data'!U28-'BA Form 2 Event Data'!J28))),(IF(S$9=\"Western\",(IF('BA Form 2 Event Data'!U28<AQ$66,AQ$66,IF('BA Form 2 Event Data'!U28>AR$66,AR$66,'BA Form 2 Event Data'!U28-'BA Form 2 Event Data'!J28))),(IF(S$9=\"ERCOT\",(IF('BA Form 2 Event Data'!U28<AQ$67,AQ$67,IF('BA Form 2 Event Data'!U28>AR$67,AR$67,'BA Form 2 Event Data'!U28-'BA Form 2 Event Data'!J28))),(IF('BA Form 2 Event Data'!U28<AQ$68,AQ$68,IF('BA Form 2 Event Data'!U28>AR$68,AR$68,'BA Form 2 Event Data'!U28-'BA Form 2 Event Data'!J28)))))))))),\"\"))","v":""},"Y","",8.9999999999999993E-3,"Interconnection Minimum Fixed Frequency Bias Setting % of Peak Demand or Peak Generation (Set by ERO)",null,{"$f":"'BA Form 2 Event Data'!S28","v":0},{"$f":"'BA Form 2 Event Data'!AG28","v":0},null,null,null,null,null,null,null,null,null,null,null,null,null,null,null,null,null,-4.7E-2,4.6013813018798828,null,null,"DS & NL & PH & ID & TFR & CBA"]
[22,{"$f":"IF(C26=\" \",\" \",C26+LOOKUP(D26,TimeZones,'TimeZone Ref'!C$2:C$11))","v":"06:00:00"},null,"CST",{"$f":"IF(C26=\" \",\" \",B26-LOOKUP(F26,TimeZones,'TimeZone Ref'!C$2:C$11))","v":"00:00:00"},"CST",null,{"$f":"'BA Form 2 Event Data'!E29","v":"00:00:00"},{"$f":"'BA Form 2 Event Data'!U29-'BA Form 2 Event Data'!J29","v":0},{"$f":"IF('Data Entry'!G26<0,(IF('Data Entry'!S$9=\"Eastern\",(IF('BA Form 2 Event Data'!U29<'Data Entry'!AQ$65,'Data Entry'!AQ$65-'BA Form 2 Event Data'!J29,'BA Form 2 Event Data'!U29-'BA Form 2 Event Data'!J29)),(IF('BA Form 2 Event Data'!U29<'Data Entry'!AQ$66,'Data Entry'!AQ$66-'BA Form 2 Event Data'!J29,'BA Form 2 Event Data'!U29-'BA Form 2 Event Data'!J29)))),(IF('Data Entry'!S$9=\"Eastern\",(IF('BA Form 2 Event Data'!U29>'Data Entry'!AR$65,'Data Entry'!AR$65-'BA Form 2 Event Data'!J29,'BA Form 2 Event Data'!U29-'BA Form 2 Event Data'!J29)),(IF('BA Form 2 Event Data'!U29>'Data Entry'!AR$66,'Data Entry'!AR$66-'BA Form 2 Event Data'!J29,'BA Form 2 Event Data'!U29-'BA Form 2 Event Data'!J29)))))","v":0},{"$f":"'BA Form 2 Event Data'!V29","v":0},{"$f":"IF(CELL(\"type\",Adjustments!$V25) = \"v\",(Adjustments!$D25+Adjustments!$G25+Adjustments!$J25+Adjustments!$M25+Adjustments!$S25),0)","v":0},{"$f":"'BA Form 2 Event Data'!K29","v":0},{"$f":"IF(CELL(\"type\",Adjustments!$V25) = \"v\",(Adjustments!$E25+Adjustments!$H25+Adjustments!$K25+Adjustments!$N25+Adjustments!$Q25+Adjustments!$T25),0)","v":0},"",{"$f":"IF($Q26=\"y\", \"\",IF(CELL(\"type\",$I26) = \"v\",(($M26-$N26)-($K26-$L26))/(10*(IF(S$9=\"Eastern\",(IF('BA Form 2 Event Data'!U29<AQ$65,AQ$65,IF('BA Form 2 Event Data'!U29>AR$65,AR$65,'BA Form 2 Event Data'!U29-'BA Form 2 Event Data'!J29))),(IF(S$9=\"Western\",(IF('BA Form 2 Event Data'!U29<AQ$66,AQ$66,IF('BA Form 2 Event Data'!U29>AR$66,AR$66,'BA Form 2 Event Data'!U29-'BA Form 2 Event Data'!J29))),(IF(S$9=\"ERCOT\",(IF('BA Form 2 Event Data'!U29<AQ$67,AQ$67,IF('BA Form 2 Event Data'!U29>AR$67,AR$67,'BA Form 2 Event Data'!U29-'BA Form 2 Event Data'!J29))),(IF('BA Form 2 Event Data'!U29<AQ$68,AQ$68,IF('BA Form 2 Event Data'!U29>AR$68,AR$68,'BA Form 2 Event Data'!U29-'BA Form 2 Event Data'!J29)))))))))),\"\"))","v":""},"Y","",37153,"The Sum of the Non-Coincident peak demands for all Bas on the interconnection from FERC Form No. 714, provided by ERO.",null,{"$f":"'BA Form 2 Event Data'!S29","v":0},{"$f":"'BA Form 2 Event Data'!AG29","v":0},null,null,null,null,null,null,null,null,null,null,null,null,null,null,null,null,null,-6.0000000000002274E-2,1.5935148795445762,null,null,"NL & PH"]
[23,{"$f":"IF(C27=\" \",\" \",C27+LOOKUP(D27,TimeZones,'TimeZone Ref'!C$2:C$11))","v":"06:00:00"},null,"CST",{"$f":"IF(C27=\" \",\" \",B27-LOOKUP(F27,TimeZones,'TimeZone Ref'!C$2:C$11))","v":"00:00:00"},"CST",null,{"$f":"'BA Form 2 Event Data'!E30","v":"00:00:00"},{"$f":"'BA Form 2 Event Data'!U30-'BA Form 2 Event Data'!J30","v":0},{"$f":"IF('Data Entry'!G27<0,(IF('Data Entry'!S$9=\"Eastern\",(IF('BA Form 2 Event Data'!U30<'Data Entry'!AQ$65,'Data Entry'!AQ$65-'BA Form 2 Event Data'!J30,'BA Form 2 Event Data'!U30-'BA Form 2 Event Data'!J30)),(IF('BA Form 2 Event Data'!U30<'Data Entry'!AQ$66,'Data Entry'!AQ$66-'BA Form 2 Event Data'!J30,'BA Form 2 Event Data'!U30-'BA Form 2 Event Data'!J30)))),(IF('Data Entry'!S$9=\"Eastern\",(IF('BA Form 2 Event Data'!U30>'Data Entry'!AR$65,'Data Entry'!AR$65-'BA Form 2 Event Data'!J30,'BA Form 2 Event Data'!U30-'BA Form 2 Event Data'!J30)),(IF('BA Form 2 Event Data'!U30>'Data Entry'!AR$66,'Data Entry'!AR$66-'BA Form 2 Event Data'!J30,'BA Form 2 Event Data'!U30-'BA Form 2 Event Data'!J30)))))","v":0},{"$f":"'BA Form 2 Event Data'!V30","v":0},{"$f":"IF(CELL(\"type\",Adjustments!$V26) = \"v\",(Adjustments!$D26+Adjustments!$G26+Adjustments!$J26+Adjustments!$M26+Adjustments!$S26),0)","v":0},{"$f":"'BA Form 2 Event Data'!K30","v":0},{"$f":"IF(CELL(\"type\",Adjustments!$V26) = \"v\",(Adjustments!$E26+Adjustments!$H26+Adjustments!$K26+Adjustments!$N26+Adjustments!$Q26+Adjustments!$T26),0)","v":0},"",{"$f":"IF($Q27=\"y\", \"\",IF(CELL(\"type\",$I27) = \"v\",(($M27-$N27)-($K27-$L27))/(10*(IF(S$9=\"Eastern\",(IF('BA Form 2 Event Data'!U30<AQ$65,AQ$65,IF('BA Form 2 Event Data'!U30>AR$65,AR$65,'BA Form 2 Event Data'!U30-'BA Form 2 Event Data'!J30))),(IF(S$9=\"Western\",(IF('BA Form 2 Event Data'!U30<AQ$66,AQ$66,IF('BA Form 2 Event Data'!U30>AR$66,AR$66,'BA Form 2 Event Data'!U30-'BA Form 2 Event Data'!J30))),(IF(S$9=\"ERCOT\",(IF('BA Form 2 Event Data'!U30<AQ$67,AQ$67,IF('BA Form 2 Event Data'!U30>AR$67,AR$67,'BA Form 2 Event Data'!U30-'BA Form 2 Event Data'!J30))),(IF('BA Form 2 Event Data'!U30<AQ$68,AQ$68,IF('BA Form 2 Event Data'!U30>AR$68,AR$68,'BA Form 2 Event Data'!U30-'BA Form 2 Event Data'!J30)))))))))),\"\"))","v":""},"Y","",{"$f":"IF(S24=\"Variable\",\"n/a\",(S26*S25*-1)*((S14+S15)/(S16+S17)))","v":-334.37699999999995},"Your BA's lowest absolute Fixed Frequency Bias Setting based on interconnection non-coincident peak demand.",null,{"$f":"'BA Form 2 Event Data'!S30","v":0},{"$f":"'BA Form 2 Event Data'!AG30","v":0},null,null,null,null,null,null,null,null,null,null,null,null,null,null,null,null,null,-5.9999999999995168E-2,52.370907783508301,null,null,"NL & ID"]
[24,{"$f":"IF(C28=\" \",\" \",C28+LOOKUP(D28,TimeZones,'TimeZone Ref'!C$2:C$11))","v":"06:00:00"},null,"CST",{"$f":"IF(C28=\" \",\" \",B28-LOOKUP(F28,TimeZones,'TimeZone Ref'!C$2:C$11))","v":"00:00:00"},"CST",null,{"$f":"'BA Form 2 Event Data'!E31","v":"00:00:00"},{"$f":"'BA Form 2 Event Data'!U31-'BA Form 2 Event Data'!J31","v":0},{"$f":"IF('Data Entry'!G28<0,(IF('Data Entry'!S$9=\"Eastern\",(IF('BA Form 2 Event Data'!U31<'Data Entry'!AQ$65,'Data Entry'!AQ$65-'BA Form 2 Event Data'!J31,'BA Form 2 Event Data'!U31-'BA Form 2 Event Data'!J31)),(IF('BA Form 2 Event Data'!U31<'Data Entry'!AQ$66,'Data Entry'!AQ$66-'BA Form 2 Event Data'!J31,'BA Form 2 Event Data'!U31-'BA Form 2 Event Data'!J31)))),(IF('Data Entry'!S$9=\"Eastern\",(IF('BA Form 2 Event Data'!U31>'Data Entry'!AR$65,'Data Entry'!AR$65-'BA Form 2 Event Data'!J31,'BA Form 2 Event Data'!U31-'BA Form 2 Event Data'!J31)),(IF('BA Form 2 Event Data'!U31>'Data Entry'!AR$66,'Data Entry'!AR$66-'BA Form 2 Event Data'!J31,'BA Form 2 Event Data'!U31-'BA Form 2 Event Data'!J31)))))","v":0},{"$f":"'BA Form 2 Event Data'!V31","v":0},{"$f":"IF(CELL(\"type\",Adjustments!$V27) = \"v\",(Adjustments!$D27+Adjustments!$G27+Adjustments!$J27+Adjustments!$M27+Adjustments!$S27),0)","v":0},{"$f":"'BA Form 2 Event Data'!K31","v":0},{"$f":"IF(CELL(\"type\",Adjustments!$V27) = \"v\",(Adjustments!$E27+Adjustments!$H27+Adjustments!$K27+Adjustments!$N27+Adjustments!$Q27+Adjustments!$T27),0)","v":0},"",{"$f":"IF($Q28=\"y\", \"\",IF(CELL(\"type\",$I28) = \"v\",(($M28-$N28)-($K28-$L28))/(10*(IF(S$9=\"Eastern\",(IF('BA Form 2 Event Data'!U31<AQ$65,AQ$65,IF('BA Form 2 Event Data'!U31>AR$65,AR$65,'BA Form 2 Event Data'!U31-'BA Form 2 Event Data'!J31))),(IF(S$9=\"Western\",(IF('BA Form 2 Event Data'!U31<AQ$66,AQ$66,IF('BA Form 2 Event Data'!U31>AR$66,AR$66,'BA Form 2 Event Data'!U31-'BA Form 2 Event Data'!J31))),(IF(S$9=\"ERCOT\",(IF('BA Form 2 Event Data'!U31<AQ$67,AQ$67,IF('BA Form 2 Event Data'!U31>AR$67,AR$67,'BA Form 2 Event Data'!U31-'BA Form 2 Event Data'!J31))),(IF('BA Form 2 Event Data'!U31<AQ$68,AQ$68,IF('BA Form 2 Event Data'!U31>AR$68,AR$68,'BA Form 2 Event Data'!U31-'BA Form 2 Event Data'!J31)))))))))),\"\"))","v":""},"Y","",{"$f":"IF(S$24=\"Fixed\",(S$37),\"n/a\")","v":{"$error":"#DIV/0!"}},"Your BA's lowest absolute Fixed Frequency Bias Setting based on 100% of FRM.",null,{"$f":"'BA Form 2 Event Data'!S31","v":0},{"$f":"'BA Form 2 Event Data'!AG31","v":0},null,null,null,null,null,null,null,null,null,null,null,null,null,null,null,null,null,-5.1000000000001933E-2,33.947873671849564,null,null,"NL & TFR"]
[25,{"$f":"IF(C29=\" \",\" \",C29+LOOKUP(D29,TimeZones,'TimeZone Ref'!C$2:C$11))","v":"06:00:00"},null,"CST",{"$f":"IF(C29=\" \",\" \",B29-LOOKUP(F29,TimeZones,'TimeZone Ref'!C$2:C$11))","v":"00:00:00"},"CST",null,{"$f":"'BA Form 2 Event Data'!E32","v":"00:00:00"},{"$f":"'BA Form 2 Event Data'!U32-'BA Form 2 Event Data'!J32","v":0},{"$f":"IF('Data Entry'!G29<0,(IF('Data Entry'!S$9=\"Eastern\",(IF('BA Form 2 Event Data'!U32<'Data Entry'!AQ$65,'Data Entry'!AQ$65-'BA Form 2 Event Data'!J32,'BA Form 2 Event Data'!U32-'BA Form 2 Event Data'!J32)),(IF('BA Form 2 Event Data'!U32<'Data Entry'!AQ$66,'Data Entry'!AQ$66-'BA Form 2 Event Data'!J32,'BA Form 2 Event Data'!U32-'BA Form 2 Event Data'!J32)))),(IF('Data Entry'!S$9=\"Eastern\",(IF('BA Form 2 Event Data'!U32>'Data Entry'!AR$65,'Data Entry'!AR$65-'BA Form 2 Event Data'!J32,'BA Form 2 Event Data'!U32-'BA Form 2 Event Data'!J32)),(IF('BA Form 2 Event Data'!U32>'Data Entry'!AR$66,'Data Entry'!AR$66-'BA Form 2 Event Data'!J32,'BA Form 2 Event Data'!U32-'BA Form 2 Event Data'!J32)))))","v":0},{"$f":"'BA Form 2 Event Data'!V32","v":0},{"$f":"IF(CELL(\"type\",Adjustments!$V28) = \"v\",(Adjustments!$D28+Adjustments!$G28+Adjustments!$J28+Adjustments!$M28+Adjustments!$S28),0)","v":0},{"$f":"'BA Form 2 Event Data'!K32","v":0},{"$f":"IF(CELL(\"type\",Adjustments!$V28) = \"v\",(Adjustments!$E28+Adjustments!$H28+Adjustments!$K28+Adjustments!$N28+Adjustments!$Q28+Adjustments!$T28),0)","v":0},"",{"$f":"IF($Q29=\"y\", \"\",IF(CELL(\"type\",$I29) = \"v\",(($M29-$N29)-($K29-$L29))/(10*(IF(S$9=\"Eastern\",(IF('BA Form 2 Event Data'!U32<AQ$65,AQ$65,IF('BA Form 2 Event Data'!U32>AR$65,AR$65,'BA Form 2 Event Data'!U32-'BA Form 2 Event Data'!J32))),(IF(S$9=\"Western\",(IF('BA Form 2 Event Data'!U32<AQ$66,AQ$66,IF('BA Form 2 Event Data'!U32>AR$66,AR$66,'BA Form 2 Event Data'!U32-'BA Form 2 Event Data'!J32))),(IF(S$9=\"ERCOT\",(IF('BA Form 2 Event Data'!U32<AQ$67,AQ$67,IF('BA Form 2 Event Data'!U32>AR$67,AR$67,'BA Form 2 Event Data'!U32-'BA Form 2 Event Data'!J32))),(IF('BA Form 2 Event Data'!U32<AQ$68,AQ$68,IF('BA Form 2 Event Data'!U32>AR$68,AR$68,'BA Form 2 Event Data'!U32-'BA Form 2 Event Data'!J32)))))))))),\"\"))","v":""},"Y","",{"$f":"IF(S$24=\"Fixed\",(S$37*1.25),\"n/a\")","v":{"$error":"#DIV/0!"}},"Your BA's highest absolute Fixed Bias Setting: 125% of FRM.",null,{"$f":"'BA Form 2 Event Data'!S32","v":0},{"$f":"'BA Form 2 Event Data'!AG32","v":0},null,null,null,null,null,null,null,null,null,null,null,null,null,null,null,null,null,-0.1,100,null,null,"NL & CBA"]
[26,{"$f":"IF(C30=\" \",\" \",C30+LOOKUP(D30,TimeZones,'TimeZone Ref'!C$2:C$11))","v":"06:00:00"},null,"CST",{"$f":"IF(C30=\" \",\" \",B30-LOOKUP(F30,TimeZones,'TimeZone Ref'!C$2:C$11))","v":"00:00:00"},"CST",null,{"$f":"'BA Form 2 Event Data'!E33","v":"00:00:00"},{"$f":"'BA Form 2 Event Data'!U33-'BA Form 2 Event Data'!J33","v":0},{"$f":"IF('Data Entry'!G30<0,(IF('Data Entry'!S$9=\"Eastern\",(IF('BA Form 2 Event Data'!U33<'Data Entry'!AQ$65,'Data Entry'!AQ$65-'BA Form 2 Event Data'!J33,'BA Form 2 Event Data'!U33-'BA Form 2 Event Data'!J33)),(IF('BA Form 2 Event Data'!U33<'Data Entry'!AQ$66,'Data Entry'!AQ$66-'BA Form 2 Event Data'!J33,'BA Form 2 Event Data'!U33-'BA Form 2 Event Data'!J33)))),(IF('Data Entry'!S$9=\"Eastern\",(IF('BA Form 2 Event Data'!U33>'Data Entry'!AR$65,'Data Entry'!AR$65-'BA Form 2 Event Data'!J33,'BA Form 2 Event Data'!U33-'BA Form 2 Event Data'!J33)),(IF('BA Form 2 Event Data'!U33>'Data Entry'!AR$66,'Data Entry'!AR$66-'BA Form 2 Event Data'!J33,'BA Form 2 Event Data'!U33-'BA Form 2 Event Data'!J33)))))","v":0},{"$f":"'BA Form 2 Event Data'!V33","v":0},{"$f":"IF(CELL(\"type\",Adjustments!$V29) = \"v\",(Adjustments!$D29+Adjustments!$G29+Adjustments!$J29+Adjustments!$M29+Adjustments!$S29),0)","v":0},{"$f":"'BA Form 2 Event Data'!K33","v":0},{"$f":"IF(CELL(\"type\",Adjustments!$V29) = \"v\",(Adjustments!$E29+Adjustments!$H29+Adjustments!$K29+Adjustments!$N29+Adjustments!$Q29+Adjustments!$T29),0)","v":0},"",{"$f":"IF($Q30=\"y\", \"\",IF(CELL(\"type\",$I30) = \"v\",(($M30-$N30)-($K30-$L30))/(10*(IF(S$9=\"Eastern\",(IF('BA Form 2 Event Data'!U33<AQ$65,AQ$65,IF('BA Form 2 Event Data'!U33>AR$65,AR$65,'BA Form 2 Event Data'!U33-'BA Form 2 Event Data'!J33))),(IF(S$9=\"Western\",(IF('BA Form 2 Event Data'!U33<AQ$66,AQ$66,IF('BA Form 2 Event Data'!U33>AR$66,AR$66,'BA Form 2 Event Data'!U33-'BA Form 2 Event Data'!J33))),(IF(S$9=\"ERCOT\",(IF('BA Form 2 Event Data'!U33<AQ$67,AQ$67,IF('BA Form 2 Event Data'!U33>AR$67,AR$67,'BA Form 2 Event Data'!U33-'BA Form 2 Event Data'!J33))),(IF('BA Form 2 Event Data'!U33<AQ$68,AQ$68,IF('BA Form 2 Event Data'!U33>AR$68,AR$68,'BA Form 2 Event Data'!U33-'BA Form 2 Event Data'!J33)))))))))),\"\"))","v":""},"Y","",{"$f":"IF(S$24=\"Variable\",MIN(S37,(S$26*S$25*-1)),\"n/a\")","v":"n/a"},"Balancing Authority lowest absolute Variable Bias Setting (least negative one minute average Bias while frequency is less than 59.964 or greater than 60.036 Hz).",null,{"$f":"'BA Form 2 Event Data'!S33","v":0},{"$f":"'BA Form 2 Event Data'!AG33","v":0},null,null,null,null,null,null,null,null,null,null,null,null,null,null,null,null,null,null,null,null,null,"NL & PH & ID"]
[27,{"$f":"IF(C31=\" \",\" \",C31+LOOKUP(D31,TimeZones,'TimeZone Ref'!C$2:C$11))","v":"06:00:00"},null,"CST",{"$f":"IF(C31=\" \",\" \",B31-LOOKUP(F31,TimeZones,'TimeZone Ref'!C$2:C$11))","v":"00:00:00"},"CST",null,{"$f":"'BA Form 2 Event Data'!E34","v":"00:00:00"},{"$f":"'BA Form 2 Event Data'!U34-'BA Form 2 Event Data'!J34","v":0},{"$f":"IF('Data Entry'!G31<0,(IF('Data Entry'!S$9=\"Eastern\",(IF('BA Form 2 Event Data'!U34<'Data Entry'!AQ$65,'Data Entry'!AQ$65-'BA Form 2 Event Data'!J34,'BA Form 2 Event Data'!U34-'BA Form 2 Event Data'!J34)),(IF('BA Form 2 Event Data'!U34<'Data Entry'!AQ$66,'Data Entry'!AQ$66-'BA Form 2 Event Data'!J34,'BA Form 2 Event Data'!U34-'BA Form 2 Event Data'!J34)))),(IF('Data Entry'!S$9=\"Eastern\",(IF('BA Form 2 Event Data'!U34>'Data Entry'!AR$65,'Data Entry'!AR$65-'BA Form 2 Event Data'!J34,'BA Form 2 Event Data'!U34-'BA Form 2 Event Data'!J34)),(IF('BA Form 2 Event Data'!U34>'Data Entry'!AR$66,'Data Entry'!AR$66-'BA Form 2 Event Data'!J34,'BA Form 2 Event Data'!U34-'BA Form 2 Event Data'!J34)))))","v":0},{"$f":"'BA Form 2 Event Data'!V34","v":0},{"$f":"IF(CELL(\"type\",Adjustments!$V30) = \"v\",(Adjustments!$D30+Adjustments!$G30+Adjustments!$J30+Adjustments!$M30+Adjustments!$S30),0)","v":0},{"$f":"'BA Form 2 Event Data'!K34","v":0},{"$f":"IF(CELL(\"type\",Adjustments!$V30) = \"v\",(Adjustments!$E30+Adjustments!$H30+Adjustments!$K30+Adjustments!$N30+Adjustments!$Q30+Adjustments!$T30),0)","v":0},"",{"$f":"IF($Q31=\"y\", \"\",IF(CELL(\"type\",$I31) = \"v\",(($M31-$N31)-($K31-$L31))/(10*(IF(S$9=\"Eastern\",(IF('BA Form 2 Event Data'!U34<AQ$65,AQ$65,IF('BA Form 2 Event Data'!U34>AR$65,AR$65,'BA Form 2 Event Data'!U34-'BA Form 2 Event Data'!J34))),(IF(S$9=\"Western\",(IF('BA Form 2 Event Data'!U34<AQ$66,AQ$66,IF('BA Form 2 Event Data'!U34>AR$66,AR$66,'BA Form 2 Event Data'!U34-'BA Form 2 Event Data'!J34))),(IF(S$9=\"ERCOT\",(IF('BA Form 2 Event Data'!U34<AQ$67,AQ$67,IF('BA Form 2 Event Data'!U34>AR$67,AR$67,'BA Form 2 Event Data'!U34-'BA Form 2 Event Data'!J34))),(IF('BA Form 2 Event Data'!U34<AQ$68,AQ$68,IF('BA Form 2 Event Data'!U34>AR$68,AR$68,'BA Form 2 Event Data'!U34-'BA Form 2 Event Data'!J34)))))))))),\"\"))","v":""},"Y","",-442,"Balancing Authority desired Bias Setting: Single BA Interconnections have no minimum or maximum Bias Setting requirement.  If variable Bias is used, enter \"Variable\".",null,{"$f":"'BA Form 2 Event Data'!S34","v":0},{"$f":"'BA Form 2 Event Data'!AG34","v":0},null,null,null,null,null,null,null,null,null,null,null,null,null,null,null,null,null,null,null,null,null,"NL & PH & TFR"]
[28,{"$f":"IF(C32=\" \",\" \",C32+LOOKUP(D32,TimeZones,'TimeZone Ref'!C$2:C$11))","v":"06:00:00"},null,"CST",{"$f":"IF(C32=\" \",\" \",B32-LOOKUP(F32,TimeZones,'TimeZone Ref'!C$2:C$11))","v":"00:00:00"},"CST",null,{"$f":"'BA Form 2 Event Data'!E35","v":"00:00:00"},{"$f":"'BA Form 2 Event Data'!U35-'BA Form 2 Event Data'!J35","v":0},{"$f":"IF('Data Entry'!G32<0,(IF('Data Entry'!S$9=\"Eastern\",(IF('BA Form 2 Event Data'!U35<'Data Entry'!AQ$65,'Data Entry'!AQ$65-'BA Form 2 Event Data'!J35,'BA Form 2 Event Data'!U35-'BA Form 2 Event Data'!J35)),(IF('BA Form 2 Event Data'!U35<'Data Entry'!AQ$66,'Data Entry'!AQ$66-'BA Form 2 Event Data'!J35,'BA Form 2 Event Data'!U35-'BA Form 2 Event Data'!J35)))),(IF('Data Entry'!S$9=\"Eastern\",(IF('BA Form 2 Event Data'!U35>'Data Entry'!AR$65,'Data Entry'!AR$65-'BA Form 2 Event Data'!J35,'BA Form 2 Event Data'!U35-'BA Form 2 Event Data'!J35)),(IF('BA Form 2 Event Data'!U35>'Data Entry'!AR$66,'Data Entry'!AR$66-'BA Form 2 Event Data'!J35,'BA Form 2 Event Data'!U35-'BA Form 2 Event Data'!J35)))))","v":0},{"$f":"'BA Form 2 Event Data'!V35","v":0},{"$f":"IF(CELL(\"type\",Adjustments!$V31) = \"v\",(Adjustments!$D31+Adjustments!$G31+Adjustments!$J31+Adjustments!$M31+Adjustments!$S31),0)","v":0},{"$f":"'BA Form 2 Event Data'!K35","v":0},{"$f":"IF(CELL(\"type\",Adjustments!$V31) = \"v\",(Adjustments!$E31+Adjustments!$H31+Adjustments!$K31+Adjustments!$N31+Adjustments!$Q31+Adjustments!$T31),0)","v":0},"",{"$f":"IF($Q32=\"y\", \"\",IF(CELL(\"type\",$I32) = \"v\",(($M32-$N32)-($K32-$L32))/(10*(IF(S$9=\"Eastern\",(IF('BA Form 2 Event Data'!U35<AQ$65,AQ$65,IF('BA Form 2 Event Data'!U35>AR$65,AR$65,'BA Form 2 Event Data'!U35-'BA Form 2 Event Data'!J35))),(IF(S$9=\"Western\",(IF('BA Form 2 Event Data'!U35<AQ$66,AQ$66,IF('BA Form 2 Event Data'!U35>AR$66,AR$66,'BA Form 2 Event Data'!U35-'BA Form 2 Event Data'!J35))),(IF(S$9=\"ERCOT\",(IF('BA Form 2 Event Data'!U35<AQ$67,AQ$67,IF('BA Form 2 Event Data'!U35>AR$67,AR$67,'BA Form 2 Event Data'!U35-'BA Form 2 Event Data'!J35))),(IF('BA Form 2 Event Data'!U35<AQ$68,AQ$68,IF('BA Form 2 Event Data'!U35>AR$68,AR$68,'BA Form 2 Event Data'!U35-'BA Form 2 Event Data'!J35)))))))))),\"\"))","v":""},"Y",""," ",null,null,{"$f":"'BA Form 2 Event Data'!S35","v":0},{"$f":"'BA Form 2 Event Data'!AG35","v":0},null,null,null,null,null,null,null,null,null,null,null,null,null,null,null,null,null,null,null,null,null,"NL & PH & BAA"]
[29,{"$f":"IF(C33=\" \",\" \",C33+LOOKUP(D33,TimeZones,'TimeZone Ref'!C$2:C$11))","v":"06:00:00"},null,"CST",{"$f":"IF(C33=\" \",\" \",B33-LOOKUP(F33,TimeZones,'TimeZone Ref'!C$2:C$11))","v":"00:00:00"},"CST",null,{"$f":"'BA Form 2 Event Data'!E36","v":"00:00:00"},{"$f":"'BA Form 2 Event Data'!U36-'BA Form 2 Event Data'!J36","v":0},{"$f":"IF('Data Entry'!G33<0,(IF('Data Entry'!S$9=\"Eastern\",(IF('BA Form 2 Event Data'!U36<'Data Entry'!AQ$65,'Data Entry'!AQ$65-'BA Form 2 Event Data'!J36,'BA Form 2 Event Data'!U36-'BA Form 2 Event Data'!J36)),(IF('BA Form 2 Event Data'!U36<'Data Entry'!AQ$66,'Data Entry'!AQ$66-'BA Form 2 Event Data'!J36,'BA Form 2 Event Data'!U36-'BA Form 2 Event Data'!J36)))),(IF('Data Entry'!S$9=\"Eastern\",(IF('BA Form 2 Event Data'!U36>'Data Entry'!AR$65,'Data Entry'!AR$65-'BA Form 2 Event Data'!J36,'BA Form 2 Event Data'!U36-'BA Form 2 Event Data'!J36)),(IF('BA Form 2 Event Data'!U36>'Data Entry'!AR$66,'Data Entry'!AR$66-'BA Form 2 Event Data'!J36,'BA Form 2 Event Data'!U36-'BA Form 2 Event Data'!J36)))))","v":0},{"$f":"'BA Form 2 Event Data'!V36","v":0},{"$f":"IF(CELL(\"type\",Adjustments!$V32) = \"v\",(Adjustments!$D32+Adjustments!$G32+Adjustments!$J32+Adjustments!$M32+Adjustments!$S32),0)","v":0},{"$f":"'BA Form 2 Event Data'!K36","v":0},{"$f":"IF(CELL(\"type\",Adjustments!$V32) = \"v\",(Adjustments!$E32+Adjustments!$H32+Adjustments!$K32+Adjustments!$N32+Adjustments!$Q32+Adjustments!$T32),0)","v":0},"",{"$f":"IF($Q33=\"y\", \"\",IF(CELL(\"type\",$I33) = \"v\",(($M33-$N33)-($K33-$L33))/(10*(IF(S$9=\"Eastern\",(IF('BA Form 2 Event Data'!U36<AQ$65,AQ$65,IF('BA Form 2 Event Data'!U36>AR$65,AR$65,'BA Form 2 Event Data'!U36-'BA Form 2 Event Data'!J36))),(IF(S$9=\"Western\",(IF('BA Form 2 Event Data'!U36<AQ$66,AQ$66,IF('BA Form 2 Event Data'!U36>AR$66,AR$66,'BA Form 2 Event Data'!U36-'BA Form 2 Event Data'!J36))),(IF(S$9=\"ERCOT\",(IF('BA Form 2 Event Data'!U36<AQ$67,AQ$67,IF('BA Form 2 Event Data'!U36>AR$67,AR$67,'BA Form 2 Event Data'!U36-'BA Form 2 Event Data'!J36))),(IF('BA Form 2 Event Data'!U36<AQ$68,AQ$68,IF('BA Form 2 Event Data'!U36>AR$68,AR$68,'BA Form 2 Event Data'!U36-'BA Form 2 Event Data'!J36)))))))))),\"\"))","v":""},"Y","",{"$f":"BAdesiredBias","v":-442},{"$f":"S8&\" Frequency Bias Setting - (Single BA Interconnections have no minimum or maximum Bias Setting requirement)\"","v":"1901 Frequency Bias Setting - (Single BA Interconnections have no minimum or maximum Bias Setting requirement)"},null,{"$f":"'BA Form 2 Event Data'!S36","v":0},{"$f":"'BA Form 2 Event Data'!AG36","v":0},null,null,null,null,null,null,null,null,null,null,null,null,null,null,null,null,null,null,null,null,null,"NL & PH & ID & TFR"]
[30,{"$f":"IF(C34=\" \",\" \",C34+LOOKUP(D34,TimeZones,'TimeZone Ref'!C$2:C$11))","v":"06:00:00"},null,"CST",{"$f":"IF(C34=\" \",\" \",B34-LOOKUP(F34,TimeZones,'TimeZone Ref'!C$2:C$11))","v":"00:00:00"},"CST",null,{"$f":"'BA Form 2 Event Data'!E37","v":"00:00:00"},{"$f":"'BA Form 2 Event Data'!U37-'BA Form 2 Event Data'!J37","v":0},{"$f":"IF('Data Entry'!G34<0,(IF('Data Entry'!S$9=\"Eastern\",(IF('BA Form 2 Event Data'!U37<'Data Entry'!AQ$65,'Data Entry'!AQ$65-'BA Form 2 Event Data'!J37,'BA Form 2 Event Data'!U37-'BA Form 2 Event Data'!J37)),(IF('BA Form 2 Event Data'!U37<'Data Entry'!AQ$66,'Data Entry'!AQ$66-'BA Form 2 Event Data'!J37,'BA Form 2 Event Data'!U37-'BA Form 2 Event Data'!J37)))),(IF('Data Entry'!S$9=\"Eastern\",(IF('BA Form 2 Event Data'!U37>'Data Entry'!AR$65,'Data Entry'!AR$65-'BA Form 2 Event Data'!J37,'BA Form 2 Event Data'!U37-'BA Form 2 Event Data'!J37)),(IF('BA Form 2 Event Data'!U37>'Data Entry'!AR$66,'Data Entry'!AR$66-'BA Form 2 Event Data'!J37,'BA Form 2 Event Data'!U37-'BA Form 2 Event Data'!J37)))))","v":0},{"$f":"'BA Form 2 Event Data'!V37","v":0},{"$f":"IF(CELL(\"type\",Adjustments!$V33) = \"v\",(Adjustments!$D33+Adjustments!$G33+Adjustments!$J33+Adjustments!$M33+Adjustments!$S33),0)","v":0},{"$f":"'BA Form 2 Event Data'!K37","v":0},{"$f":"IF(CELL(\"type\",Adjustments!$V33) = \"v\",(Adjustments!$E33+Adjustments!$H33+Adjustments!$K33+Adjustments!$N33+Adjustments!$Q33+Adjustments!$T33),0)","v":0},"",{"$f":"IF($Q34=\"y\", \"\",IF(CELL(\"type\",$I34) = \"v\",(($M34-$N34)-($K34-$L34))/(10*(IF(S$9=\"Eastern\",(IF('BA Form 2 Event Data'!U37<AQ$65,AQ$65,IF('BA Form 2 Event Data'!U37>AR$65,AR$65,'BA Form 2 Event Data'!U37-'BA Form 2 Event Data'!J37))),(IF(S$9=\"Western\",(IF('BA Form 2 Event Data'!U37<AQ$66,AQ$66,IF('BA Form 2 Event Data'!U37>AR$66,AR$66,'BA Form 2 Event Data'!U37-'BA Form 2 Event Data'!J37))),(IF(S$9=\"ERCOT\",(IF('BA Form 2 Event Data'!U37<AQ$67,AQ$67,IF('BA Form 2 Event Data'!U37>AR$67,AR$67,'BA Form 2 Event Data'!U37-'BA Form 2 Event Data'!J37))),(IF('BA Form 2 Event Data'!U37<AQ$68,AQ$68,IF('BA Form 2 Event Data'!U37>AR$68,AR$68,'BA Form 2 Event Data'!U37-'BA Form 2 Event Data'!J37)))))))))),\"\"))","v":""},"Y","",null,null,null,{"$f":"'BA Form 2 Event Data'!S37","v":0},{"$f":"'BA Form 2 Event Data'!AG37","v":0},null,null,null,null,null,null,null,null,null,null,null,null,null,null,null,null,null,null,"N",null,null,"NL & PH & ID & CBA"]
[31,{"$f":"IF(C35=\" \",\" \",C35+LOOKUP(D35,TimeZones,'TimeZone Ref'!C$2:C$11))","v":"06:00:00"},null,"CST",{"$f":"IF(C35=\" \",\" \",B35-LOOKUP(F35,TimeZones,'TimeZone Ref'!C$2:C$11))","v":"00:00:00"},"CST",null,{"$f":"'BA Form 2 Event Data'!E38","v":"00:00:00"},{"$f":"'BA Form 2 Event Data'!U38-'BA Form 2 Event Data'!J38","v":0},{"$f":"IF('Data Entry'!G35<0,(IF('Data Entry'!S$9=\"Eastern\",(IF('BA Form 2 Event Data'!U38<'Data Entry'!AQ$65,'Data Entry'!AQ$65-'BA Form 2 Event Data'!J38,'BA Form 2 Event Data'!U38-'BA Form 2 Event Data'!J38)),(IF('BA Form 2 Event Data'!U38<'Data Entry'!AQ$66,'Data Entry'!AQ$66-'BA Form 2 Event Data'!J38,'BA Form 2 Event Data'!U38-'BA Form 2 Event Data'!J38)))),(IF('Data Entry'!S$9=\"Eastern\",(IF('BA Form 2 Event Data'!U38>'Data Entry'!AR$65,'Data Entry'!AR$65-'BA Form 2 Event Data'!J38,'BA Form 2 Event Data'!U38-'BA Form 2 Event Data'!J38)),(IF('BA Form 2 Event Data'!U38>'Data Entry'!AR$66,'Data Entry'!AR$66-'BA Form 2 Event Data'!J38,'BA Form 2 Event Data'!U38-'BA Form 2 Event Data'!J38)))))","v":0},{"$f":"'BA Form 2 Event Data'!V38","v":0},{"$f":"IF(CELL(\"type\",Adjustments!$V34) = \"v\",(Adjustments!$D34+Adjustments!$G34+Adjustments!$J34+Adjustments!$M34+Adjustments!$S34),0)","v":0},{"$f":"'BA Form 2 Event Data'!K38","v":0},{"$f":"IF(CELL(\"type\",Adjustments!$V34) = \"v\",(Adjustments!$E34+Adjustments!$H34+Adjustments!$K34+Adjustments!$N34+Adjustments!$Q34+Adjustments!$T34),0)","v":0},"",{"$f":"IF($Q35=\"y\", \"\",IF(CELL(\"type\",$I35) = \"v\",(($M35-$N35)-($K35-$L35))/(10*(IF(S$9=\"Eastern\",(IF('BA Form 2 Event Data'!U38<AQ$65,AQ$65,IF('BA Form 2 Event Data'!U38>AR$65,AR$65,'BA Form 2 Event Data'!U38-'BA Form 2 Event Data'!J38))),(IF(S$9=\"Western\",(IF('BA Form 2 Event Data'!U38<AQ$66,AQ$66,IF('BA Form 2 Event Data'!U38>AR$66,AR$66,'BA Form 2 Event Data'!U38-'BA Form 2 Event Data'!J38))),(IF(S$9=\"ERCOT\",(IF('BA Form 2 Event Data'!U38<AQ$67,AQ$67,IF('BA Form 2 Event Data'!U38>AR$67,AR$67,'BA Form 2 Event Data'!U38-'BA Form 2 Event Data'!J38))),(IF('BA Form 2 Event Data'!U38<AQ$68,AQ$68,IF('BA Form 2 Event Data'!U38>AR$68,AR$68,'BA Form 2 Event Data'!U38-'BA Form 2 Event Data'!J38)))))))))),\"\"))","v":""},"Y","",{"$f":"AVERAGE(O5:O46)","v":{"$error":"#DIV/0!"}},{"$f":"S$19&\" FRM - Average Estimated Frequency Response MW/0.1 Hz using SEFRD for Bias\"","v":"1900 FRM - Average Estimated Frequency Response MW/0.1 Hz using SEFRD for Bias"},null,{"$f":"'BA Form 2 Event Data'!S38","v":0},{"$f":"'BA Form 2 Event Data'!AG38","v":0},null,null,null,null,null,null,null,null,null,null,null,null,null,null,null,null,null,null,"Y",null,null,"NL & PH & ID & TFR & CBA"]
[32,null,null,null,null,null,null,{"$f":"'BA Form 2 Event Data'!E39","v":"00:00:00"},{"$f":"'BA Form 2 Event Data'!U39-'BA Form 2 Event Data'!J39","v":0},{"$f":"IF('Data Entry'!G36<0,(IF('Data Entry'!S$9=\"Eastern\",(IF('BA Form 2 Event Data'!U39<'Data Entry'!AQ$65,'Data Entry'!AQ$65-'BA Form 2 Event Data'!J39,'BA Form 2 Event Data'!U39-'BA Form 2 Event Data'!J39)),(IF('BA Form 2 Event Data'!U39<'Data Entry'!AQ$66,'Data Entry'!AQ$66-'BA Form 2 Event Data'!J39,'BA Form 2 Event Data'!U39-'BA Form 2 Event Data'!J39)))),(IF('Data Entry'!S$9=\"Eastern\",(IF('BA Form 2 Event Data'!U39>'Data Entry'!AR$65,'Data Entry'!AR$65-'BA Form 2 Event Data'!J39,'BA Form 2 Event Data'!U39-'BA Form 2 Event Data'!J39)),(IF('BA Form 2 Event Data'!U39>'Data Entry'!AR$66,'Data Entry'!AR$66-'BA Form 2 Event Data'!J39,'BA Form 2 Event Data'!U39-'BA Form 2 Event Data'!J39)))))","v":0},{"$f":"'BA Form 2 Event Data'!V39","v":0},{"$f":"IF(CELL(\"type\",Adjustments!$V35) = \"v\",(Adjustments!$D35+Adjustments!$G35+Adjustments!$J35+Adjustments!$M35+Adjustments!$S35),0)","v":0},{"$f":"'BA Form 2 Event Data'!K39","v":0},{"$f":"IF(CELL(\"type\",Adjustments!$V35) = \"v\",(Adjustments!$E35+Adjustments!$H35+Adjustments!$K35+Adjustments!$N35+Adjustments!$Q35+Adjustments!$T35),0)","v":0},"",{"$f":"IF($Q36=\"y\", \"\",IF(CELL(\"type\",$I36) = \"v\",(($M36-$N36)-($K36-$L36))/(10*(IF(S$9=\"Eastern\",(IF('BA Form 2 Event Data'!U39<AQ$65,AQ$65,IF('BA Form 2 Event Data'!U39>AR$65,AR$65,'BA Form 2 Event Data'!U39-'BA Form 2 Event Data'!J39))),(IF(S$9=\"Western\",(IF('BA Form 2 Event Data'!U39<AQ$66,AQ$66,IF('BA Form 2 Event Data'!U39>AR$66,AR$66,'BA Form 2 Event Data'!U39-'BA Form 2 Event Data'!J39))),(IF(S$9=\"ERCOT\",(IF('BA Form 2 Event Data'!U39<AQ$67,AQ$67,IF('BA Form 2 Event Data'!U39>AR$67,AR$67,'BA Form 2 Event Data'!U39-'BA Form 2 Event Data'!J39))),(IF('BA Form 2 Event Data'!U39<AQ$68,AQ$68,IF('BA Form 2 Event Data'!U39>AR$68,AR$68,'BA Form 2 Event Data'!U39-'BA Form 2 Event Data'!J39)))))))))),\"\"))","v":""},"Y","",{"$f":"BF5","v":0},{"$f":"S$19&\" FRM - Regression Estimated Frequency Response MW/0.1Hz using SEFRD for Bias\"","v":"1900 FRM - Regression Estimated Frequency Response MW/0.1Hz using SEFRD for Bias"},null,{"$f":"'BA Form 2 Event Data'!S39","v":0},{"$f":"'BA Form 2 Event Data'!AG39","v":0},null,null,null,null,null,null,null,null,null,null,null,null,null,null,null,null,null,null,null,null,null,"PH & ID"]
[33,null,null,null,null,null,null,{"$f":"'BA Form 2 Event Data'!E40","v":"00:00:00"},{"$f":"'BA Form 2 Event Data'!U40-'BA Form 2 Event Data'!J40","v":0},{"$f":"IF('Data Entry'!G37<0,(IF('Data Entry'!S$9=\"Eastern\",(IF('BA Form 2 Event Data'!U40<'Data Entry'!AQ$65,'Data Entry'!AQ$65-'BA Form 2 Event Data'!J40,'BA Form 2 Event Data'!U40-'BA Form 2 Event Data'!J40)),(IF('BA Form 2 Event Data'!U40<'Data Entry'!AQ$66,'Data Entry'!AQ$66-'BA Form 2 Event Data'!J40,'BA Form 2 Event Data'!U40-'BA Form 2 Event Data'!J40)))),(IF('Data Entry'!S$9=\"Eastern\",(IF('BA Form 2 Event Data'!U40>'Data Entry'!AR$65,'Data Entry'!AR$65-'BA Form 2 Event Data'!J40,'BA Form 2 Event Data'!U40-'BA Form 2 Event Data'!J40)),(IF('BA Form 2 Event Data'!U40>'Data Entry'!AR$66,'Data Entry'!AR$66-'BA Form 2 Event Data'!J40,'BA Form 2 Event Data'!U40-'BA Form 2 Event Data'!J40)))))","v":0},{"$f":"'BA Form 2 Event Data'!V40","v":0},{"$f":"IF(CELL(\"type\",Adjustments!$V36) = \"v\",(Adjustments!$D36+Adjustments!$G36+Adjustments!$J36+Adjustments!$M36+Adjustments!$S36),0)","v":0},{"$f":"'BA Form 2 Event Data'!K40","v":0},{"$f":"IF(CELL(\"type\",Adjustments!$V36) = \"v\",(Adjustments!$E36+Adjustments!$H36+Adjustments!$K36+Adjustments!$N36+Adjustments!$Q36+Adjustments!$T36),0)","v":0},"",{"$f":"IF($Q37=\"y\", \"\",IF(CELL(\"type\",$I37) = \"v\",(($M37-$N37)-($K37-$L37))/(10*(IF(S$9=\"Eastern\",(IF('BA Form 2 Event Data'!U40<AQ$65,AQ$65,IF('BA Form 2 Event Data'!U40>AR$65,AR$65,'BA Form 2 Event Data'!U40-'BA Form 2 Event Data'!J40))),(IF(S$9=\"Western\",(IF('BA Form 2 Event Data'!U40<AQ$66,AQ$66,IF('BA Form 2 Event Data'!U40>AR$66,AR$66,'BA Form 2 Event Data'!U40-'BA Form 2 Event Data'!J40))),(IF(S$9=\"ERCOT\",(IF('BA Form 2 Event Data'!U40<AQ$67,AQ$67,IF('BA Form 2 Event Data'!U40>AR$67,AR$67,'BA Form 2 Event Data'!U40-'BA Form 2 Event Data'!J40))),(IF('BA Form 2 Event Data'!U40<AQ$68,AQ$68,IF('BA Form 2 Event Data'!U40>AR$68,AR$68,'BA Form 2 Event Data'!U40-'BA Form 2 Event Data'!J40)))))))))),\"\"))","v":""},"Y","",{"$f":"MEDIAN(O$5:O$46)","v":{"$error":"#DIV/0!"}},{"$f":"S$19&\" FRM - Median Estimated Frequency Response MW/0.1Hz using SEFRD for Bias\"","v":"1900 FRM - Median Estimated Frequency Response MW/0.1Hz using SEFRD for Bias"},null,{"$f":"'BA Form 2 Event Data'!S40","v":0},{"$f":"'BA Form 2 Event Data'!AG40","v":0},null,null,null,null,null,null,null,null,null,null,null,null,null,null,null,null,null,null,null,null,null,"PH & TFR"]
[34,null,null,null,null,null,null,{"$f":"'BA Form 2 Event Data'!E41","v":"00:00:00"},{"$f":"'BA Form 2 Event Data'!U41-'BA Form 2 Event Data'!J41","v":0},{"$f":"IF('Data Entry'!G38<0,(IF('Data Entry'!S$9=\"Eastern\",(IF('BA Form 2 Event Data'!U41<'Data Entry'!AQ$65,'Data Entry'!AQ$65-'BA Form 2 Event Data'!J41,'BA Form 2 Event Data'!U41-'BA Form 2 Event Data'!J41)),(IF('BA Form 2 Event Data'!U41<'Data Entry'!AQ$66,'Data Entry'!AQ$66-'BA Form 2 Event Data'!J41,'BA Form 2 Event Data'!U41-'BA Form 2 Event Data'!J41)))),(IF('Data Entry'!S$9=\"Eastern\",(IF('BA Form 2 Event Data'!U41>'Data Entry'!AR$65,'Data Entry'!AR$65-'BA Form 2 Event Data'!J41,'BA Form 2 Event Data'!U41-'BA Form 2 Event Data'!J41)),(IF('BA Form 2 Event Data'!U41>'Data Entry'!AR$66,'Data Entry'!AR$66-'BA Form 2 Event Data'!J41,'BA Form 2 Event Data'!U41-'BA Form 2 Event Data'!J41)))))","v":0},{"$f":"'BA Form 2 Event Data'!V41","v":0},{"$f":"IF(CELL(\"type\",Adjustments!$V37) = \"v\",(Adjustments!$D37+Adjustments!$G37+Adjustments!$J37+Adjustments!$M37+Adjustments!$S37),0)","v":0},{"$f":"'BA Form 2 Event Data'!K41","v":0},{"$f":"IF(CELL(\"type\",Adjustments!$V37) = \"v\",(Adjustments!$E37+Adjustments!$H37+Adjustments!$K37+Adjustments!$N37+Adjustments!$Q37+Adjustments!$T37),0)","v":0},"",{"$f":"IF($Q38=\"y\", \"\",IF(CELL(\"type\",$I38) = \"v\",(($M38-$N38)-($K38-$L38))/(10*(IF(S$9=\"Eastern\",(IF('BA Form 2 Event Data'!U41<AQ$65,AQ$65,IF('BA Form 2 Event Data'!U41>AR$65,AR$65,'BA Form 2 Event Data'!U41-'BA Form 2 Event Data'!J41))),(IF(S$9=\"Western\",(IF('BA Form 2 Event Data'!U41<AQ$66,AQ$66,IF('BA Form 2 Event Data'!U41>AR$66,AR$66,'BA Form 2 Event Data'!U41-'BA Form 2 Event Data'!J41))),(IF(S$9=\"ERCOT\",(IF('BA Form 2 Event Data'!U41<AQ$67,AQ$67,IF('BA Form 2 Event Data'!U41>AR$67,AR$67,'BA Form 2 Event Data'!U41-'BA Form 2 Event Data'!J41))),(IF('BA Form 2 Event Data'!U41<AQ$68,AQ$68,IF('BA Form 2 Event Data'!U41>AR$68,AR$68,'BA Form 2 Event Data'!U41-'BA Form 2 Event Data'!J41)))))))))),\"\"))","v":""},"Y","",{"$f":"AVERAGE(P$5:P$46)","v":0},{"$f":"S$19&\" FRM - Average Estimated Frequency Response MW/0.1 Hz using SEFRD for R1\"","v":"1900 FRM - Average Estimated Frequency Response MW/0.1 Hz using SEFRD for R1"},null,{"$f":"'BA Form 2 Event Data'!S41","v":0},{"$f":"'BA Form 2 Event Data'!AG41","v":0},null,null,null,null,null,null,null,null,null,null,null,null,null,null,null,null,null,null,null,null,null,"PH & CBA"]
[35,null,null,null,null,null,null,{"$f":"'BA Form 2 Event Data'!E42","v":"00:00:00"},{"$f":"'BA Form 2 Event Data'!U42-'BA Form 2 Event Data'!J42","v":0},{"$f":"IF('Data Entry'!G39<0,(IF('Data Entry'!S$9=\"Eastern\",(IF('BA Form 2 Event Data'!U42<'Data Entry'!AQ$65,'Data Entry'!AQ$65-'BA Form 2 Event Data'!J42,'BA Form 2 Event Data'!U42-'BA Form 2 Event Data'!J42)),(IF('BA Form 2 Event Data'!U42<'Data Entry'!AQ$66,'Data Entry'!AQ$66-'BA Form 2 Event Data'!J42,'BA Form 2 Event Data'!U42-'BA Form 2 Event Data'!J42)))),(IF('Data Entry'!S$9=\"Eastern\",(IF('BA Form 2 Event Data'!U42>'Data Entry'!AR$65,'Data Entry'!AR$65-'BA Form 2 Event Data'!J42,'BA Form 2 Event Data'!U42-'BA Form 2 Event Data'!J42)),(IF('BA Form 2 Event Data'!U42>'Data Entry'!AR$66,'Data Entry'!AR$66-'BA Form 2 Event Data'!J42,'BA Form 2 Event Data'!U42-'BA Form 2 Event Data'!J42)))))","v":0},{"$f":"'BA Form 2 Event Data'!V42","v":0},{"$f":"IF(CELL(\"type\",Adjustments!$V38) = \"v\",(Adjustments!$D38+Adjustments!$G38+Adjustments!$J38+Adjustments!$M38+Adjustments!$S38),0)","v":0},{"$f":"'BA Form 2 Event Data'!K42","v":0},{"$f":"IF(CELL(\"type\",Adjustments!$V38) = \"v\",(Adjustments!$E38+Adjustments!$H38+Adjustments!$K38+Adjustments!$N38+Adjustments!$Q38+Adjustments!$T38),0)","v":0},"",{"$f":"IF($Q39=\"y\", \"\",IF(CELL(\"type\",$I39) = \"v\",(($M39-$N39)-($K39-$L39))/(10*(IF(S$9=\"Eastern\",(IF('BA Form 2 Event Data'!U42<AQ$65,AQ$65,IF('BA Form 2 Event Data'!U42>AR$65,AR$65,'BA Form 2 Event Data'!U42-'BA Form 2 Event Data'!J42))),(IF(S$9=\"Western\",(IF('BA Form 2 Event Data'!U42<AQ$66,AQ$66,IF('BA Form 2 Event Data'!U42>AR$66,AR$66,'BA Form 2 Event Data'!U42-'BA Form 2 Event Data'!J42))),(IF(S$9=\"ERCOT\",(IF('BA Form 2 Event Data'!U42<AQ$67,AQ$67,IF('BA Form 2 Event Data'!U42>AR$67,AR$67,'BA Form 2 Event Data'!U42-'BA Form 2 Event Data'!J42))),(IF('BA Form 2 Event Data'!U42<AQ$68,AQ$68,IF('BA Form 2 Event Data'!U42>AR$68,AR$68,'BA Form 2 Event Data'!U42-'BA Form 2 Event Data'!J42)))))))))),\"\"))","v":""},"Y","",{"$f":"BF$12","v":0},{"$f":"S$19&\" FRM - Regression Estimated Frequency Response MW/0.1Hz using SEFRD for R1\"","v":"1900 FRM - Regression Estimated Frequency Response MW/0.1Hz using SEFRD for R1"},null,{"$f":"'BA Form 2 Event Data'!S42","v":0},{"$f":"'BA Form 2 Event Data'!AG42","v":0},null,null,null,null,null,null,null,null,null,null,null,null,null,null,null,null,null,null,null,null,null,"PH & ID & TFR"]
[36,null,null,null,null,null,null,{"$f":"'BA Form 2 Event Data'!E43","v":"00:00:00"},{"$f":"'BA Form 2 Event Data'!U43-'BA Form 2 Event Data'!J43","v":0},{"$f":"IF('Data Entry'!G40<0,(IF('Data Entry'!S$9=\"Eastern\",(IF('BA Form 2 Event Data'!U43<'Data Entry'!AQ$65,'Data Entry'!AQ$65-'BA Form 2 Event Data'!J43,'BA Form 2 Event Data'!U43-'BA Form 2 Event Data'!J43)),(IF('BA Form 2 Event Data'!U43<'Data Entry'!AQ$66,'Data Entry'!AQ$66-'BA Form 2 Event Data'!J43,'BA Form 2 Event Data'!U43-'BA Form 2 Event Data'!J43)))),(IF('Data Entry'!S$9=\"Eastern\",(IF('BA Form 2 Event Data'!U43>'Data Entry'!AR$65,'Data Entry'!AR$65-'BA Form 2 Event Data'!J43,'BA Form 2 Event Data'!U43-'BA Form 2 Event Data'!J43)),(IF('BA Form 2 Event Data'!U43>'Data Entry'!AR$66,'Data Entry'!AR$66-'BA Form 2 Event Data'!J43,'BA Form 2 Event Data'!U43-'BA Form 2 Event Data'!J43)))))","v":0},{"$f":"'BA Form 2 Event Data'!V43","v":0},{"$f":"IF(CELL(\"type\",Adjustments!$V39) = \"v\",(Adjustments!$D39+Adjustments!$G39+Adjustments!$J39+Adjustments!$M39+Adjustments!$S39),0)","v":0},{"$f":"'BA Form 2 Event Data'!K43","v":0},{"$f":"IF(CELL(\"type\",Adjustments!$V39) = \"v\",(Adjustments!$E39+Adjustments!$H39+Adjustments!$K39+Adjustments!$N39+Adjustments!$Q39+Adjustments!$T39),0)","v":0},"",{"$f":"IF($Q40=\"y\", \"\",IF(CELL(\"type\",$I40) = \"v\",(($M40-$N40)-($K40-$L40))/(10*(IF(S$9=\"Eastern\",(IF('BA Form 2 Event Data'!U43<AQ$65,AQ$65,IF('BA Form 2 Event Data'!U43>AR$65,AR$65,'BA Form 2 Event Data'!U43-'BA Form 2 Event Data'!J43))),(IF(S$9=\"Western\",(IF('BA Form 2 Event Data'!U43<AQ$66,AQ$66,IF('BA Form 2 Event Data'!U43>AR$66,AR$66,'BA Form 2 Event Data'!U43-'BA Form 2 Event Data'!J43))),(IF(S$9=\"ERCOT\",(IF('BA Form 2 Event Data'!U43<AQ$67,AQ$67,IF('BA Form 2 Event Data'!U43>AR$67,AR$67,'BA Form 2 Event Data'!U43-'BA Form 2 Event Data'!J43))),(IF('BA Form 2 Event Data'!U43<AQ$68,AQ$68,IF('BA Form 2 Event Data'!U43>AR$68,AR$68,'BA Form 2 Event Data'!U43-'BA Form 2 Event Data'!J43)))))))))),\"\"))","v":""},"Y","",{"$f":"MEDIAN(P$5:P$46)","v":0},{"$f":"S$19&\" FRM - Median Estimated Frequency Response MW/0.1Hz for BA Compliance to R1, minimum Frequency Response\"","v":"1900 FRM - Median Estimated Frequency Response MW/0.1Hz for BA Compliance to R1, minimum Frequency Response"},null,{"$f":"'BA Form 2 Event Data'!S43","v":0},{"$f":"'BA Form 2 Event Data'!AG43","v":0},null,null,null,null,null,null,null,null,null,null,null,null,null,null,null,null,null,null,null,null,null,"PH & ID & CBA"]
[37,null,null,null,null,null,null,{"$f":"'BA Form 2 Event Data'!E44","v":"00:00:00"},{"$f":"'BA Form 2 Event Data'!U44-'BA Form 2 Event Data'!J44","v":0},{"$f":"IF('Data Entry'!G41<0,(IF('Data Entry'!S$9=\"Eastern\",(IF('BA Form 2 Event Data'!U44<'Data Entry'!AQ$65,'Data Entry'!AQ$65-'BA Form 2 Event Data'!J44,'BA Form 2 Event Data'!U44-'BA Form 2 Event Data'!J44)),(IF('BA Form 2 Event Data'!U44<'Data Entry'!AQ$66,'Data Entry'!AQ$66-'BA Form 2 Event Data'!J44,'BA Form 2 Event Data'!U44-'BA Form 2 Event Data'!J44)))),(IF('Data Entry'!S$9=\"Eastern\",(IF('BA Form 2 Event Data'!U44>'Data Entry'!AR$65,'Data Entry'!AR$65-'BA Form 2 Event Data'!J44,'BA Form 2 Event Data'!U44-'BA Form 2 Event Data'!J44)),(IF('BA Form 2 Event Data'!U44>'Data Entry'!AR$66,'Data Entry'!AR$66-'BA Form 2 Event Data'!J44,'BA Form 2 Event Data'!U44-'BA Form 2 Event Data'!J44)))))","v":0},{"$f":"'BA Form 2 Event Data'!V44","v":0},{"$f":"IF(CELL(\"type\",Adjustments!$V40) = \"v\",(Adjustments!$D40+Adjustments!$G40+Adjustments!$J40+Adjustments!$M40+Adjustments!$S40),0)","v":0},{"$f":"'BA Form 2 Event Data'!K44","v":0},{"$f":"IF(CELL(\"type\",Adjustments!$V40) = \"v\",(Adjustments!$E40+Adjustments!$H40+Adjustments!$K40+Adjustments!$N40+Adjustments!$Q40+Adjustments!$T40),0)","v":0},"",{"$f":"IF($Q41=\"y\", \"\",IF(CELL(\"type\",$I41) = \"v\",(($M41-$N41)-($K41-$L41))/(10*(IF(S$9=\"Eastern\",(IF('BA Form 2 Event Data'!U44<AQ$65,AQ$65,IF('BA Form 2 Event Data'!U44>AR$65,AR$65,'BA Form 2 Event Data'!U44-'BA Form 2 Event Data'!J44))),(IF(S$9=\"Western\",(IF('BA Form 2 Event Data'!U44<AQ$66,AQ$66,IF('BA Form 2 Event Data'!U44>AR$66,AR$66,'BA Form 2 Event Data'!U44-'BA Form 2 Event Data'!J44))),(IF(S$9=\"ERCOT\",(IF('BA Form 2 Event Data'!U44<AQ$67,AQ$67,IF('BA Form 2 Event Data'!U44>AR$67,AR$67,'BA Form 2 Event Data'!U44-'BA Form 2 Event Data'!J44))),(IF('BA Form 2 Event Data'!U44<AQ$68,AQ$68,IF('BA Form 2 Event Data'!U44>AR$68,AR$68,'BA Form 2 Event Data'!U44-'BA Form 2 Event Data'!J44)))))))))),\"\"))","v":""},"Y","","N","Do you RECEIVE Overlap regulation?",null,{"$f":"'BA Form 2 Event Data'!S44","v":0},{"$f":"'BA Form 2 Event Data'!AG44","v":0},null,null,null,null,null,null,null,null,null,null,null,null,null,null,null,null,null,null,null,null,null,"PH & TFR"]
[38,null,null,null,null,null,null,{"$f":"'BA Form 2 Event Data'!E45","v":"00:00:00"},{"$f":"'BA Form 2 Event Data'!U45-'BA Form 2 Event Data'!J45","v":0},{"$f":"IF('Data Entry'!G42<0,(IF('Data Entry'!S$9=\"Eastern\",(IF('BA Form 2 Event Data'!U45<'Data Entry'!AQ$65,'Data Entry'!AQ$65-'BA Form 2 Event Data'!J45,'BA Form 2 Event Data'!U45-'BA Form 2 Event Data'!J45)),(IF('BA Form 2 Event Data'!U45<'Data Entry'!AQ$66,'Data Entry'!AQ$66-'BA Form 2 Event Data'!J45,'BA Form 2 Event Data'!U45-'BA Form 2 Event Data'!J45)))),(IF('Data Entry'!S$9=\"Eastern\",(IF('BA Form 2 Event Data'!U45>'Data Entry'!AR$65,'Data Entry'!AR$65-'BA Form 2 Event Data'!J45,'BA Form 2 Event Data'!U45-'BA Form 2 Event Data'!J45)),(IF('BA Form 2 Event Data'!U45>'Data Entry'!AR$66,'Data Entry'!AR$66-'BA Form 2 Event Data'!J45,'BA Form 2 Event Data'!U45-'BA Form 2 Event Data'!J45)))))","v":0},{"$f":"'BA Form 2 Event Data'!V45","v":0},{"$f":"IF(CELL(\"type\",Adjustments!$V41) = \"v\",(Adjustments!$D41+Adjustments!$G41+Adjustments!$J41+Adjustments!$M41+Adjustments!$S41),0)","v":0},{"$f":"'BA Form 2 Event Data'!K45","v":0},{"$f":"IF(CELL(\"type\",Adjustments!$V41) = \"v\",(Adjustments!$E41+Adjustments!$H41+Adjustments!$K41+Adjustments!$N41+Adjustments!$Q41+Adjustments!$T41),0)","v":0},"",{"$f":"IF($Q42=\"y\", \"\",IF(CELL(\"type\",$I42) = \"v\",(($M42-$N42)-($K42-$L42))/(10*(IF(S$9=\"Eastern\",(IF('BA Form 2 Event Data'!U45<AQ$65,AQ$65,IF('BA Form 2 Event Data'!U45>AR$65,AR$65,'BA Form 2 Event Data'!U45-'BA Form 2 Event Data'!J45))),(IF(S$9=\"Western\",(IF('BA Form 2 Event Data'!U45<AQ$66,AQ$66,IF('BA Form 2 Event Data'!U45>AR$66,AR$66,'BA Form 2 Event Data'!U45-'BA Form 2 Event Data'!J45))),(IF(S$9=\"ERCOT\",(IF('BA Form 2 Event Data'!U45<AQ$67,AQ$67,IF('BA Form 2 Event Data'!U45>AR$67,AR$67,'BA Form 2 Event Data'!U45-'BA Form 2 Event Data'!J45))),(IF('BA Form 2 Event Data'!U45<AQ$68,AQ$68,IF('BA Form 2 Event Data'!U45>AR$68,AR$68,'BA Form 2 Event Data'!U45-'BA Form 2 Event Data'!J45)))))))))),\"\"))","v":""},"Y","",null,"If Yes, list the BA name and the associated Bias of that BA in the table below.",null,{"$f":"'BA Form 2 Event Data'!S45","v":0},{"$f":"'BA Form 2 Event Data'!AG45","v":0},null,null,null,null,null,null,null,null,null,null,null,null,null,null,null,null,null,null,null,null,null,"PH & CBA"]
[39,null,null,null,null,null,null,{"$f":"'BA Form 2 Event Data'!E46","v":"00:00:00"},{"$f":"'BA Form 2 Event Data'!U46-'BA Form 2 Event Data'!J46","v":0},{"$f":"IF('Data Entry'!G43<0,(IF('Data Entry'!S$9=\"Eastern\",(IF('BA Form 2 Event Data'!U46<'Data Entry'!AQ$65,'Data Entry'!AQ$65-'BA Form 2 Event Data'!J46,'BA Form 2 Event Data'!U46-'BA Form 2 Event Data'!J46)),(IF('BA Form 2 Event Data'!U46<'Data Entry'!AQ$66,'Data Entry'!AQ$66-'BA Form 2 Event Data'!J46,'BA Form 2 Event Data'!U46-'BA Form 2 Event Data'!J46)))),(IF('Data Entry'!S$9=\"Eastern\",(IF('BA Form 2 Event Data'!U46>'Data Entry'!AR$65,'Data Entry'!AR$65-'BA Form 2 Event Data'!J46,'BA Form 2 Event Data'!U46-'BA Form 2 Event Data'!J46)),(IF('BA Form 2 Event Data'!U46>'Data Entry'!AR$66,'Data Entry'!AR$66-'BA Form 2 Event Data'!J46,'BA Form 2 Event Data'!U46-'BA Form 2 Event Data'!J46)))))","v":0},{"$f":"'BA Form 2 Event Data'!V46","v":0},{"$f":"IF(CELL(\"type\",Adjustments!$V42) = \"v\",(Adjustments!$D42+Adjustments!$G42+Adjustments!$J42+Adjustments!$M42+Adjustments!$S42),0)","v":0},{"$f":"'BA Form 2 Event Data'!K46","v":0},{"$f":"IF(CELL(\"type\",Adjustments!$V42) = \"v\",(Adjustments!$E42+Adjustments!$H42+Adjustments!$K42+Adjustments!$N42+Adjustments!$Q42+Adjustments!$T42),0)","v":0},"",{"$f":"IF($Q43=\"y\", \"\",IF(CELL(\"type\",$I43) = \"v\",(($M43-$N43)-($K43-$L43))/(10*(IF(S$9=\"Eastern\",(IF('BA Form 2 Event Data'!U46<AQ$65,AQ$65,IF('BA Form 2 Event Data'!U46>AR$65,AR$65,'BA Form 2 Event Data'!U46-'BA Form 2 Event Data'!J46))),(IF(S$9=\"Western\",(IF('BA Form 2 Event Data'!U46<AQ$66,AQ$66,IF('BA Form 2 Event Data'!U46>AR$66,AR$66,'BA Form 2 Event Data'!U46-'BA Form 2 Event Data'!J46))),(IF(S$9=\"ERCOT\",(IF('BA Form 2 Event Data'!U46<AQ$67,AQ$67,IF('BA Form 2 Event Data'!U46>AR$67,AR$67,'BA Form 2 Event Data'!U46-'BA Form 2 Event Data'!J46))),(IF('BA Form 2 Event Data'!U46<AQ$68,AQ$68,IF('BA Form 2 Event Data'!U46>AR$68,AR$68,'BA Form 2 Event Data'!U46-'BA Form 2 Event Data'!J46)))))))))),\"\"))","v":""},"Y","",null,null,null,{"$f":"'BA Form 2 Event Data'!S46","v":0},{"$f":"'BA Form 2 Event Data'!AG46","v":0},null,null,null,null,null,null,null,null,null,null,null,null,null,null,null,null,null,null,null,null,null,"PH & ID & TFR"]
[40,null,null,null,null,null,null,{"$f":"'BA Form 2 Event Data'!E47","v":"00:00:00"},{"$f":"'BA Form 2 Event Data'!U47-'BA Form 2 Event Data'!J47","v":0},{"$f":"IF('Data Entry'!G44<0,(IF('Data Entry'!S$9=\"Eastern\",(IF('BA Form 2 Event Data'!U47<'Data Entry'!AQ$65,'Data Entry'!AQ$65-'BA Form 2 Event Data'!J47,'BA Form 2 Event Data'!U47-'BA Form 2 Event Data'!J47)),(IF('BA Form 2 Event Data'!U47<'Data Entry'!AQ$66,'Data Entry'!AQ$66-'BA Form 2 Event Data'!J47,'BA Form 2 Event Data'!U47-'BA Form 2 Event Data'!J47)))),(IF('Data Entry'!S$9=\"Eastern\",(IF('BA Form 2 Event Data'!U47>'Data Entry'!AR$65,'Data Entry'!AR$65-'BA Form 2 Event Data'!J47,'BA Form 2 Event Data'!U47-'BA Form 2 Event Data'!J47)),(IF('BA Form 2 Event Data'!U47>'Data Entry'!AR$66,'Data Entry'!AR$66-'BA Form 2 Event Data'!J47,'BA Form 2 Event Data'!U47-'BA Form 2 Event Data'!J47)))))","v":0},{"$f":"'BA Form 2 Event Data'!V47","v":0},{"$f":"IF(CELL(\"type\",Adjustments!$V43) = \"v\",(Adjustments!$D43+Adjustments!$G43+Adjustments!$J43+Adjustments!$M43+Adjustments!$S43),0)","v":0},{"$f":"'BA Form 2 Event Data'!K47","v":0},{"$f":"IF(CELL(\"type\",Adjustments!$V43) = \"v\",(Adjustments!$E43+Adjustments!$H43+Adjustments!$K43+Adjustments!$N43+Adjustments!$Q43+Adjustments!$T43),0)","v":0},"",{"$f":"IF($Q44=\"y\", \"\",IF(CELL(\"type\",$I44) = \"v\",(($M44-$N44)-($K44-$L44))/(10*(IF(S$9=\"Eastern\",(IF('BA Form 2 Event Data'!U47<AQ$65,AQ$65,IF('BA Form 2 Event Data'!U47>AR$65,AR$65,'BA Form 2 Event Data'!U47-'BA Form 2 Event Data'!J47))),(IF(S$9=\"Western\",(IF('BA Form 2 Event Data'!U47<AQ$66,AQ$66,IF('BA Form 2 Event Data'!U47>AR$66,AR$66,'BA Form 2 Event Data'!U47-'BA Form 2 Event Data'!J47))),(IF(S$9=\"ERCOT\",(IF('BA Form 2 Event Data'!U47<AQ$67,AQ$67,IF('BA Form 2 Event Data'!U47>AR$67,AR$67,'BA Form 2 Event Data'!U47-'BA Form 2 Event Data'!J47))),(IF('BA Form 2 Event Data'!U47<AQ$68,AQ$68,IF('BA Form 2 Event Data'!U47>AR$68,AR$68,'BA Form 2 Event Data'!U47-'BA Form 2 Event Data'!J47)))))))))),\"\"))","v":""},"Y","","Bias -MW/0.1 Hz","Balancing Authority",null,{"$f":"'BA Form 2 Event Data'!S47","v":0},{"$f":"'BA Form 2 Event Data'!AG47","v":0},null,null,null,null,null,null,null,null,null,null,null,null,null,null,null,null,null,null,null,null,null,"PH & ID & CBA"]
[41,null,null,null,null,null,null,{"$f":"'BA Form 2 Event Data'!E48","v":"00:00:00"},{"$f":"'BA Form 2 Event Data'!U48-'BA Form 2 Event Data'!J48","v":0},{"$f":"IF('Data Entry'!G45<0,(IF('Data Entry'!S$9=\"Eastern\",(IF('BA Form 2 Event Data'!U48<'Data Entry'!AQ$65,'Data Entry'!AQ$65-'BA Form 2 Event Data'!J48,'BA Form 2 Event Data'!U48-'BA Form 2 Event Data'!J48)),(IF('BA Form 2 Event Data'!U48<'Data Entry'!AQ$66,'Data Entry'!AQ$66-'BA Form 2 Event Data'!J48,'BA Form 2 Event Data'!U48-'BA Form 2 Event Data'!J48)))),(IF('Data Entry'!S$9=\"Eastern\",(IF('BA Form 2 Event Data'!U48>'Data Entry'!AR$65,'Data Entry'!AR$65-'BA Form 2 Event Data'!J48,'BA Form 2 Event Data'!U48-'BA Form 2 Event Data'!J48)),(IF('BA Form 2 Event Data'!U48>'Data Entry'!AR$66,'Data Entry'!AR$66-'BA Form 2 Event Data'!J48,'BA Form 2 Event Data'!U48-'BA Form 2 Event Data'!J48)))))","v":0},{"$f":"'BA Form 2 Event Data'!V48","v":0},{"$f":"IF(CELL(\"type\",Adjustments!$V44) = \"v\",(Adjustments!$D44+Adjustments!$G44+Adjustments!$J44+Adjustments!$M44+Adjustments!$S44),0)","v":0},{"$f":"'BA Form 2 Event Data'!K48","v":0},{"$f":"IF(CELL(\"type\",Adjustments!$V44) = \"v\",(Adjustments!$E44+Adjustments!$H44+Adjustments!$K44+Adjustments!$N44+Adjustments!$Q44+Adjustments!$T44),0)","v":0},"",{"$f":"IF($Q45=\"y\", \"\",IF(CELL(\"type\",$I45) = \"v\",(($M45-$N45)-($K45-$L45))/(10*(IF(S$9=\"Eastern\",(IF('BA Form 2 Event Data'!U48<AQ$65,AQ$65,IF('BA Form 2 Event Data'!U48>AR$65,AR$65,'BA Form 2 Event Data'!U48-'BA Form 2 Event Data'!J48))),(IF(S$9=\"Western\",(IF('BA Form 2 Event Data'!U48<AQ$66,AQ$66,IF('BA Form 2 Event Data'!U48>AR$66,AR$66,'BA Form 2 Event Data'!U48-'BA Form 2 Event Data'!J48))),(IF(S$9=\"ERCOT\",(IF('BA Form 2 Event Data'!U48<AQ$67,AQ$67,IF('BA Form 2 Event Data'!U48>AR$67,AR$67,'BA Form 2 Event Data'!U48-'BA Form 2 Event Data'!J48))),(IF('BA Form 2 Event Data'!U48<AQ$68,AQ$68,IF('BA Form 2 Event Data'!U48>AR$68,AR$68,'BA Form 2 Event Data'!U48-'BA Form 2 Event Data'!J48)))))))))),\"\"))","v":""},"Y","",null,null,null,{"$f":"'BA Form 2 Event Data'!S48","v":0},{"$f":"'BA Form 2 Event Data'!AG48","v":0},null,null,null,null,null,null,null,null,null,null,null,null,null,null,null,null,null,null,null,null,null,"PH & TFR"]
[42,null,null,null,null,null,null,{"$f":"'BA Form 2 Event Data'!E49","v":"00:00:00"},{"$f":"'BA Form 2 Event Data'!U49-'BA Form 2 Event Data'!J49","v":0},{"$f":"IF('Data Entry'!G46<0,(IF('Data Entry'!S$9=\"Eastern\",(IF('BA Form 2 Event Data'!U49<'Data Entry'!AQ$65,'Data Entry'!AQ$65-'BA Form 2 Event Data'!J49,'BA Form 2 Event Data'!U49-'BA Form 2 Event Data'!J49)),(IF('BA Form 2 Event Data'!U49<'Data Entry'!AQ$66,'Data Entry'!AQ$66-'BA Form 2 Event Data'!J49,'BA Form 2 Event Data'!U49-'BA Form 2 Event Data'!J49)))),(IF('Data Entry'!S$9=\"Eastern\",(IF('BA Form 2 Event Data'!U49>'Data Entry'!AR$65,'Data Entry'!AR$65-'BA Form 2 Event Data'!J49,'BA Form 2 Event Data'!U49-'BA Form 2 Event Data'!J49)),(IF('BA Form 2 Event Data'!U49>'Data Entry'!AR$66,'Data Entry'!AR$66-'BA Form 2 Event Data'!J49,'BA Form 2 Event Data'!U49-'BA Form 2 Event Data'!J49)))))","v":0},{"$f":"'BA Form 2 Event Data'!V49","v":0},{"$f":"IF(CELL(\"type\",Adjustments!$V45) = \"v\",(Adjustments!$D45+Adjustments!$G45+Adjustments!$J45+Adjustments!$M45+Adjustments!$S45),0)","v":0},{"$f":"'BA Form 2 Event Data'!K49","v":0},{"$f":"IF(CELL(\"type\",Adjustments!$V45) = \"v\",(Adjustments!$E45+Adjustments!$H45+Adjustments!$K45+Adjustments!$N45+Adjustments!$Q45+Adjustments!$T45),0)","v":0},"",{"$f":"IF($Q46=\"y\", \"\",IF(CELL(\"type\",$I46) = \"v\",(($M46-$N46)-($K46-$L46))/(10*(IF(S$9=\"Eastern\",(IF('BA Form 2 Event Data'!U49<AQ$65,AQ$65,IF('BA Form 2 Event Data'!U49>AR$65,AR$65,'BA Form 2 Event Data'!U49-'BA Form 2 Event Data'!J49))),(IF(S$9=\"Western\",(IF('BA Form 2 Event Data'!U49<AQ$66,AQ$66,IF('BA Form 2 Event Data'!U49>AR$66,AR$66,'BA Form 2 Event Data'!U49-'BA Form 2 Event Data'!J49))),(IF(S$9=\"ERCOT\",(IF('BA Form 2 Event Data'!U49<AQ$67,AQ$67,IF('BA Form 2 Event Data'!U49>AR$67,AR$67,'BA Form 2 Event Data'!U49-'BA Form 2 Event Data'!J49))),(IF('BA Form 2 Event Data'!U49<AQ$68,AQ$68,IF('BA Form 2 Event Data'!U49>AR$68,AR$68,'BA Form 2 Event Data'!U49-'BA Form 2 Event Data'!J49)))))))))),\"\"))","v":""},"Y","",null,null,null,{"$f":"'BA Form 2 Event Data'!S49","v":0},{"$f":"'BA Form 2 Event Data'!AG49","v":0},null,null,null,null,null,null,null,null,null,null,null,null,null,null,null,null,null,null,null,null,null,"PH & CBA"]
[null,null,null,null,null,null,null,null,null,null,null,null,null,null,null,null,null,null,null,null,null,null,null,null,null,null,null,null,null,null,null,null,null,null,null,null,null,null,null,null,null,null,null,null,"PH & ID & TFR & CBA"]
[null,null,null,null,null,null,null,null,null,null,null,null,null,null,null,null,null,null,null,null,null,null,null,null,null,null,null,null,null,null,null,null,null,null,null,null,null,null,null,null,null,null,null,null,"RU & TFR"]
[null,null,null,null,null,null,null,null,null,null,null,null,null,null,null,null,null,null,null,null,null,null,null,null,null,null,null,null,null,null,null,null,null,null,null,null,null,null,null,null,null,null,null,null,"RU & CBA"]
[null,null,null,null,null,null,null,null,null,null,null,null,null,null,null,null,null,null,null,null,null,null,null,null,null,null,null,null,null,null,null,null,null,null,null,null,null,null,null,null,null,null,null,null,"RU & TFR & CBA"]
[null,null,null,null,null,null,null,null,null,null,null,null,null,null,null,null,null,null,null,null,null,null,null,null,null,null,null,null,null,null,null,null,null,null,null,null,null,null,null,null,null,null,null,null,"TFR & CBA"]
[]
[]
[]
[null,null,null,null,null,null,null,null,null,null,null,null,null,null,null,null,null,null,"N","Do you PROVIDE Overlap regulation?"]
[null,null,null,null,null,null,null,null,null,null,null,null,null,null,null,null,null,null,null,"If Yes, list the BA name and the associated Bias of that BA",null,null,null,null,null,null,null,null,null,null,null,null,null,null,null,null,null,null,null,null,null,"N"]
[null,null,null,null,null,null,null,null,null,null,null,null,null,null,null,null,null,null,null,null,null,null,null,null,null,null,null,null,null,null,null,null,null,null,null,null,null,null,null,null,null,"Y"]
[null,null,null,null,null,null,null,null,null,null,null,null,null,null,null,null,null,null,"Bias -MW/0.1 Hz","Balancing Authority"]
[]
[]
[null,null,null,null,null,null,null,null,null,null,null,null,null,null,null,null,null,null,null,null,null,null,null,null,null,null,null,null,null,null,null,null,null,null,null,null,null,null,null,null,null,"Fixed"]
[null,null," ",null,null,null,null,null,null,null,null,null,null,null,null,null,null,null,null,null,null,null,null,null,null,null,null,null,null,null,null,null,null,null,null,null,null,null,null,null,null,"Variable"]
[null,null,null,null,null,null," "]
[null,null,"Instructions",null,null,null," ",null,null,null,null,null,null,null,null,null,null,null,null,null,null,null,null,null,null,null,null,null,null,null,null,null,null,null,null,null,null,null,null,null,null,null,"Relay Limits"]
[null,null,null,null,null,null," ",null,null,null,null,null,null,null,null,null,null,null,null,null,null,null,null,null,null,null,null,null,null,null,null,null,null,null,null,null,null,null,null,null,null,"Eastern",59.5,60.5]
[null,null,"Step 1",null,null,null,"Enter data in all green cells on this \"Data Entry\" worksheet.",null,null,null,null,null,null,null,null,null,null,null,null,null,null,null,null,null,null,null,null,null,null,null,null,null,null,null,null,null,null,null,null,null,null,"Western",59.5,60.5]
[null,null,null,null,null,null,null,null,null,null,null,null,null,null,null,null,null,null,null,null,null,null,null,null,null,null,null,null,null,null,null,null,null,null,null,null,null,null,null,null,null,"ERCOT",59.3,60.7]
[null,null,"Step 2",null,null,null,"For identified events in column B, collect data and complete FRS Form 2.9 for each event in the list.",null,null,null,null,null,null,null,null,null,null,null,null,null,null,null,null,null,null,null,null,null,null,null,null,null,null,null,null,null,null,null,null,null,null,"HQ",58.5,61.5]
[]
[null,null,"Step 3",null,null,null,"PasteSpecial/Values data from FRS Form 2.9 \"Form 1 Summary Data\" into \"BA Form 2 Data\" worksheet of this workbook.  Do this for each event in the list."]
[]
[null,null,"Step 4",null,null,null,"Save this workbook using the following file name format:NYISO_yyyy_FRS_Form_1.9.xlsm and send a copy of this workbook and all FRS_Form 2 workbooks to NERC. (where NYISO is replaced with your BA name)"]
[]
[null,null,null,null,null,null,{"$f":"$G$1&\"_\"&$S$8&\"_FRS_Form_1.9.xlsm\"","v":"HQT_1901_FRS_Form_1.9.xlsm"}]

{"sheet":"Form 714 Data","index":2,"n_rows":21,"n_cols":7,"rows_kept":21,"cut":false,"hidden":false,"merged":[[1,1,1,2]]}
[]
[null,"Report 714 Data (in MW)"]
[null,"Part II Schedule 3"]
[]
[null,"Column (b)","Column (j)"]
[null,"Month","Peak Demand"]
[null,"January"]
[null,"February",null,null,null,null,"Peak Demand: (Your BA from Form 714, column j of Part II - Schedule 3)"]
[null,"March"]
[null,"April"]
[null,"May"]
[null,"June"]
[null,"July"]
[null,"August"]
[null,"September"]
[null,"October"]
[null,"November"]
[null,"December"]
[]
[null,"Average",{"$f":"AVERAGE(C7:C18)","v":{"$error":"#DIV/0!"}}]
[null,"Maximum",{"$f":"MAX(C7:C18)","v":0}]

{"sheet":"Adjustments","index":3,"n_rows":54,"n_cols":22,"rows_kept":54,"cut":false,"hidden":false,"merged":[[47,2,47,19],[48,2,48,19],[60,2,60,19],[53,2,53,19],[54,2,54,19],[55,2,55,19],[56,2,56,19],[57,2,57,19],[58,2,58,19],[49,2,49,19],[50,2,50,19],[51,2,51,19],[59,2,59,19],[52,2,52,19],[1,11,2,11],[1,14,2,14],[1,17,2,17],[1,21,2,21],[45,1,45,2],[45,3,45,4],[45,6,45,7],[45,9,45,10],[45,12,45,13],[45,18,45,19],[1,5,2,5],[1,8,2,8],[1,20,2,20],[0,3,0,4],[0,6,0,7],[0,9,0,10],[0,12,0,13],[0,18,0,19]]}
[null,{"$f":"'Data Entry'!$F$1","v":"Balancing Authority"},{"$f":"'Data Entry'!$G$1","v":"HQT"},"Load Resources Tripped",null,null,"Non conforming Load",null,null,"Not Used",null,null,"Not Used",null,null,"Not Used",null,null,"Not Used",null,null,"Net Total Adjustments"]
["Event",{"$f":"'Data Entry'!$C$2","v":"Date/Time (t-0)"},null,"Value A","Value B",null,"Value A","Value B",null,"Value A","Value B",null,"Value A","Value B",null,"Value A","Value B",null,"Value A","Value B",null,"Value B 20 to 52 seconds"]
["Number",{"$f":"'Data Entry'!$C$4","v":"(Central Prevailing)"},{"$f":"'Data Entry'!$G$4","v":"DelFreq"},"Adjustment","Adjustment",null,"Adjustment","Adjustment",null,"Adjustment","Adjustment",null,"Adjustment","Adjustment",null,"Adjustment","Adjustment",null,"Adjustment","Adjustment"]
[1,{"$f":"IF(CELL(\"type\",'Data Entry'!$C5) = \"v\",'Data Entry'!$C5,\"\")","v":""},{"$f":"IF(CELL(\"type\",'Data Entry'!$G5)=\"v\",'Data Entry'!$G5,\"\")","v":""},{"$f":"'BA Form 2 Event Data'!L8","v":0},{"$f":"'BA Form 2 Event Data'!W8","v":0},null,{"$f":"'BA Form 2 Event Data'!M8","v":0},{"$f":"'BA Form 2 Event Data'!X8","v":0},null,{"$f":"'BA Form 2 Event Data'!N8","v":0},{"$f":"'BA Form 2 Event Data'!Y8","v":0},null,{"$f":"'BA Form 2 Event Data'!O8","v":0},{"$f":"'BA Form 2 Event Data'!Z8","v":0},null,{"$f":"'BA Form 2 Event Data'!P8","v":0},{"$f":"'BA Form 2 Event Data'!AA8","v":0},null,{"$f":"'BA Form 2 Event Data'!Q8","v":0},{"$f":"'BA Form 2 Event Data'!AB8","v":0},null,{"$f":"IF(CELL(\"type\",'Data Entry'!$I5) = \"v\",((E4+H4+K4+N4+Q4+T4)-(D4+G4+J4+M4+P4+S4)),\"\")","v":0}]
[2,{"$f":"IF(CELL(\"type\",'Data Entry'!$C6) = \"v\",'Data Entry'!$C6,\"\")","v":""},{"$f":"IF(CELL(\"type\",'Data Entry'!$G6)=\"v\",'Data Entry'!$G6,\"\")","v":""},{"$f":"'BA Form 2 Event Data'!L9","v":0},{"$f":"'BA Form 2 Event Data'!W9","v":0},null,{"$f":"'BA Form 2 Event Data'!M9","v":0},{"$f":"'BA Form 2 Event Data'!X9","v":0},null,{"$f":"'BA Form 2 Event Data'!N9","v":0},{"$f":"'BA Form 2 Event Data'!Y9","v":0},null,{"$f":"'BA Form 2 Event Data'!O9","v":0},{"$f":"'BA Form 2 Event Data'!Z9","v":0},null,{"$f":"'BA Form 2 Event Data'!P9","v":0},{"$f":"'BA Form 2 Event Data'!AA9","v":0},null,{"$f":"'BA Form 2 Event Data'!Q9","v":0},{"$f":"'BA Form 2 Event Data'!AB9","v":0},null,{"$f":"IF(CELL(\"type\",'Data Entry'!$I6) = \"v\",((E5+H5+K5+N5+Q5+T5)-(D5+G5+J5+M5+P5+S5)),\"\")","v":0}]
[3,{"$f":"IF(CELL(\"type\",'Data Entry'!$C7) = \"v\",'Data Entry'!$C7,\"\")","v":""},{"$f":"IF(CELL(\"type\",'Data Entry'!$G7)=\"v\",'Data Entry'!$G7,\"\")","v":""},{"$f":"'BA Form 2 Event Data'!L10","v":0},{"$f":"'BA Form 2 Event Data'!W10","v":0},null,{"$f":"'BA Form 2 Event Data'!M10","v":0},{"$f":"'BA Form 2 Event Data'!X10","v":0},null,{"$f":"'BA Form 2 Event Data'!N10","v":0},{"$f":"'BA Form 2 Event Data'!Y10","v":0},null,{"$f":"'BA Form 2 Event Data'!O10","v":0},{"$f":"'BA Form 2 Event Data'!Z10","v":0},null,{"$f":"'BA Form 2 Event Data'!P10","v":0},{"$f":"'BA Form 2 Event Data'!AA10","v":0},null,{"$f":"'BA Form 2 Event Data'!Q10","v":0},{"$f":"'BA Form 2 Event Data'!AB10","v":0},null,{"$f":"IF(CELL(\"type\",'Data Entry'!$I7) = \"v\",((E6+H6+K6+N6+Q6+T6)-(D6+G6+J6+M6+P6+S6)),\"\")","v":0}]
[4,{"$f":"IF(CELL(\"type\",'Data Entry'!$C8) = \"v\",'Data Entry'!$C8,\"\")","v":""},{"$f":"IF(CELL(\"type\",'Data Entry'!$G8)=\"v\",'Data Entry'!$G8,\"\")","v":""},{"$f":"'BA Form 2 Event Data'!L11","v":0},{"$f":"'BA Form 2 Event Data'!W11","v":0},null,{"$f":"'BA Form 2 Event Data'!M11","v":0},{"$f":"'BA Form 2 Event Data'!X11","v":0},null,{"$f":"'BA Form 2 Event Data'!N11","v":0},{"$f":"'BA Form 2 Event Data'!Y11","v":0},null,{"$f":"'BA Form 2 Event Data'!O11","v":0},{"$f":"'BA Form 2 Event Data'!Z11","v":0},null,{"$f":"'BA Form 2 Event Data'!P11","v":0},{"$f":"'BA Form 2 Event Data'!AA11","v":0},null,{"$f":"'BA Form 2 Event Data'!Q11","v":0},{"$f":"'BA Form 2 Event Data'!AB11","v":0},null,{"$f":"IF(CELL(\"type\",'Data Entry'!$I8) = \"v\",((E7+H7+K7+N7+Q7+T7)-(D7+G7+J7+M7+P7+S7)),\"\")","v":0}]
[5,{"$f":"IF(CELL(\"type\",'Data Entry'!$C9) = \"v\",'Data Entry'!$C9,\"\")","v":""},{"$f":"IF(CELL(\"type\",'Data Entry'!$G9)=\"v\",'Data Entry'!$G9,\"\")","v":""},{"$f":"'BA Form 2 Event Data'!L12","v":0},{"$f":"'BA Form 2 Event Data'!W12","v":0},null,{"$f":"'BA Form 2 Event Data'!M12","v":0},{"$f":"'BA Form 2 Event Data'!X12","v":0},null,{"$f":"'BA Form 2 Event Data'!N12","v":0},{"$f":"'BA Form 2 Event Data'!Y12","v":0},null,{"$f":"'BA Form 2 Event Data'!O12","v":0},{"$f":"'BA Form 2 Event Data'!Z12","v":0},null,{"$f":"'BA Form 2 Event Data'!P12","v":0},{"$f":"'BA Form 2 Event Data'!AA12","v":0},null,{"$f":"'BA Form 2 Event Data'!Q12","v":0},{"$f":"'BA Form 2 Event Data'!AB12","v":0},null,{"$f":"IF(CELL(\"type\",'Data Entry'!$I9) = \"v\",((E8+H8+K8+N8+Q8+T8)-(D8+G8+J8+M8+P8+S8)),\"\")","v":0}]
[6,{"$f":"IF(CELL(\"type\",'Data Entry'!$C10) = \"v\",'Data Entry'!$C10,\"\")","v":""},{"$f":"IF(CELL(\"type\",'Data Entry'!$G10)=\"v\",'Data Entry'!$G10,\"\")","v":""},{"$f":"'BA Form 2 Event Data'!L13","v":0},{"$f":"'BA Form 2 Event Data'!W13","v":0},null,{"$f":"'BA Form 2 Event Data'!M13","v":0},{"$f":"'BA Form 2 Event Data'!X13","v":0},null,{"$f":"'BA Form 2 Event Data'!N13","v":0},{"$f":"'BA Form 2 Event Data'!Y13","v":0},null,{"$f":"'BA Form 2 Event Data'!O13","v":0},{"$f":"'BA Form 2 Event Data'!Z13","v":0},null,{"$f":"'BA Form 2 Event Data'!P13","v":0},{"$f":"'BA Form 2 Event Data'!AA13","v":0},null,{"$f":"'BA Form 2 Event Data'!Q13","v":0},{"$f":"'BA Form 2 Event Data'!AB13","v":0},null,{"$f":"IF(CELL(\"type\",'Data Entry'!$I10) = \"v\",((E9+H9+K9+N9+Q9+T9)-(D9+G9+J9+M9+P9+S9)),\"\")","v":0}]
[7,{"$f":"IF(CELL(\"type\",'Data Entry'!$C11) = \"v\",'Data Entry'!$C11,\"\")","v":""},{"$f":"IF(CELL(\"type\",'Data Entry'!$G11)=\"v\",'Data Entry'!$G11,\"\")","v":""},{"$f":"'BA Form 2 Event Data'!L14","v":0},{"$f":"'BA Form 2 Event Data'!W14","v":0},null,{"$f":"'BA Form 2 Event Data'!M14","v":0},{"$f":"'BA Form 2 Event Data'!X14","v":0},null,{"$f":"'BA Form 2 Event Data'!N14","v":0},{"$f":"'BA Form 2 Event Data'!Y14","v":0},null,{"$f":"'BA Form 2 Event Data'!O14","v":0},{"$f":"'BA Form 2 Event Data'!Z14","v":0},null,{"$f":"'BA Form 2 Event Data'!P14","v":0},{"$f":"'BA Form 2 Event Data'!AA14","v":0},null,{"$f":"'BA Form 2 Event Data'!Q14","v":0},{"$f":"'BA Form 2 Event Data'!AB14","v":0},null,{"$f":"IF(CELL(\"type\",'Data Entry'!$I11) = \"v\",((E10+H10+K10+N10+Q10+T10)-(D10+G10+J10+M10+P10+S10)),\"\")","v":0}]
[8,{"$f":"IF(CELL(\"type\",'Data Entry'!$C12) = \"v\",'Data Entry'!$C12,\"\")","v":""},{"$f":"IF(CELL(\"type\",'Data Entry'!$G12)=\"v\",'Data Entry'!$G12,\"\")","v":""},{"$f":"'BA Form 2 Event Data'!L15","v":0},{"$f":"'BA Form 2 Event Data'!W15","v":0},null,{"$f":"'BA Form 2 Event Data'!M15","v":0},{"$f":"'BA Form 2 Event Data'!X15","v":0},null,{"$f":"'BA Form 2 Event Data'!N15","v":0},{"$f":"'BA Form 2 Event Data'!Y15","v":0},null,{"$f":"'BA Form 2 Event Data'!O15","v":0},{"$f":"'BA Form 2 Event Data'!Z15","v":0},null,{"$f":"'BA Form 2 Event Data'!P15","v":0},{"$f":"'BA Form 2 Event Data'!AA15","v":0},null,{"$f":"'BA Form 2 Event Data'!Q15","v":0},{"$f":"'BA Form 2 Event Data'!AB15","v":0},null,{"$f":"IF(CELL(\"type\",'Data Entry'!$I12) = \"v\",((E11+H11+K11+N11+Q11+T11)-(D11+G11+J11+M11+P11+S11)),\"\")","v":0}]
[9,{"$f":"IF(CELL(\"type\",'Data Entry'!$C13) = \"v\",'Data Entry'!$C13,\"\")","v":""},{"$f":"IF(CELL(\"type\",'Data Entry'!$G13)=\"v\",'Data Entry'!$G13,\"\")","v":""},{"$f":"'BA Form 2 Event Data'!L16","v":0},{"$f":"'BA Form 2 Event Data'!W16","v":0},null,{"$f":"'BA Form 2 Event Data'!M16","v":0},{"$f":"'BA Form 2 Event Data'!X16","v":0},null,{"$f":"'BA Form 2 Event Data'!N16","v":0},{"$f":"'BA Form 2 Event Data'!Y16","v":0},null,{"$f":"'BA Form 2 Event Data'!O16","v":0},{"$f":"'BA Form 2 Event Data'!Z16","v":0},null,{"$f":"'BA Form 2 Event Data'!P16","v":0},{"$f":"'BA Form 2 Event Data'!AA16","v":0},null,{"$f":"'BA Form 2 Event Data'!Q16","v":0},{"$f":"'BA Form 2 Event Data'!AB16","v":0},null,{"$f":"IF(CELL(\"type\",'Data Entry'!$I13) = \"v\",((E12+H12+K12+N12+Q12+T12)-(D12+G12+J12+M12+P12+S12)),\"\")","v":0}]
[10,{"$f":"IF(CELL(\"type\",'Data Entry'!$C14) = \"v\",'Data Entry'!$C14,\"\")","v":""},{"$f":"IF(CELL(\"type\",'Data Entry'!$G14)=\"v\",'Data Entry'!$G14,\"\")","v":""},{"$f":"'BA Form 2 Event Data'!L17","v":0},{"$f":"'BA Form 2 Event Data'!W17","v":0},null,{"$f":"'BA Form 2 Event Data'!M17","v":0},{"$f":"'BA Form 2 Event Data'!X17","v":0},null,{"$f":"'BA Form 2 Event Data'!N17","v":0},{"$f":"'BA Form 2 Event Data'!Y17","v":0},null,{"$f":"'BA Form 2 Event Data'!O17","v":0},{"$f":"'BA Form 2 Event Data'!Z17","v":0},null,{"$f":"'BA Form 2 Event Data'!P17","v":0},{"$f":"'BA Form 2 Event Data'!AA17","v":0},null,{"$f":"'BA Form 2 Event Data'!Q17","v":0},{"$f":"'BA Form 2 Event Data'!AB17","v":0},null,{"$f":"IF(CELL(\"type\",'Data Entry'!$I14) = \"v\",((E13+H13+K13+N13+Q13+T13)-(D13+G13+J13+M13+P13+S13)),\"\")","v":0}]
[11,{"$f":"IF(CELL(\"type\",'Data Entry'!$C15) = \"v\",'Data Entry'!$C15,\"\")","v":""},{"$f":"IF(CELL(\"type\",'Data Entry'!$G15)=\"v\",'Data Entry'!$G15,\"\")","v":""},{"$f":"'BA Form 2 Event Data'!L18","v":0},{"$f":"'BA Form 2 Event Data'!W18","v":0},null,{"$f":"'BA Form 2 Event Data'!M18","v":0},{"$f":"'BA Form 2 Event Data'!X18","v":0},null,{"$f":"'BA Form 2 Event Data'!N18","v":0},{"$f":"'BA Form 2 Event Data'!Y18","v":0},null,{"$f":"'BA Form 2 Event Data'!O18","v":0},{"$f":"'BA Form 2 Event Data'!Z18","v":0},null,{"$f":"'BA Form 2 Event Data'!P18","v":0},{"$f":"'BA Form 2 Event Data'!AA18","v":0},null,{"$f":"'BA Form 2 Event Data'!Q18","v":0},{"$f":"'BA Form 2 Event Data'!AB18","v":0},null,{"$f":"IF(CELL(\"type\",'Data Entry'!$I15) = \"v\",((E14+H14+K14+N14+Q14+T14)-(D14+G14+J14+M14+P14+S14)),\"\")","v":0}]
[12,{"$f":"IF(CELL(\"type\",'Data Entry'!$C16) = \"v\",'Data Entry'!$C16,\"\")","v":""},{"$f":"IF(CELL(\"type\",'Data Entry'!$G16)=\"v\",'Data Entry'!$G16,\"\")","v":""},{"$f":"'BA Form 2 Event Data'!L19","v":0},{"$f":"'BA Form 2 Event Data'!W19","v":0},null,{"$f":"'BA Form 2 Event Data'!M19","v":0},{"$f":"'BA Form 2 Event Data'!X19","v":0},null,{"$f":"'BA Form 2 Event Data'!N19","v":0},{"$f":"'BA Form 2 Event Data'!Y19","v":0},null,{"$f":"'BA Form 2 Event Data'!O19","v":0},{"$f":"'BA Form 2 Event Data'!Z19","v":0},null,{"$f":"'BA Form 2 Event Data'!P19","v":0},{"$f":"'BA Form 2 Event Data'!AA19","v":0},null,{"$f":"'BA Form 2 Event Data'!Q19","v":0},{"$f":"'BA Form 2 Event Data'!AB19","v":0},null,{"$f":"IF(CELL(\"type\",'Data Entry'!$I16) = \"v\",((E15+H15+K15+N15+Q15+T15)-(D15+G15+J15+M15+P15+S15)),\"\")","v":0}]
[13,{"$f":"IF(CELL(\"type\",'Data Entry'!$C17) = \"v\",'Data Entry'!$C17,\"\")","v":""},{"$f":"IF(CELL(\"type\",'Data Entry'!$G17)=\"v\",'Data Entry'!$G17,\"\")","v":""},{"$f":"'BA Form 2 Event Data'!L20","v":0},{"$f":"'BA Form 2 Event Data'!W20","v":0},null,{"$f":"'BA Form 2 Event Data'!M20","v":0},{"$f":"'BA Form 2 Event Data'!X20","v":0},null,{"$f":"'BA Form 2 Event Data'!N20","v":0},{"$f":"'BA Form 2 Event Data'!Y20","v":0},null,{"$f":"'BA Form 2 Event Data'!O20","v":0},{"$f":"'BA Form 2 Event Data'!Z20","v":0},null,{"$f":"'BA Form 2 Event Data'!P20","v":0},{"$f":"'BA Form 2 Event Data'!AA20","v":0},null,{"$f":"'BA Form 2 Event Data'!Q20","v":0},{"$f":"'BA Form 2 Event Data'!AB20","v":0},null,{"$f":"IF(CELL(\"type\",'Data Entry'!$I17) = \"v\",((E16+H16+K16+N16+Q16+T16)-(D16+G16+J16+M16+P16+S16)),\"\")","v":0}]
[14,{"$f":"IF(CELL(\"type\",'Data Entry'!$C18) = \"v\",'Data Entry'!$C18,\"\")","v":""},{"$f":"IF(CELL(\"type\",'Data Entry'!$G18)=\"v\",'Data Entry'!$G18,\"\")","v":""},{"$f":"'BA Form 2 Event Data'!L21","v":0},{"$f":"'BA Form 2 Event Data'!W21","v":0},null,{"$f":"'BA Form 2 Event Data'!M21","v":0},{"$f":"'BA Form 2 Event Data'!X21","v":0},null,{"$f":"'BA Form 2 Event Data'!N21","v":0},{"$f":"'BA Form 2 Event Data'!Y21","v":0},null,{"$f":"'BA Form 2 Event Data'!O21","v":0},{"$f":"'BA Form 2 Event Data'!Z21","v":0},null,{"$f":"'BA Form 2 Event Data'!P21","v":0},{"$f":"'BA Form 2 Event Data'!AA21","v":0},null,{"$f":"'BA Form 2 Event Data'!Q21","v":0},{"$f":"'BA Form 2 Event Data'!AB21","v":0},null,{"$f":"IF(CELL(\"type\",'Data Entry'!$I18) = \"v\",((E17+H17+K17+N17+Q17+T17)-(D17+G17+J17+M17+P17+S17)),\"\")","v":0}]
[15,{"$f":"IF(CELL(\"type\",'Data Entry'!$C19) = \"v\",'Data Entry'!$C19,\"\")","v":""},{"$f":"IF(CELL(\"type\",'Data Entry'!$G19)=\"v\",'Data Entry'!$G19,\"\")","v":""},{"$f":"'BA Form 2 Event Data'!L22","v":0},{"$f":"'BA Form 2 Event Data'!W22","v":0},null,{"$f":"'BA Form 2 Event Data'!M22","v":0},{"$f":"'BA Form 2 Event Data'!X22","v":0},null,{"$f":"'BA Form 2 Event Data'!N22","v":0},{"$f":"'BA Form 2 Event Data'!Y22","v":0},null,{"$f":"'BA Form 2 Event Data'!O22","v":0},{"$f":"'BA Form 2 Event Data'!Z22","v":0},null,{"$f":"'BA Form 2 Event Data'!P22","v":0},{"$f":"'BA Form 2 Event Data'!AA22","v":0},null,{"$f":"'BA Form 2 Event Data'!Q22","v":0},{"$f":"'BA Form 2 Event Data'!AB22","v":0},null,{"$f":"IF(CELL(\"type\",'Data Entry'!$I19) = \"v\",((E18+H18+K18+N18+Q18+T18)-(D18+G18+J18+M18+P18+S18)),\"\")","v":0}]
[16,{"$f":"IF(CELL(\"type\",'Data Entry'!$C20) = \"v\",'Data Entry'!$C20,\"\")","v":""},{"$f":"IF(CELL(\"type\",'Data Entry'!$G20)=\"v\",'Data Entry'!$G20,\"\")","v":""},{"$f":"'BA Form 2 Event Data'!L23","v":0},{"$f":"'BA Form 2 Event Data'!W23","v":0},null,{"$f":"'BA Form 2 Event Data'!M23","v":0},{"$f":"'BA Form 2 Event Data'!X23","v":0},null,{"$f":"'BA Form 2 Event Data'!N23","v":0},{"$f":"'BA Form 2 Event Data'!Y23","v":0},null,{"$f":"'BA Form 2 Event Data'!O23","v":0},{"$f":"'BA Form 2 Event Data'!Z23","v":0},null,{"$f":"'BA Form 2 Event Data'!P23","v":0},{"$f":"'BA Form 2 Event Data'!AA23","v":0},null,{"$f":"'BA Form 2 Event Data'!Q23","v":0},{"$f":"'BA Form 2 Event Data'!AB23","v":0},null,{"$f":"IF(CELL(\"type\",'Data Entry'!$I20) = \"v\",((E19+H19+K19+N19+Q19+T19)-(D19+G19+J19+M19+P19+S19)),\"\")","v":0}]
[17,{"$f":"IF(CELL(\"type\",'Data Entry'!$C21) = \"v\",'Data Entry'!$C21,\"\")","v":""},{"$f":"IF(CELL(\"type\",'Data Entry'!$G21)=\"v\",'Data Entry'!$G21,\"\")","v":""},{"$f":"'BA Form 2 Event Data'!L24","v":0},{"$f":"'BA Form 2 Event Data'!W24","v":0},null,{"$f":"'BA Form 2 Event Data'!M24","v":0},{"$f":"'BA Form 2 Event Data'!X24","v":0},null,{"$f":"'BA Form 2 Event Data'!N24","v":0},{"$f":"'BA Form 2 Event Data'!Y24","v":0},null,{"$f":"'BA Form 2 Event Data'!O24","v":0},{"$f":"'BA Form 2 Event Data'!Z24","v":0},null,{"$f":"'BA Form 2 Event Data'!P24","v":0},{"$f":"'BA Form 2 Event Data'!AA24","v":0},null,{"$f":"'BA Form 2 Event Data'!Q24","v":0},{"$f":"'BA Form 2 Event Data'!AB24","v":0},null,{"$f":"IF(CELL(\"type\",'Data Entry'!$I21) = \"v\",((E20+H20+K20+N20+Q20+T20)-(D20+G20+J20+M20+P20+S20)),\"\")","v":0}]
[18,{"$f":"IF(CELL(\"type\",'Data Entry'!$C22) = \"v\",'Data Entry'!$C22,\"\")","v":""},{"$f":"IF(CELL(\"type\",'Data Entry'!$G22)=\"v\",'Data Entry'!$G22,\"\")","v":""},{"$f":"'BA Form 2 Event Data'!L25","v":0},{"$f":"'BA Form 2 Event Data'!W25","v":0},null,{"$f":"'BA Form 2 Event Data'!M25","v":0},{"$f":"'BA Form 2 Event Data'!X25","v":0},null,{"$f":"'BA Form 2 Event Data'!N25","v":0},{"$f":"'BA Form 2 Event Data'!Y25","v":0},null,{"$f":"'BA Form 2 Event Data'!O25","v":0},{"$f":"'BA Form 2 Event Data'!Z25","v":0},null,{"$f":"'BA Form 2 Event Data'!P25","v":0},{"$f":"'BA Form 2 Event Data'!AA25","v":0},null,{"$f":"'BA Form 2 Event Data'!Q25","v":0},{"$f":"'BA Form 2 Event Data'!AB25","v":0},null,{"$f":"IF(CELL(\"type\",'Data Entry'!$I22) = \"v\",((E21+H21+K21+N21+Q21+T21)-(D21+G21+J21+M21+P21+S21)),\"\")","v":0}]
[19,{"$f":"IF(CELL(\"type\",'Data Entry'!$C23) = \"v\",'Data Entry'!$C23,\"\")","v":""},{"$f":"IF(CELL(\"type\",'Data Entry'!$G23)=\"v\",'Data Entry'!$G23,\"\")","v":""},{"$f":"'BA Form 2 Event Data'!L26","v":0},{"$f":"'BA Form 2 Event Data'!W26","v":0},null,{"$f":"'BA Form 2 Event Data'!M26","v":0},{"$f":"'BA Form 2 Event Data'!X26","v":0},null,{"$f":"'BA Form 2 Event Data'!N26","v":0},{"$f":"'BA Form 2 Event Data'!Y26","v":0},null,{"$f":"'BA Form 2 Event Data'!O26","v":0},{"$f":"'BA Form 2 Event Data'!Z26","v":0},null,{"$f":"'BA Form 2 Event Data'!P26","v":0},{"$f":"'BA Form 2 Event Data'!AA26","v":0},null,{"$f":"'BA Form 2 Event Data'!Q26","v":0},{"$f":"'BA Form 2 Event Data'!AB26","v":0},null,{"$f":"IF(CELL(\"type\",'Data Entry'!$I23) = \"v\",((E22+H22+K22+N22+Q22+T22)-(D22+G22+J22+M22+P22+S22)),\"\")","v":0}]
[20,{"$f":"IF(CELL(\"type\",'Data Entry'!$C24) = \"v\",'Data Entry'!$C24,\"\")","v":""},{"$f":"IF(CELL(\"type\",'Data Entry'!$G24)=\"v\",'Data Entry'!$G24,\"\")","v":""},{"$f":"'BA Form 2 Event Data'!L27","v":0},{"$f":"'BA Form 2 Event Data'!W27","v":0},null,{"$f":"'BA Form 2 Event Data'!M27","v":0},{"$f":"'BA Form 2 Event Data'!X27","v":0},null,{"$f":"'BA Form 2 Event Data'!N27","v":0},{"$f":"'BA Form 2 Event Data'!Y27","v":0},null,{"$f":"'BA Form 2 Event Data'!O27","v":0},{"$f":"'BA Form 2 Event Data'!Z27","v":0},null,{"$f":"'BA Form 2 Event Data'!P27","v":0},{"$f":"'BA Form 2 Event Data'!AA27","v":0},null,{"$f":"'BA Form 2 Event Data'!Q27","v":0},{"$f":"'BA Form 2 Event Data'!AB27","v":0},null,{"$f":"IF(CELL(\"type\",'Data Entry'!$I24) = \"v\",((E23+H23+K23+N23+Q23+T23)-(D23+G23+J23+M23+P23+S23)),\"\")","v":0}]
[21,{"$f":"IF(CELL(\"type\",'Data Entry'!$C25) = \"v\",'Data Entry'!$C25,\"\")","v":""},{"$f":"IF(CELL(\"type\",'Data Entry'!$G25)=\"v\",'Data Entry'!$G25,\"\")","v":""},{"$f":"'BA Form 2 Event Data'!L28","v":0},{"$f":"'BA Form 2 Event Data'!W28","v":0},null,{"$f":"'BA Form 2 Event Data'!M28","v":0},{"$f":"'BA Form 2 Event Data'!X28","v":0},null,{"$f":"'BA Form 2 Event Data'!N28","v":0},{"$f":"'BA Form 2 Event Data'!Y28","v":0},null,{"$f":"'BA Form 2 Event Data'!O28","v":0},{"$f":"'BA Form 2 Event Data'!Z28","v":0},null,{"$f":"'BA Form 2 Event Data'!P28","v":0},{"$f":"'BA Form 2 Event Data'!AA28","v":0},null,{"$f":"'BA Form 2 Event Data'!Q28","v":0},{"$f":"'BA Form 2 Event Data'!AB28","v":0},null,{"$f":"IF(CELL(\"type\",'Data Entry'!$I25) = \"v\",((E24+H24+K24+N24+Q24+T24)-(D24+G24+J24+M24+P24+S24)),\"\")","v":0}]
[22,{"$f":"IF(CELL(\"type\",'Data Entry'!$C26) = \"v\",'Data Entry'!$C26,\"\")","v":""},{"$f":"IF(CELL(\"type\",'Data Entry'!$G26)=\"v\",'Data Entry'!$G26,\"\")","v":""},{"$f":"'BA Form 2 Event Data'!L29","v":0},{"$f":"'BA Form 2 Event Data'!W29","v":0},null,{"$f":"'BA Form 2 Event Data'!M29","v":0},{"$f":"'BA Form 2 Event Data'!X29","v":0},null,{"$f":"'BA Form 2 Event Data'!N29","v":0},{"$f":"'BA Form 2 Event Data'!Y29","v":0},null,{"$f":"'BA Form 2 Event Data'!O29","v":0},{"$f":"'BA Form 2 Event Data'!Z29","v":0},null,{"$f":"'BA Form 2 Event Data'!P29","v":0},{"$f":"'BA Form 2 Event Data'!AA29","v":0},null,{"$f":"'BA Form 2 Event Data'!Q29","v":0},{"$f":"'BA Form 2 Event Data'!AB29","v":0},null,{"$f":"IF(CELL(\"type\",'Data Entry'!$I26) = \"v\",((E25+H25+K25+N25+Q25+T25)-(D25+G25+J25+M25+P25+S25)),\"\")","v":0}]
[23,{"$f":"IF(CELL(\"type\",'Data Entry'!$C27) = \"v\",'Data Entry'!$C27,\"\")","v":""},{"$f":"IF(CELL(\"type\",'Data Entry'!$G27)=\"v\",'Data Entry'!$G27,\"\")","v":""},{"$f":"'BA Form 2 Event Data'!L30","v":0},{"$f":"'BA Form 2 Event Data'!W30","v":0},null,{"$f":"'BA Form 2 Event Data'!M30","v":0},{"$f":"'BA Form 2 Event Data'!X30","v":0},null,{"$f":"'BA Form 2 Event Data'!N30","v":0},{"$f":"'BA Form 2 Event Data'!Y30","v":0},null,{"$f":"'BA Form 2 Event Data'!O30","v":0},{"$f":"'BA Form 2 Event Data'!Z30","v":0},null,{"$f":"'BA Form 2 Event Data'!P30","v":0},{"$f":"'BA Form 2 Event Data'!AA30","v":0},null,{"$f":"'BA Form 2 Event Data'!Q30","v":0},{"$f":"'BA Form 2 Event Data'!AB30","v":0},null,{"$f":"IF(CELL(\"type\",'Data Entry'!$I27) = \"v\",((E26+H26+K26+N26+Q26+T26)-(D26+G26+J26+M26+P26+S26)),\"\")","v":0}]
[24,{"$f":"IF(CELL(\"type\",'Data Entry'!$C28) = \"v\",'Data Entry'!$C28,\"\")","v":""},{"$f":"IF(CELL(\"type\",'Data Entry'!$G28)=\"v\",'Data Entry'!$G28,\"\")","v":""},{"$f":"'BA Form 2 Event Data'!L31","v":0},{"$f":"'BA Form 2 Event Data'!W31","v":0},null,{"$f":"'BA Form 2 Event Data'!M31","v":0},{"$f":"'BA Form 2 Event Data'!X31","v":0},null,{"$f":"'BA Form 2 Event Data'!N31","v":0},{"$f":"'BA Form 2 Event Data'!Y31","v":0},null,{"$f":"'BA Form 2 Event Data'!O31","v":0},{"$f":"'BA Form 2 Event Data'!Z31","v":0},null,{"$f":"'BA Form 2 Event Data'!P31","v":0},{"$f":"'BA Form 2 Event Data'!AA31","v":0},null,{"$f":"'BA Form 2 Event Data'!Q31","v":0},{"$f":"'BA Form 2 Event Data'!AB31","v":0},null,{"$f":"IF(CELL(\"type\",'Data Entry'!$I28) = \"v\",((E27+H27+K27+N27+Q27+T27)-(D27+G27+J27+M27+P27+S27)),\"\")","v":0}]
[25,{"$f":"IF(CELL(\"type\",'Data Entry'!$C29) = \"v\",'Data Entry'!$C29,\"\")","v":""},{"$f":"IF(CELL(\"type\",'Data Entry'!$G29)=\"v\",'Data Entry'!$G29,\"\")","v":""},{"$f":"'BA Form 2 Event Data'!L32","v":0},{"$f":"'BA Form 2 Event Data'!W32","v":0},null,{"$f":"'BA Form 2 Event Data'!M32","v":0},{"$f":"'BA Form 2 Event Data'!X32","v":0},null,{"$f":"'BA Form 2 Event Data'!N32","v":0},{"$f":"'BA Form 2 Event Data'!Y32","v":0},null,{"$f":"'BA Form 2 Event Data'!O32","v":0},{"$f":"'BA Form 2 Event Data'!Z32","v":0},null,{"$f":"'BA Form 2 Event Data'!P32","v":0},{"$f":"'BA Form 2 Event Data'!AA32","v":0},null,{"$f":"'BA Form 2 Event Data'!Q32","v":0},{"$f":"'BA Form 2 Event Data'!AB32","v":0},null,{"$f":"IF(CELL(\"type\",'Data Entry'!$I29) = \"v\",((E28+H28+K28+N28-Q28*10*'Data Entry'!$I29+T28)-(D28+G28+J28+M28+S28)),\"\")","v":0}]
[26,{"$f":"IF(CELL(\"type\",'Data Entry'!$C30) = \"v\",'Data Entry'!$C30,\"\")","v":""},{"$f":"IF(CELL(\"type\",'Data Entry'!$G30)=\"v\",'Data Entry'!$G30,\"\")","v":""},{"$f":"'BA Form 2 Event Data'!L33","v":0},{"$f":"'BA Form 2 Event Data'!W33","v":0},null,{"$f":"'BA Form 2 Event Data'!M33","v":0},{"$f":"'BA Form 2 Event Data'!X33","v":0},null,{"$f":"'BA Form 2 Event Data'!N33","v":0},{"$f":"'BA Form 2 Event Data'!Y33","v":0},null,{"$f":"'BA Form 2 Event Data'!O33","v":0},{"$f":"'BA Form 2 Event Data'!Z33","v":0},null,{"$f":"'BA Form 2 Event Data'!P33","v":0},{"$f":"'BA Form 2 Event Data'!AA33","v":0},null,{"$f":"'BA Form 2 Event Data'!Q33","v":0},{"$f":"'BA Form 2 Event Data'!AB33","v":0},null,{"$f":"IF(CELL(\"type\",'Data Entry'!$I30) = \"v\",((E29+H29+K29+N29-Q29*10*'Data Entry'!$I30+T29)-(D29+G29+J29+M29+S29)),\"\")","v":0}]
[27,{"$f":"IF(CELL(\"type\",'Data Entry'!$C31) = \"v\",'Data Entry'!$C31,\"\")","v":""},{"$f":"IF(CELL(\"type\",'Data Entry'!$G31)=\"v\",'Data Entry'!$G31,\"\")","v":""},{"$f":"'BA Form 2 Event Data'!L34","v":0},{"$f":"'BA Form 2 Event Data'!W34","v":0},null,{"$f":"'BA Form 2 Event Data'!M34","v":0},{"$f":"'BA Form 2 Event Data'!X34","v":0},null,{"$f":"'BA Form 2 Event Data'!N34","v":0},{"$f":"'BA Form 2 Event Data'!Y34","v":0},null,{"$f":"'BA Form 2 Event Data'!O34","v":0},{"$f":"'BA Form 2 Event Data'!Z34","v":0},null,{"$f":"'BA Form 2 Event Data'!P34","v":0},{"$f":"'BA Form 2 Event Data'!AA34","v":0},null,{"$f":"'BA Form 2 Event Data'!Q34","v":0},{"$f":"'BA Form 2 Event Data'!AB34","v":0},null,{"$f":"IF(CELL(\"type\",'Data Entry'!$I31) = \"v\",((E30+H30+K30+N30-Q30*10*'Data Entry'!$I31+T30)-(D30+G30+J30+M30+S30)),\"\")","v":0}]
[28,{"$f":"IF(CELL(\"type\",'Data Entry'!$C32) = \"v\",'Data Entry'!$C32,\"\")","v":""},{"$f":"IF(CELL(\"type\",'Data Entry'!$G32)=\"v\",'Data Entry'!$G32,\"\")","v":""},{"$f":"'BA Form 2 Event Data'!L35","v":0},{"$f":"'BA Form 2 Event Data'!W35","v":0},null,{"$f":"'BA Form 2 Event Data'!M35","v":0},{"$f":"'BA Form 2 Event Data'!X35","v":0},null,{"$f":"'BA Form 2 Event Data'!N35","v":0},{"$f":"'BA Form 2 Event Data'!Y35","v":0},null,{"$f":"'BA Form 2 Event Data'!O35","v":0},{"$f":"'BA Form 2 Event Data'!Z35","v":0},null,{"$f":"'BA Form 2 Event Data'!P35","v":0},{"$f":"'BA Form 2 Event Data'!AA35","v":0},null,{"$f":"'BA Form 2 Event Data'!Q35","v":0},{"$f":"'BA Form 2 Event Data'!AB35","v":0},null,{"$f":"IF(CELL(\"type\",'Data Entry'!$I32) = \"v\",((E31+H31+K31+N31-Q31*10*'Data Entry'!$I32+T31)-(D31+G31+J31+M31+S31)),\"\")","v":0}]
[29,{"$f":"IF(CELL(\"type\",'Data Entry'!$C33) = \"v\",'Data Entry'!$C33,\"\")","v":""},{"$f":"IF(CELL(\"type\",'Data Entry'!$G33)=\"v\",'Data Entry'!$G33,\"\")","v":""},{"$f":"'BA Form 2 Event Data'!L36","v":0},{"$f":"'BA Form 2 Event Data'!W36","v":0},null,{"$f":"'BA Form 2 Event Data'!M36","v":0},{"$f":"'BA Form 2 Event Data'!X36","v":0},null,{"$f":"'BA Form 2 Event Data'!N36","v":0},{"$f":"'BA Form 2 Event Data'!Y36","v":0},null,{"$f":"'BA Form 2 Event Data'!O36","v":0},{"$f":"'BA Form 2 Event Data'!Z36","v":0},null,{"$f":"'BA Form 2 Event Data'!P36","v":0},{"$f":"'BA Form 2 Event Data'!AA36","v":0},null,{"$f":"'BA Form 2 Event Data'!Q36","v":0},{"$f":"'BA Form 2 Event Data'!AB36","v":0},null,{"$f":"IF(CELL(\"type\",'Data Entry'!$I33) = \"v\",((E32+H32+K32+N32-Q32*10*'Data Entry'!$I33+T32)-(D32+G32+J32+M32+S32)),\"\")","v":0}]
[30,{"$f":"IF(CELL(\"type\",'Data Entry'!$C34) = \"v\",'Data Entry'!$C34,\"\")","v":""},{"$f":"IF(CELL(\"type\",'Data Entry'!$G34)=\"v\",'Data Entry'!$G34,\"\")","v":""},{"$f":"'BA Form 2 Event Data'!L37","v":0},{"$f":"'BA Form 2 Event Data'!W37","v":0},null,{"$f":"'BA Form 2 Event Data'!M37","v":0},{"$f":"'BA Form 2 Event Data'!X37","v":0},null,{"$f":"'BA Form 2 Event Data'!N37","v":0},{"$f":"'BA Form 2 Event Data'!Y37","v":0},null,{"$f":"'BA Form 2 Event Data'!O37","v":0},{"$f":"'BA Form 2 Event Data'!Z37","v":0},null,{"$f":"'BA Form 2 Event Data'!P37","v":0},{"$f":"'BA Form 2 Event Data'!AA37","v":0},null,{"$f":"'BA Form 2 Event Data'!Q37","v":0},{"$f":"'BA Form 2 Event Data'!AB37","v":0},null,{"$f":"IF(CELL(\"type\",'Data Entry'!$I34) = \"v\",((E33+H33+K33+N33-Q33*10*'Data Entry'!$I34+T33)-(D33+G33+J33+M33+S33)),\"\")","v":0}]
[31,{"$f":"IF(CELL(\"type\",'Data Entry'!$C35) = \"v\",'Data Entry'!$C35,\"\")","v":""},{"$f":"IF(CELL(\"type\",'Data Entry'!$G35)=\"v\",'Data Entry'!$G35,\"\")","v":""},{"$f":"'BA Form 2 Event Data'!L38","v":0},{"$f":"'BA Form 2 Event Data'!W38","v":0},null,{"$f":"'BA Form 2 Event Data'!M38","v":0},{"$f":"'BA Form 2 Event Data'!X38","v":0},null,{"$f":"'BA Form 2 Event Data'!N38","v":0},{"$f":"'BA Form 2 Event Data'!Y38","v":0},null,{"$f":"'BA Form 2 Event Data'!O38","v":0},{"$f":"'BA Form 2 Event Data'!Z38","v":0},null,{"$f":"'BA Form 2 Event Data'!P38","v":0},{"$f":"'BA Form 2 Event Data'!AA38","v":0},null,{"$f":"'BA Form 2 Event Data'!Q38","v":0},{"$f":"'BA Form 2 Event Data'!AB38","v":0},null,{"$f":"IF(CELL(\"type\",'Data Entry'!$I35) = \"v\",((E34+H34+K34+N34-Q34*10*'Data Entry'!$I35+T34)-(D34+G34+J34+M34+S34)),\"\")","v":0}]
[32,{"$f":"IF(CELL(\"type\",'Data Entry'!$C36) = \"v\",'Data Entry'!$C36,\"\")","v":""},{"$f":"IF(CELL(\"type\",'Data Entry'!$G36)=\"v\",'Data Entry'!$G36,\"\")","v":""},{"$f":"'BA Form 2 Event Data'!L39","v":0},{"$f":"'BA Form 2 Event Data'!W39","v":0},null,{"$f":"'BA Form 2 Event Data'!M39","v":0},{"$f":"'BA Form 2 Event Data'!X39","v":0},null,{"$f":"'BA Form 2 Event Data'!N39","v":0},{"$f":"'BA Form 2 Event Data'!Y39","v":0},null,{"$f":"'BA Form 2 Event Data'!O39","v":0},{"$f":"'BA Form 2 Event Data'!Z39","v":0},null,{"$f":"'BA Form 2 Event Data'!P39","v":0},{"$f":"'BA Form 2 Event Data'!AA39","v":0},null,{"$f":"'BA Form 2 Event Data'!Q39","v":0},{"$f":"'BA Form 2 Event Data'!AB39","v":0},null,{"$f":"IF(CELL(\"type\",'Data Entry'!$I36) = \"v\",((E35+H35+K35+N35-Q35*10*'Data Entry'!$I36+T35)-(D35+G35+J35+M35+S35)),\"\")","v":0}]
[33,{"$f":"IF(CELL(\"type\",'Data Entry'!$C37) = \"v\",'Data Entry'!$C37,\"\")","v":""},{"$f":"IF(CELL(\"type\",'Data Entry'!$G37)=\"v\",'Data Entry'!$G37,\"\")","v":""},{"$f":"'BA Form 2 Event Data'!L40","v":0},{"$f":"'BA Form 2 Event Data'!W40","v":0},null,{"$f":"'BA Form 2 Event Data'!M40","v":0},{"$f":"'BA Form 2 Event Data'!X40","v":0},null,{"$f":"'BA Form 2 Event Data'!N40","v":0},{"$f":"'BA Form 2 Event Data'!Y40","v":0},null,{"$f":"'BA Form 2 Event Data'!O40","v":0},{"$f":"'BA Form 2 Event Data'!Z40","v":0},null,{"$f":"'BA Form 2 Event Data'!P40","v":0},{"$f":"'BA Form 2 Event Data'!AA40","v":0},null,{"$f":"'BA Form 2 Event Data'!Q40","v":0},{"$f":"'BA Form 2 Event Data'!AB40","v":0},null,{"$f":"IF(CELL(\"type\",'Data Entry'!$I37) = \"v\",((E36+H36+K36+N36-Q36*10*'Data Entry'!$I37+T36)-(D36+G36+J36+M36+S36)),\"\")","v":0}]
[34,{"$f":"IF(CELL(\"type\",'Data Entry'!$C38) = \"v\",'Data Entry'!$C38,\"\")","v":""},{"$f":"IF(CELL(\"type\",'Data Entry'!$G38)=\"v\",'Data Entry'!$G38,\"\")","v":""},{"$f":"'BA Form 2 Event Data'!L41","v":0},{"$f":"'BA Form 2 Event Data'!W41","v":0},null,{"$f":"'BA Form 2 Event Data'!M41","v":0},{"$f":"'BA Form 2 Event Data'!X41","v":0},null,{"$f":"'BA Form 2 Event Data'!N41","v":0},{"$f":"'BA Form 2 Event Data'!Y41","v":0},null,{"$f":"'BA Form 2 Event Data'!O41","v":0},{"$f":"'BA Form 2 Event Data'!Z41","v":0},null,{"$f":"'BA Form 2 Event Data'!P41","v":0},{"$f":"'BA Form 2 Event Data'!AA41","v":0},null,{"$f":"'BA Form 2 Event Data'!Q41","v":0},{"$f":"'BA Form 2 Event Data'!AB41","v":0},null,{"$f":"IF(CELL(\"type\",'Data Entry'!$I38) = \"v\",((E37+H37+K37+N37-Q37*10*'Data Entry'!$I38+T37)-(D37+G37+J37+M37+S37)),\"\")","v":0}]
[35,null,null,{"$f":"'BA Form 2 Event Data'!L42","v":0},{"$f":"'BA Form 2 Event Data'!W42","v":0},null,{"$f":"'BA Form 2 Event Data'!M42","v":0},{"$f":"'BA Form 2 Event Data'!X42","v":0},null,{"$f":"'BA Form 2 Event Data'!N42","v":0},{"$f":"'BA Form 2 Event Data'!Y42","v":0},null,{"$f":"'BA Form 2 Event Data'!O42","v":0},{"$f":"'BA Form 2 Event Data'!Z42","v":0},null,{"$f":"'BA Form 2 Event Data'!P42","v":0},{"$f":"'BA Form 2 Event Data'!AA42","v":0},null,{"$f":"'BA Form 2 Event Data'!Q42","v":0},{"$f":"'BA Form 2 Event Data'!AB42","v":0},null,{"$f":"IF(CELL(\"type\",'Data Entry'!$I39) = \"v\",((E38+H38+K38+N38-Q38*10*'Data Entry'!$I39+T38)-(D38+G38+J38+M38+S38)),\"\")","v":0}]
[36,null,null,{"$f":"'BA Form 2 Event Data'!L43","v":0},{"$f":"'BA Form 2 Event Data'!W43","v":0},null,{"$f":"'BA Form 2 Event Data'!M43","v":0},{"$f":"'BA Form 2 Event Data'!X43","v":0},null,{"$f":"'BA Form 2 Event Data'!N43","v":0},{"$f":"'BA Form 2 Event Data'!Y43","v":0},null,{"$f":"'BA Form 2 Event Data'!O43","v":0},{"$f":"'BA Form 2 Event Data'!Z43","v":0},null,{"$f":"'BA Form 2 Event Data'!P43","v":0},{"$f":"'BA Form 2 Event Data'!AA43","v":0},null,{"$f":"'BA Form 2 Event Data'!Q43","v":0},{"$f":"'BA Form 2 Event Data'!AB43","v":0},null,{"$f":"IF(CELL(\"type\",'Data Entry'!$I40) = \"v\",((E39+H39+K39+N39-Q39*10*'Data Entry'!$I40+T39)-(D39+G39+J39+M39+S39)),\"\")","v":0}]
[37,{"$f":"IF(CELL(\"type\",'Data Entry'!$C41) = \"v\",'Data Entry'!$C41,\"\")","v":""},{"$f":"IF(CELL(\"type\",'Data Entry'!$G41)=\"v\",'Data Entry'!$G41,\"\")","v":""},{"$f":"'BA Form 2 Event Data'!L44","v":0},{"$f":"'BA Form 2 Event Data'!W44","v":0},null,{"$f":"'BA Form 2 Event Data'!M44","v":0},{"$f":"'BA Form 2 Event Data'!X44","v":0},null,{"$f":"'BA Form 2 Event Data'!N44","v":0},{"$f":"'BA Form 2 Event Data'!Y44","v":0},null,{"$f":"'BA Form 2 Event Data'!O44","v":0},{"$f":"'BA Form 2 Event Data'!Z44","v":0},null,{"$f":"'BA Form 2 Event Data'!P44","v":0},{"$f":"'BA Form 2 Event Data'!AA44","v":0},null,{"$f":"'BA Form 2 Event Data'!Q44","v":0},{"$f":"'BA Form 2 Event Data'!AB44","v":0},null,{"$f":"IF(CELL(\"type\",'Data Entry'!$I41) = \"v\",((E40+H40+K40+N40-Q40*10*'Data Entry'!$I41+T40)-(D40+G40+J40+M40+S40)),\"\")","v":0}]
[38,{"$f":"IF(CELL(\"type\",'Data Entry'!$C42) = \"v\",'Data Entry'!$C42,\"\")","v":""},{"$f":"IF(CELL(\"type\",'Data Entry'!$G42)=\"v\",'Data Entry'!$G42,\"\")","v":""},{"$f":"'BA Form 2 Event Data'!L45","v":0},{"$f":"'BA Form 2 Event Data'!W45","v":0},null,{"$f":"'BA Form 2 Event Data'!M45","v":0},{"$f":"'BA Form 2 Event Data'!X45","v":0},null,{"$f":"'BA Form 2 Event Data'!N45","v":0},{"$f":"'BA Form 2 Event Data'!Y45","v":0},null,{"$f":"'BA Form 2 Event Data'!O45","v":0},{"$f":"'BA Form 2 Event Data'!Z45","v":0},null,{"$f":"'BA Form 2 Event Data'!P45","v":0},{"$f":"'BA Form 2 Event Data'!AA45","v":0},null,{"$f":"'BA Form 2 Event Data'!Q45","v":0},{"$f":"'BA Form 2 Event Data'!AB45","v":0},null,{"$f":"IF(CELL(\"type\",'Data Entry'!$I42) = \"v\",((E41+H41+K41+N41-Q41*10*'Data Entry'!$I42+T41)-(D41+G41+J41+M41+S41)),\"\")","v":0}]
[39,null,null,{"$f":"'BA Form 2 Event Data'!L46","v":0},{"$f":"'BA Form 2 Event Data'!W46","v":0},null,{"$f":"'BA Form 2 Event Data'!M46","v":0},{"$f":"'BA Form 2 Event Data'!X46","v":0},null,{"$f":"'BA Form 2 Event Data'!N46","v":0},{"$f":"'BA Form 2 Event Data'!Y46","v":0},null,{"$f":"'BA Form 2 Event Data'!O46","v":0},{"$f":"'BA Form 2 Event Data'!Z46","v":0},null,{"$f":"'BA Form 2 Event Data'!P46","v":0},{"$f":"'BA Form 2 Event Data'!AA46","v":0},null,{"$f":"'BA Form 2 Event Data'!Q46","v":0},{"$f":"'BA Form 2 Event Data'!AB46","v":0},null,{"$f":"IF(CELL(\"type\",'Data Entry'!$I43) = \"v\",((E42+H42+K42+N42-Q42*10*'Data Entry'!$I43+T42)-(D42+G42+J42+M42+S42)),\"\")","v":0}]
[40,null,null,{"$f":"'BA Form 2 Event Data'!L47","v":0},{"$f":"'BA Form 2 Event Data'!W47","v":0},null,{"$f":"'BA Form 2 Event Data'!M47","v":0},{"$f":"'BA Form 2 Event Data'!X47","v":0},null,{"$f":"'BA Form 2 Event Data'!N47","v":0},{"$f":"'BA Form 2 Event Data'!Y47","v":0},null,{"$f":"'BA Form 2 Event Data'!O47","v":0},{"$f":"'BA Form 2 Event Data'!Z47","v":0},null,{"$f":"'BA Form 2 Event Data'!P47","v":0},{"$f":"'BA Form 2 Event Data'!AA47","v":0},null,{"$f":"'BA Form 2 Event Data'!Q47","v":0},{"$f":"'BA Form 2 Event Data'!AB47","v":0},null,{"$f":"IF(CELL(\"type\",'Data Entry'!$I44) = \"v\",((E43+H43+K43+N43-Q43*10*'Data Entry'!$I44+T43)-(D43+G43+J43+M43+S43)),\"\")","v":0}]
[41,{"$f":"IF(CELL(\"type\",'Data Entry'!$C37) = \"v\",'Data Entry'!$C37,\"\")","v":""},{"$f":"IF(CELL(\"type\",'Data Entry'!$G37)=\"v\",'Data Entry'!$G37,\"\")","v":""},{"$f":"'BA Form 2 Event Data'!L48","v":0},{"$f":"'BA Form 2 Event Data'!W48","v":0},null,{"$f":"'BA Form 2 Event Data'!M48","v":0},{"$f":"'BA Form 2 Event Data'!X48","v":0},null,{"$f":"'BA Form 2 Event Data'!N48","v":0},{"$f":"'BA Form 2 Event Data'!Y48","v":0},null,{"$f":"'BA Form 2 Event Data'!O48","v":0},{"$f":"'BA Form 2 Event Data'!Z48","v":0},null,{"$f":"'BA Form 2 Event Data'!P48","v":0},{"$f":"'BA Form 2 Event Data'!AA48","v":0},null,{"$f":"'BA Form 2 Event Data'!Q48","v":0},{"$f":"'BA Form 2 Event Data'!AB48","v":0},null,{"$f":"IF(CELL(\"type\",'Data Entry'!$I45) = \"v\",((E44+H44+K44+N44-Q44*10*'Data Entry'!$I45+T44)-(D44+G44+J44+M44+S44)),\"\")","v":0}]
[42,{"$f":"IF(CELL(\"type\",'Data Entry'!$C38) = \"v\",'Data Entry'!$C38,\"\")","v":""},{"$f":"IF(CELL(\"type\",'Data Entry'!$G38)=\"v\",'Data Entry'!$G38,\"\")","v":""},{"$f":"'BA Form 2 Event Data'!L49","v":0},{"$f":"'BA Form 2 Event Data'!W49","v":0},null,{"$f":"'BA Form 2 Event Data'!M49","v":0},{"$f":"'BA Form 2 Event Data'!X49","v":0},null,{"$f":"'BA Form 2 Event Data'!N49","v":0},{"$f":"'BA Form 2 Event Data'!Y49","v":0},null,{"$f":"'BA Form 2 Event Data'!O49","v":0},{"$f":"'BA Form 2 Event Data'!Z49","v":0},null,{"$f":"'BA Form 2 Event Data'!P49","v":0},{"$f":"'BA Form 2 Event Data'!AA49","v":0},null,{"$f":"'BA Form 2 Event Data'!Q49","v":0},{"$f":"'BA Form 2 Event Data'!AB49","v":0},null,{"$f":"IF(CELL(\"type\",'Data Entry'!$I46) = \"v\",((E45+H45+K45+N45-Q45*10*'Data Entry'!$I46+T45)-(D45+G45+J45+M45+S45)),\"\")","v":0}]
[null,"Sign Convention for scan data collected in Form 2",null,"Imports: MWs are -\nExports: MWs are +",null,null,"Loads in MW as -",null,null,"Load MW as -\nGeneration MW as +",null,null,"Enter Gen MW as +",null,null,"The transactional amount in \nMW Receiver enters - Deliverer enters +\non Form 2 Data sheet",null,null,"Generation MW as +\n(If demand occurs due to gen loss, enter MW as - at value B)"]
[null,"Instructions for utilizing Adjustments:"]
[null,"1)","Balancing Authorities making adjustments must retain evidence to verify:\n  - Adjustment values are determined from scan-cycle data using Value A and Value B averaging periods. Scan-cycle data must be available if adjustments are made.\n  - Adjustments are necessary to improve accuracy of calculations compared to using Net Actual Interchange solely. \n    Said differently, unless an adjustment compensates for significant known error, it should not be made. However, as noted in the next item, once a decision to include an\n    adjustment for one or more of the five types is made for one event, the entity must calculate adjustments for that (those) type(s) for all events except for the Contengent BA Adjustment which is only utilized for the events that you are contengent during that event.\n  - Adjustments are included consistently for all events (e.g. if adjustments for nonconforming load are made for one event, the load must be included for all events, etc.).                                                                                                       "]
[null,"2)","Dynamic Schedules: \n  - Values use schedule sign convention. \n  - Adjustments should include only dynamic schedules accounting for joint-owned units. Other dynamic schedules should be ignored.\n"]
[null,"3)","Nonconforming Loads:\n  - Values must be negative numbers.\n"]
[null,"4)","Pumped Hydro:\n - Values for pumping must be negative values.\n - Values for generating must be positive values.\n"]
[null,"5)","Rampling Units:\n - Values are positive values.\n"]
[null,"6)","Transferred Frequency Response:\n - This value is the amount agreed upon between the entities expressed in MW/0.1 Hz. Form 2 will adjust this amount for the frequency deviation experienced.\n   (e.g. if an entity agrees to provide 20 MW/0.1 Hz to another entity and a frequency event with a deviation of 50 mHz occurs, the delivering entity should enter +20 in the\n   data column of Form 2 and the receiving entity should enter - 20. The spreadsheet will adjust the SEFRD for each entity by the 10 for this event.)\n - Values for the entity receiving the response must be entered as a negative number.\n - Values for the entity delivering the response must be entered as a positive number. \n - Values between entities must sum to zero.\n"]
[null,"7)","Contingent Balancing Authority Adjustment:\n - Data for Value A is the pre-contingency scan rate generation (+MW values) from the contingent unit(s).  \n - Data for Value B is usually 0 MW, but may be the demand (-MW values) that remains on the system that was \"netted\" out by the now offline generation.\n"]

{"sheet":"Variable Bias Supplemental Info","index":4,"n_rows":17,"n_cols":12,"rows_kept":17,"cut":false,"hidden":false,"merged":[]}
["Month","Minimum FBS* for month","Maximum FBS* for month","Time weighted ** average FBS* for month","Time weighted ** minimum average FBS* for month"]
["January",null,null,null,null,null,null,null,null,"Balancing Authority:",null,{"$f":"'Data Entry'!G1","v":"HQT"}]
["Feburary",null,null,null,null,null,null,null,null,{"$f":"YEAR('Data Entry'!$C$11)-1","v":1899},"Reporting period FRS Form 1 data"]
["March",null,null,null,null,null,null,null,null,0,{"$f":"J3& \" Reporting period: Balancinig Authority FRM MW/0.1 Hz, enter from FRS Form 1 for that year's FRM.  If not know enter zero.\"","v":"1899 Reporting period: Balancinig Authority FRM MW/0.1 Hz, enter from FRS Form 1 for that year's FRM.  If not know enter zero."}]
["April",null,null,null,null,null,null,null,null,0.01,{"$f":"J3&\" Reporting period: Interconnection Minimum Fixed Frequency Bias Setting % of Peak Demand or Peak Generation (Set by ERO)\"","v":"1899 Reporting period: Interconnection Minimum Fixed Frequency Bias Setting % of Peak Demand or Peak Generation (Set by ERO)"}]
["May ",null,null,null,null,null,null,null,null,null,{"$f":"J3&\" Reporting period: Your BA's Annual Peak Demand or Peak Gen for Gen only BAs from your BA Form 714.\"","v":"1899 Reporting period: Your BA's Annual Peak Demand or Peak Gen for Gen only BAs from your BA Form 714."}]
["June",null,null,null,null,null,null,null,null,{"$f":"J6*J5*-1","v":0},"Your BA's lowest absolute Fixed Frequency Bias Setting based on BA Peak Demand (Peak Generation for Generation only BA) MW/0.1 Hz."]
["July",null,null,null,null,null,null,null,null,{"$f":"J4","v":0},"Your BA's lowest absolute Fixed Frequency Bias Setting based on 100% of FRM."]
["August",null,null,null,null,null,null,null,null,{"$f":"MIN(J$7:J$8)","v":0},{"$f":"'Data Entry'!S19&\" Minimum, lowest absolute, conditional average Frequency Bias Setting MW/0.1 Hz.\"","v":"1900 Minimum, lowest absolute, conditional average Frequency Bias Setting MW/0.1 Hz."}]
["September",null,null,null,null,null,null,null,null,null,{"$f":"J3&\" Minimum, lowest absolute, conditional average Frequency Bias Setting MW/0.1 Hz.\"","v":"1899 Minimum, lowest absolute, conditional average Frequency Bias Setting MW/0.1 Hz."}]
["October"]
["November"]
["December"]
[null,null,null,{"$f":"(31*D2+28*D3+31*D4+31*D5+30*D6+31*D7+30*D8+31*D9+31*D10+30*D11+30*D12+31*D13)/365","v":0},{"$f":"(31*E2+28*E3+31*E4+31*E5+30*E6+31*E7+30*E8+31*E9+31*E10+30*E11+30*E12+31*E13)/365","v":0},{"$f":"'Data Entry'!S19&\" Average Annual Bias MW/0.1 Hz\"","v":"1900 Average Annual Bias MW/0.1 Hz"}]
[]
["* Frequency Bias Setting (FBS)"]
["** Based on the one minute values used in BAL 001 when frequency is greater than 60.036 Hz or less than 59.964 Hz."]

{"sheet":"BA Form 2 Event Data","index":5,"n_rows":49,"n_cols":47,"rows_kept":49,"cut":false,"hidden":false,"merged":[]}
[null,null,null,null,null,null,null,null,null,null,null,null,null,null,null,null,null,null,null,null,null,null,null,null,null,null,null,"Average P.U. Performance",{"$f":"AVERAGE(AC8:AC49)","v":{"$error":"#DIV/0!"}},{"$f":"AVERAGE(AD8:AD49)","v":{"$error":"#DIV/0!"}},{"$error":"#DIV/0!"},null,null,null,null,{"$f":"AVERAGE(AJ8:AJ49)","v":{"$error":"#DIV/0!"}},{"$error":"#DIV/0!"},{"$error":"#DIV/0!"},{"$error":"#DIV/0!"},{"$error":"#DIV/0!"},{"$error":"#DIV/0!"},{"$error":"#DIV/0!"},{"$error":"#DIV/0!"},{"$error":"#DIV/0!"},{"$error":"#DIV/0!"}]
[null,null,null,"PasteSpecial/Values the data copied from FRS Form 2 for each event.",null,null,null,null,null,"Value A Data",null,"BA Performance",null,null,null,null,null,null,null,null,"Value B","20 to 52 second Average Period Evaluation",null,null,null,null,null,null,null,null,null,null,null,null,null,"Frequency Response Initiative - Additional Primary Frequency Response Evaluation Points"]
[null,null,null,null,null,null,null,null,null,null,null,null,"Non-",null,null,null,null,null,null,null,null,null,null,"Non-",null,null,null,null,null,null,null,null,null,null,"Average","Unadjusted","Unadjusted","Unadjusted","Unadjusted","Unadjusted","Adjusted","Adjusted","Adjusted","Adjusted","Adjusted"]
[null,null,null,"Date","A Point","FPointA","A Value","t(0) Time","C Value",null,"Contingent","Load","Conforming",null,null,null,null,"BA","BA","Bias",null,"Contingent","Load","Conforming",null,null,null,null,"Initial","Initial","Sustained","BA","BA","Bias","Bias While","PFR","PFR","PFR","PFR","PFR","PFR","PFR","PFR","PFR","PFR"]
[null,null,null,null,"Time","Hz","Hz",null,"Hz",null,"Resource","Resources","Load",null,null,null,null,"Bias","Load","Setting",null,"Resource","Resources","Load",null,null,null,null,"Performance","Performance","Performance","Bias","Load","Setting","Hz > +/-0.036","Performance","Performance","Performance","Performance","Performance","Performance","Performance","Performance","Performance","Performance","Maximum","Minimum"]
["Event","Date/Time",null,null,null,null,null,null,null,"Frequency","Lost","Tripped","Load (-)","Spare","Spare","Spare","Spare","Setting",null,"EPFR","Frequency","Lost","Tripped","Load (-)","Spare","Spare","Spare","Spare","Adjusted","Unadjusted",null,"Setting",null,"EPFR","Hz","@ T(+46)","@ T(+76)","@ T(+106)","@ T(+136)","@ T(+166)","@ T(+46)","@ T(+76)","@ T(+106)","@ T(+136)","@ T(+166)","Bias Setting","Bias Setting"]
["Number","(Central Prevailing)","DelFreq",null,null,null,null,null,null,"Hz","MW","MW","MW","MW","MW","MW","MW","MW/0.1 Hz","MW","MW","Hz","MW","MW","MW","MW","MW","MW","MW","P.U.","P.U.","P.U.","MW/0.1 Hz","MW","MW","MW/0.1 Hz","P.U.","P.U.","P.U.","P.U.","P.U.","P.U.","P.U.","P.U.","P.U.","P.U.","MW/0.1 Hz","MW/0.1 Hz"]
[1,{"$f":"'Data Entry'!C5","v":"00:00:00"},{"$f":"'Data Entry'!G5","v":0}]
[2,{"$f":"'Data Entry'!C6","v":"00:00:00"},{"$f":"'Data Entry'!G6","v":0}]
[3,{"$f":"'Data Entry'!C7","v":"00:00:00"},{"$f":"'Data Entry'!G7","v":0}]
[4,{"$f":"'Data Entry'!C8","v":"00:00:00"},{"$f":"'Data Entry'!G8","v":0}]
[5,{"$f":"'Data Entry'!C9","v":"00:00:00"},{"$f":"'Data Entry'!G9","v":0}]
[6,{"$f":"'Data Entry'!C10","v":"00:00:00"},{"$f":"'Data Entry'!G10","v":0}]
[7,{"$f":"'Data Entry'!C11","v":"00:00:00"},{"$f":"'Data Entry'!G11","v":0}]
[8,{"$f":"'Data Entry'!C12","v":"00:00:00"},{"$f":"'Data Entry'!G12","v":0}]
[9,{"$f":"'Data Entry'!C13","v":"00:00:00"},{"$f":"'Data Entry'!G13","v":0}]
[10,{"$f":"'Data Entry'!C14","v":"00:00:00"},{"$f":"'Data Entry'!G14","v":0}]
[11,{"$f":"'Data Entry'!C15","v":"00:00:00"},{"$f":"'Data Entry'!G15","v":0}]
[12,{"$f":"'Data Entry'!C16","v":"00:00:00"},{"$f":"'Data Entry'!G16","v":0}]
[13,{"$f":"'Data Entry'!C17","v":"00:00:00"},{"$f":"'Data Entry'!G17","v":0}]
[14,{"$f":"'Data Entry'!C18","v":"00:00:00"},{"$f":"'Data Entry'!G18","v":0}]
[15,{"$f":"'Data Entry'!C19","v":"00:00:00"},{"$f":"'Data Entry'!G19","v":0}]
[16,{"$f":"'Data Entry'!C20","v":"00:00:00"},{"$f":"'Data Entry'!G20","v":0}]
[17,{"$f":"'Data Entry'!C21","v":"00:00:00"},{"$f":"'Data Entry'!G21","v":0}]
[18,{"$f":"'Data Entry'!C22","v":"00:00:00"},{"$f":"'Data Entry'!G22","v":0}]
[19,{"$f":"'Data Entry'!C23","v":"00:00:00"},{"$f":"'Data Entry'!G23","v":0}]
[20,{"$f":"'Data Entry'!C24","v":"00:00:00"},{"$f":"'Data Entry'!G24","v":0}]
[21,{"$f":"'Data Entry'!C25","v":"00:00:00"},{"$f":"'Data Entry'!G25","v":0}]
[22,{"$f":"'Data Entry'!C26","v":"00:00:00"},{"$f":"'Data Entry'!G26","v":0}]
[23,{"$f":"'Data Entry'!C27","v":"00:00:00"},{"$f":"'Data Entry'!G27","v":0}]
[24,{"$f":"'Data Entry'!C28","v":"00:00:00"},{"$f":"'Data Entry'!G28","v":0}]
[25,{"$f":"'Data Entry'!C29","v":"00:00:00"},{"$f":"'Data Entry'!G29","v":0}]
[26,{"$f":"'Data Entry'!C30","v":"00:00:00"},{"$f":"'Data Entry'!G30","v":0}]
[27,{"$f":"'Data Entry'!C31","v":"00:00:00"},{"$f":"'Data Entry'!G31","v":0}]
[28,{"$f":"'Data Entry'!C32","v":"00:00:00"},{"$f":"'Data Entry'!G32","v":0}]
[29,{"$f":"'Data Entry'!C33","v":"00:00:00"},{"$f":"'Data Entry'!G33","v":0}]
[30,{"$f":"'Data Entry'!C34","v":"00:00:00"},{"$f":"'Data Entry'!G34","v":0}]
[31,{"$f":"'Data Entry'!C35","v":"00:00:00"},{"$f":"'Data Entry'!G35","v":0}]
[32,{"$f":"'Data Entry'!C36","v":"00:00:00"},{"$f":"'Data Entry'!G36","v":0}]
[33,{"$f":"'Data Entry'!C37","v":"00:00:00"},{"$f":"'Data Entry'!G37","v":0}]
[34,{"$f":"'Data Entry'!C38","v":"00:00:00"},{"$f":"'Data Entry'!G38","v":0}]
[35,{"$f":"'Data Entry'!C39","v":"00:00:00"},{"$f":"'Data Entry'!G39","v":0}]
[36,{"$f":"'Data Entry'!C40","v":"00:00:00"},{"$f":"'Data Entry'!G40","v":0}]
[37,{"$f":"'Data Entry'!C41","v":"00:00:00"},{"$f":"'Data Entry'!G41","v":0}]
[38,{"$f":"'Data Entry'!C42","v":"00:00:00"},{"$f":"'Data Entry'!G42","v":0}]
[39,{"$f":"'Data Entry'!C43","v":"00:00:00"},{"$f":"'Data Entry'!G43","v":0}]
[40,{"$f":"'Data Entry'!C44","v":"00:00:00"},{"$f":"'Data Entry'!G44","v":0}]
[41,{"$f":"'Data Entry'!C45","v":"00:00:00"},{"$f":"'Data Entry'!G45","v":0}]
[42,{"$f":"'Data Entry'!C46","v":"00:00:00"},{"$f":"'Data Entry'!G46","v":0}]

{"sheet":"TimeZone Ref","index":6,"n_rows":11,"n_cols":4,"rows_kept":11,"cut":false,"hidden":false,"merged":[]}
["Full name","Abbreviation","Offset","Time zone"]
["Atlantic Daylight Time","ADT","03:00:00","UTC - 3 hours"]
["Atlantic Standard Time","AST","04:00:00","UTC - 4 hours"]
["Central Daylight Time","CDT","05:00:00","UTC - 5 hours"]
["Central Standard Time","CST","06:00:00","UTC - 6 hours"]
["Eastern Daylight Time","EDT","04:00:00","UTC - 4 hours"]
["Eastern Standard Time","EST","05:00:00","UTC - 5 hours"]
["Mountain Daylight Time","MDT","06:00:00","UTC - 6 hours"]
["Mountain Standard Time","MST","07:00:00","UTC - 7 hours"]
["Pacific Daylight Time","PDT","07:00:00","UTC - 7 hours"]
["Pacific Standard Time","PST","08:00:00","UTC - 8 hours"]

{"sheet":"Event Frequency Graphs","index":7,"n_rows":0,"n_cols":0,"rows_kept":0,"cut":false,"hidden":false,"merged":[]}

{"sheet":"Frequency Response Initiative","index":8,"n_rows":24,"n_cols":25,"rows_kept":24,"cut":false,"hidden":false,"merged":[]}
[]
[]
[null,null,null,null,null,null,null,null,null,null,null,null,null,null,null,null,null,null,null,null,null,null,null,null,"FRI - NERC Frequency Response Initiative"]
[]
[null,null,null,null,null,null,null,null,null,null,null,null,null,null,null,null,null,null,null,null,null,null,null,null,"The FRI Report made recommendations to evaluate Primary Frequency Response at additional time intervals during the event recovery period."]
[null,null,null,null,null,null,null,null,null,null,null,null,null,null,null,null,null,null,null,null,null,null,null,null,"Additional evaluations have been added to both Form 1 and Form 2 to evaluate PFR delivery for these suggested time periods."]
[null,null,null,null,null,null,null,null,null,null,null,null,null,null,null,null,null,null,null,null,null,null,null,null,"These evaluations utilize Interconnection frequency at specific times during the recovery period and calculates the BA's delivery of PFR for each selection."]
[null,null,null,null,null,null,null,null,null,null,null,null,null,null,null,null,null,null,null,null,null,null,null,null,"These evaluations are not part of BAL-003 and will not impact compliance to R1 of the draft standard."]
[null,null,null,null,null,null,null,null,null,null,null,null,null,null,null,null,null,null,null,null,null,null,null,null,"The following time selections are evaluated: T+46, T+76, T+106, T+136 and T+166."]
[null,null,null,null,null,null,null,null,null,null,null,null,null,null,null,null,null,null,null,null,null,null,null,null,"Each evaluation is a P.U. measure based on the BA's Bias setting at each of these times."]
[null,null,null,null,null,null,null,null,null,null,null,null,null,null,null,null,null,null,null,null,null,null,null,null,"Performance is the \"best\" performance at the specific time through 10 seconds past each time."]
[null,null,null,null,null,null,null,null,null,null,null,null,null,null,null,null,null,null,null,null,null,null,null,null,"This is intended to account for any delay in data in the measurement.  This measurement may be changed as experience in this effort increases."]
[]
[null,null,null,null,null,null,null,null,null,null,null,null,null,null,null,null,null,null,null,null,null,null,null,null,"Also included is the measure of PFR delivery during the T+20 to T+52 second period, the same as R1 of the standard."]
[null,null,null,null,null,null,null,null,null,null,null,null,null,null,null,null,null,null,null,null,null,null,null,null,"The measure (P.U.) here is based on the BA Bias setting and not the FRO.  This was done to provide comparison to the additional measurement times."]
[]
[null,null,null,null,null,null,null,null,null,null,null,null,null,null,null,null,null,null,null,null,null,null,null,null,"Some basic observations from this data:"]
[]
[null,null,null,null,null,null,null,null,null,null,null,null,null,null,null,null,null,null,null,null,null,null,null,null,"1)  If the P.U. value is close to 1.0, the BA delivered the full amount of PFR equal to its Bias setting."]
[null,null,null,null,null,null,null,null,null,null,null,null,null,null,null,null,null,null,null,null,null,null,null,null,"2)  The average performance of the Eastern Interconnection in PFR is about 40% of the total Interconnection Bias setting.  If the BA's average score is greater"]
[null,null,null,null,null,null,null,null,null,null,null,null,null,null,null,null,null,null,null,null,null,null,null,null,"than 0.40 P.U. then they are providing more PFR than the average BA.  If the P.U. is less than 40% then they are providing less than average PFR."]
[null,null,null,null,null,null,null,null,null,null,null,null,null,null,null,null,null,null,null,null,null,null,null,null,"3)  If the P.U. value at T+46 is consistently less than the P.U. value at T+20 to T+52, then the PFR of the BA is not being sustained."]
[null,null,null,null,null,null,null,null,null,null,null,null,null,null,null,null,null,null,null,null,null,null,null,null,"4)  If the P.U. value at later time interval measures is consistently less, then withdrawal of PFR is occurring at a slower rate, but still being withdrawn."]
[null,null,null,null,null,null,null,null,null,null,null,null,null,null,null,null,null,null,null,null,null,null,null,null,"5)  If the P.U. value at T+20 to T+52, T+46, or T+76 is consistently greater than 1.0, this indicates that the BA Bias setting is too low."]